Workbook

Sheet CLASSIC
B2: WIND SPEED (MPH) | L2: =IF(ISBLANK($E$2)," ",$E$2) ->  | S2: =IF(ISBLANK($E$2)," ",$E$2) ->  | Z2: =IF(ISBLANK($E$2)," ",$E$2) ->  | AG2: =IF(ISBLANK($E$2)," ",$E$2) ->  | AQ2: 85 | AT2: COUNT | AU2: =COUNTA(F8:J10) -> 1 | AW2: =E2*AU4*AU5*E14 -> 0 | BX2: COUNT | BY2: =COUNTA(M8:Q10) -> 0 | CA2: =L2*BY4*BY5*L14 ->  | DB2: COUNT | DC2: =COUNTA(T8:X10) -> 0 | DE2: =S2*DC4*DC5*S14 ->  | EF2: COUNT | EG2: =COUNTA(AA8:AE10) -> 0 | EI2: =Z2*EG4*EG5*Z14 ->  | FJ2: COUNT | FK2: =COUNTA(AH8:AL10) -> 0 | FM2: =AG2*FK4*FK5*AG14 -> 
AQ3: 90 | AT3: COUNTIF yes | AU3: =COUNTIF(E52:K61,"yes") -> 0 | AW3: =COUNTA(E36:G49) -> 0 | BX3: COUNTIF NO | BY3: =COUNTIF(L52:R61,"NO") -> 0 | DB3: COUNTIF NO | DC3: =COUNTIF(S52:Y61,"NO") -> 0 | EF3: COUNTIF NO | EG3: =COUNTIF(Z52:AF61,"NO") -> 0 | FJ3: COUNTIF YES | FK3: =COUNTIF(AG52:AM61,"yes") -> 0
B4: BRACED WALL LINE | AQ4: 100 | AT4: POSITION | AU4: =(IF(F10="X",1,IF(H9="X",1,IF(J8="X",1,IF(H10="X",2,IF(J9="X",2,IF(J10="X",3,0))))))) -> 1 | BX4: POSITION | BY4: =(IF(M10="X",1,IF(O9="X",1,IF(Q8="X",1,IF(O10="X",2,IF(Q9="X",2,IF(Q10="X",3,0))))))) -> 0 | DB4: POSITION | DC4: =(IF(T10="X",1,IF(V9="X",1,IF(X8="X",1,IF(V10="X",2,IF(X9="X",2,IF(X10="X",3,0))))))) -> 0 | EF4: POSITION | EG4: =(IF(AA10="X",1,IF(AC9="X",1,IF(AE8="X",1,IF(AC10="X",2,IF(AE9="X",2,IF(AE10="X",3,0))))))) -> 0 | FJ4: POSITION | FK4: =(IF(AH10="X",1,IF(AJ9="X",1,IF(AL8="X",1,IF(AJ10="X",2,IF(AL9="X",2,IF(AL10="X",3,0))))))) -> 0
AQ5: 109 | AT5: METHOD | AU5: =IF(ISBLANK(E12),0,IF(E12="LIB",101,IF(E12="GB",201,IF(E12="WSP SFB PCP HPS CS-SFB",301,IF(E12="CS-WSP CS-PF CS-G",401,123))))) -> 0 | BX5: METHOD | BY5: =IF(ISBLANK(L12),0,IF(L12="LIB",101,IF(L12="GB",201,IF(L12="WSP SFB PCP HPS CS-SFB",301,IF(L12="CS-WSP CS-PF CS-G",401,123))))) -> 0 | DB5: METHOD | DC5: =IF(ISBLANK(S12),0,IF(S12="LIB",101,IF(S12="GB",201,IF(S12="WSP SFB PCP HPS CS-SFB",301,IF(S12="CS-WSP CS-PF CS-G",401,123))))) -> 0 | EF5: METHOD | EG5: =IF(ISBLANK(Z12),0,IF(Z12="LIB",101,IF(Z12="GB",201,IF(Z12="WSP SFB PCP HPS CS-SFB",301,IF(Z12="CS-WSP CS-PF CS-G",401,123))))) -> 0 | FJ5: METHOD | FK5: =IF(ISBLANK(AG12),0,IF(AG12="LIB",101,IF(AG12="GB",201,IF(AG12="WSP SFB PCP HPS CS-SFB",301,IF(AG12="CS-WSP CS-PF CS-G",401,123))))) -> 0
B6: STORY
AU7: COLUMN 1 | AX7: 101 | BB7: COLUMN 1 | BE7: 201 | BI7: COLUMN 1 | BL7: 301 | BP7: COLUMN 1 | BS7: 401 | BY7: COLUMN 2 | CB7: 101 | CF7: =BY7 -> COLUMN 2 | CI7: 201 | CM7: =CF7 -> COLUMN 2 | CP7: 301 | CT7: =CM7 -> COLUMN 2 | CW7: 401 | DC7: COLUMN 3 | DF7: 101 | DJ7: =DC7 -> COLUMN 3 | DM7: 201 | DQ7: =DJ7 -> COLUMN 3 | DT7: 301 | DX7: =DQ7 -> COLUMN 3 | EA7: 401 | EG7: COLUMN 4 | EJ7: 101 | EN7: =EG7 -> COLUMN 4 | EQ7: 201 | EU7: =EN7 -> COLUMN 4 | EX7: 301 | FB7: =EU7 -> COLUMN 4 | FE7: 401 | FK7: COLUMN 5 | FN7: 101 | FR7: =FK7 -> COLUMN 5 | FU7: 201 | FY7: =FR7 -> COLUMN 5 | GB7: 301 | GF7: =FY7 -> COLUMN 5 | GI7: 401
AQ8: YES | AS8: X | AU8: INTERPOLATED TABULAR VALUE | AX8: =$AT$11*$AT$12*AX7 -> 8585 | BB8: INTERPOLATED TABULAR VALUE | BE8: =$AT$11*$AT$12*BE7 -> 17085 | BI8: INTERPOLATED TABULAR VALUE | BL8: =$AT$11*$AT$12*BL7 -> 25585 | BP8: INTERPOLATED TABULAR VALUE | BS8: =$AT$11*$AT$12*BS7 -> 34085 | BY8: INTERPOLATED TABULAR VALUE | CB8: =$AT$11*$AT$12*CB7 -> 8585 | CF8: INTERPOLATED TABULAR VALUE | CI8: =$AT$11*$AT$12*CI7 -> 17085 | CM8: INTERPOLATED TABULAR VALUE | CP8: =$AT$11*$AT$12*CP7 -> 25585 | CT8: INTERPOLATED TABULAR VALUE | CW8: =$AT$11*$AT$12*CW7 -> 34085 | DC8: INTERPOLATED TABULAR VALUE | DF8: =$AT$11*$AT$12*DF7 -> 8585 | DJ8: INTERPOLATED TABULAR VALUE | DM8: =$AT$11*$AT$12*DM7 -> 17085 | DQ8: INTERPOLATED TABULAR VALUE | DT8: =$AT$11*$AT$12*DT7 -> 25585 | DX8: INTERPOLATED TABULAR VALUE | EA8: =$AT$11*$AT$12*EA7 -> 34085 | EG8: INTERPOLATED TABULAR VALUE | EJ8: =$AT$11*$AT$12*EJ7 -> 8585 | EN8: INTERPOLATED TABULAR VALUE | EQ8: =$AT$11*$AT$12*EQ7 -> 17085 | EU8: INTERPOLATED TABULAR VALUE | EX8: =$AT$11*$AT$12*EX7 -> 25585 | FB8: INTERPOLATED TABULAR VALUE | FE8: =$AT$11*$AT$12*FE7 -> 34085 | FK8: INTERPOLATED TABULAR VALUE | FN8: =$AT$11*$AT$12*FN7 -> 8585 | FR8: INTERPOLATED TABULAR VALUE | FU8: =$AT$11*$AT$12*FU7 -> 17085 | FY8: INTERPOLATED TABULAR VALUE | GB8: =$AT$11*$AT$12*GB7 -> 25585 | GF8: INTERPOLATED TABULAR VALUE | GI8: =$AT$11*$AT$12*GI7 -> 34085
AQ9: NO | AU9: Y = Y1 + (X-X1) * (Y2-Y1)/(X2-X1) | BB9: Y = Y1 + (X-X1) * (Y2-Y1)/(X2-X1) | BI9: Y = Y1 + (X-X1) * (Y2-Y1)/(X2-X1) | BP9: Y = Y1 + (X-X1) * (Y2-Y1)/(X2-X1) | BY9: Y = Y1 + (X-X1) * (Y2-Y1)/(X2-X1) | CF9: Y = Y1 + (X-X1) * (Y2-Y1)/(X2-X1) | CM9: Y = Y1 + (X-X1) * (Y2-Y1)/(X2-X1) | CT9: Y = Y1 + (X-X1) * (Y2-Y1)/(X2-X1) | DC9: Y = Y1 + (X-X1) * (Y2-Y1)/(X2-X1) | DJ9: Y = Y1 + (X-X1) * (Y2-Y1)/(X2-X1) | DQ9: Y = Y1 + (X-X1) * (Y2-Y1)/(X2-X1) | DX9: Y = Y1 + (X-X1) * (Y2-Y1)/(X2-X1) | EG9: Y = Y1 + (X-X1) * (Y2-Y1)/(X2-X1) | EN9: Y = Y1 + (X-X1) * (Y2-Y1)/(X2-X1) | EU9: Y = Y1 + (X-X1) * (Y2-Y1)/(X2-X1) | FB9: Y = Y1 + (X-X1) * (Y2-Y1)/(X2-X1) | FK9: Y = Y1 + (X-X1) * (Y2-Y1)/(X2-X1) | FR9: Y = Y1 + (X-X1) * (Y2-Y1)/(X2-X1) | FY9: Y = Y1 + (X-X1) * (Y2-Y1)/(X2-X1) | GF9: Y = Y1 + (X-X1) * (Y2-Y1)/(X2-X1)
F10: X | AQ10: NA
AT11: 85 | AU11: Avg spacing | AW11: =IF(E14<10,10,E14) -> 10 | BB11: Avg spacing | BD11: =AW11 -> 10 | BI11: Avg spacing | BK11: =BD11 -> 10 | BP11: Avg spacing | BR11: =BK11 -> 10 | BX11: 85 | BY11: Avg spacing | CA11: =IF($L$14<10,10,L14) -> 10 | CF11: Avg spacing | CH11: =CA11 -> 10 | CM11: Avg spacing | CO11: =CH11 -> 10 | CT11: Avg spacing | CV11: =CO11 -> 10 | DB11: 85 | DC11: Avg spacing | DE11: =IF(S14<10,10,S14) -> 10 | DJ11: Avg spacing | DL11: =DE11 -> 10 | DQ11: Avg spacing | DS11: =DL11 -> 10 | DX11: Avg spacing | DZ11: =DS11 -> 10 | EF11: 85 | EG11: Avg spacing | EI11: =IF(Z14<10,10,Z14) -> 10 | EN11: Avg spacing | EP11: =EI11 -> 10 | EU11: Avg spacing | EW11: =EP11 -> 10 | FB11: Avg spacing | FD11: =EW11 -> 10 | FJ11: 85 | FK11: Avg spacing | FM11: =IF(AG14<10,10,AG14) -> 10 | FR11: Avg spacing | FT11: =FM11 -> 10 | FY11: Avg spacing | GA11: =FT11 -> 10 | GF11: Avg spacing | GH11: =GA11 -> 10
B12: BRACED WALL PANEL METHOD | AT12: 1 | AU12: X Range | AV12: =FLOOR(AW11,10) -> 10 | AX12: =CEILING(AW11,10) -> 10 | BB12: X Range | BC12: =FLOOR(BD11,10) -> 10 | BE12: =CEILING(BD11,10) -> 10 | BI12: X Range | BJ12: =FLOOR(BK11,10) -> 10 | BL12: =CEILING(BK11,10) -> 10 | BP12: X Range | BQ12: =FLOOR(BR11,10) -> 10 | BS12: =CEILING(BR11,10) -> 10 | BX12: 1 | BY12: X Range | BZ12: =FLOOR(CA11,10) -> 10 | CB12: =CEILING(CA11,10) -> 10 | CF12: X Range | CG12: =FLOOR(CH11,10) -> 10 | CI12: =CEILING(CH11,10) -> 10 | CM12: X Range | CN12: =FLOOR(CO11,10) -> 10 | CP12: =CEILING(CO11,10) -> 10 | CT12: X Range | CU12: =FLOOR(CV11,10) -> 10 | CW12: =CEILING(CV11,10) -> 10 | DB12: 1 | DC12: X Range | DD12: =FLOOR(DE11,10) -> 10 | DF12: =CEILING(DE11,10) -> 10 | DJ12: X Range | DK12: =FLOOR(DL11,10) -> 10 | DM12: =CEILING(DL11,10) -> 10 | DQ12: X Range | DR12: =FLOOR(DS11,10) -> 10 | DT12: =CEILING(DS11,10) -> 10 | DX12: X Range | DY12: =FLOOR(DZ11,10) -> 10 | EA12: =CEILING(DZ11,10) -> 10 | EF12: 1 | EG12: X Range | EH12: =FLOOR(EI11,10) -> 10 | EJ12: =CEILING(EI11,10) -> 10 | EN12: X Range | EO12: =FLOOR(EP11,10) -> 10 | EQ12: =CEILING(EP11,10) -> 10 | EU12: X Range | EV12: =FLOOR(EW11,10) -> 10 | EX12: =CEILING(EW11,10) -> 10 | FB12: X Range | FC12: =FLOOR(FD11,10) -> 10 | FE12: =CEILING(FD11,10) -> 10 | FJ12: 1 | FK12: X Range | FL12: =FLOOR(FM11,10) -> 10 | FN12: =CEILING(FM11,10) -> 10 | FR12: X Range | FS12: =FLOOR(FT11,10) -> 10 | FU12: =CEILING(FT11,10) -> 10 | FY12: X Range | FZ12: =FLOOR(GA11,10) -> 10 | GB12: =CEILING(GA11,10) -> 10 | GF12: X Range | GG12: =FLOOR(GH11,10) -> 10 | GI12: =CEILING(GH11,10) -> 10
AQ13: STUD HT | AR13: VAL | AU13: Y Range | AV13: =VLOOKUP(AV12,$AT$265:$AX$270,2,1) -> 3.5 | AW13: =AX20 -> 3.5 | AX13: =VLOOKUP(AX12,$AT$265:$AX$270,2,1) -> 3.5 | BB13: Y Range | BC13: =VLOOKUP(BC12,$AT$265:$AX$270,3,1) -> 3.5 | BD13: =BE20 -> 3.5 | BE13: =VLOOKUP(BE12,$AT$265:$AX$270,3,1) -> 3.5 | BI13: Y Range | BJ13: =VLOOKUP(BJ12,$AT$265:$AX$270,4,1) -> 2 | BK13: =BL20 -> 2 | BL13: =VLOOKUP(BL12,$AT$265:$AX$270,4,1) -> 2 | BP13: Y Range | BQ13: =VLOOKUP(BQ12,$AT$265:$AX$270,5,1) -> 1.5 | BR13: =BS20 -> 1.5 | BS13: =VLOOKUP(BS12,$AT$265:$AX$270,5,1) -> 1.5 | BY13: Y Range | BZ13: =VLOOKUP(BZ12,$AT$265:$AX$270,2,1) -> 3.5 | CA13: =CB20 -> 3.5 | CB13: =VLOOKUP(CB12,$AT$265:$AX$270,2,1) -> 3.5 | CF13: Y Range | CG13: =VLOOKUP(CG12,$AT$265:$AX$270,3,1) -> 3.5 | CH13: =CI20 -> 3.5 | CI13: =VLOOKUP(CI12,$AT$265:$AX$270,3,1) -> 3.5 | CM13: Y Range | CN13: =VLOOKUP(CN12,$AT$265:$AX$270,4,1) -> 2 | CO13: =CP20 -> 2 | CP13: =VLOOKUP(CP12,$AT$265:$AX$270,4,1) -> 2 | CT13: Y Range | CU13: =VLOOKUP(CU12,$AT$265:$AX$270,5,1) -> 1.5 | CV13: =CW20 -> 1.5 | CW13: =VLOOKUP(CW12,$AT$265:$AX$270,5,1) -> 1.5 | DC13: Y Range | DD13: =VLOOKUP(DD12,$AT$265:$AX$270,2,1) -> 3.5 | DE13: =DF20 -> 3.5 | DF13: =VLOOKUP(DF12,$AT$265:$AX$270,2,1) -> 3.5 | DJ13: Y Range | DK13: =VLOOKUP(DK12,$AT$265:$AX$270,3,1) -> 3.5 | DL13: =DM20 -> 3.5 | DM13: =VLOOKUP(DM12,$AT$265:$AX$270,3,1) -> 3.5 | DQ13: Y Range | DR13: =VLOOKUP(DR12,$AT$265:$AX$270,4,1) -> 2 | DS13: =DT20 -> 2 | DT13: =VLOOKUP(DT12,$AT$265:$AX$270,4,1) -> 2 | DX13: Y Range | DY13: =VLOOKUP(DY12,$AT$265:$AX$270,5,1) -> 1.5 | DZ13: =EA20 -> 1.5 | EA13: =VLOOKUP(EA12,$AT$265:$AX$270,5,1) -> 1.5 | EG13: Y Range | EH13: =VLOOKUP(EH12,$AT$265:$AX$270,2,1) -> 3.5 | EI13: =EJ20 -> 3.5 | EJ13: =VLOOKUP(EJ12,$AT$265:$AX$270,2,1) -> 3.5 | EN13: Y Range | EO13: =VLOOKUP(EO12,$AT$265:$AX$270,3,1) -> 3.5 | EP13: =EQ20 -> 3.5 | EQ13: =VLOOKUP(EQ12,$AT$265:$AX$270,3,1) -> 3.5 | EU13: Y Range | EV13: =VLOOKUP(EV12,$AT$265:$AX$270,4,1) -> 2 | EW13: =EX20 -> 2 | EX13: =VLOOKUP(EX12,$AT$265:$AX$270,4,1) -> 2 | FB13: Y Range | FC13: =VLOOKUP(FC12,$AT$265:$AX$270,5,1) -> 1.5 | FD13: =FE20 -> 1.5 | FE13: =VLOOKUP(FE12,$AT$265:$AX$270,5,1) -> 1.5 | FK13: Y Range | FL13: =VLOOKUP(FL12,$AT$265:$AX$270,2,1) -> 3.5 | FM13: =FN20 -> 3.5 | FN13: =VLOOKUP(FN12,$AT$265:$AX$270,2,1) -> 3.5 | FR13: Y Range | FS13: =VLOOKUP(FS12,$AT$265:$AX$270,3,1) -> 3.5 | FT13: =FU20 -> 3.5 | FU13: =VLOOKUP(FU12,$AT$265:$AX$270,3,1) -> 3.5 | FY13: Y Range | FZ13: =VLOOKUP(FZ12,$AT$265:$AX$270,4,1) -> 2 | GA13: =GB20 -> 2 | GB13: =VLOOKUP(GB12,$AT$265:$AX$270,4,1) -> 2 | GF13: Y Range | GG13: =VLOOKUP(GG12,$AT$265:$AX$270,5,1) -> 1.5 | GH13: =GI20 -> 1.5 | GI13: =VLOOKUP(GI12,$AT$265:$AX$270,5,1) -> 1.5
B14: AVG BWL SPACING (ft) | AQ14: 8 | AR14: 0.9
AQ15: 9 | AR15: 0.95 | AU15: X1 | AV15: low spacing | AX15: =AV12+0.00001 -> 10.00001 | BB15: X1 | BC15: low spacing | BE15: =BC12+0.00001 -> 10.00001 | BI15: X1 | BJ15: low spacing | BL15: =BJ12+0.00001 -> 10.00001 | BP15: X1 | BQ15: low spacing | BS15: =BQ12+0.00001 -> 10.00001 | BY15: X1 | BZ15: low spacing | CB15: =BZ12+0.00001 -> 10.00001 | CF15: X1 | CG15: low spacing | CI15: =CG12+0.00001 -> 10.00001 | CM15: X1 | CN15: low spacing | CP15: =CN12+0.00001 -> 10.00001 | CT15: X1 | CU15: low spacing | CW15: =CU12+0.00001 -> 10.00001 | DC15: X1 | DD15: low spacing | DF15: =DD12+0.00001 -> 10.00001 | DJ15: X1 | DK15: low spacing | DM15: =DK12+0.00001 -> 10.00001 | DQ15: X1 | DR15: low spacing | DT15: =DR12+0.00001 -> 10.00001 | DX15: X1 | DY15: low spacing | EA15: =DY12+0.00001 -> 10.00001 | EG15: X1 | EH15: low spacing | EJ15: =EH12+0.00001 -> 10.00001 | EN15: X1 | EO15: low spacing | EQ15: =EO12+0.00001 -> 10.00001 | EU15: X1 | EV15: low spacing | EX15: =EV12+0.00001 -> 10.00001 | FB15: X1 | FC15: low spacing | FE15: =FC12+0.00001 -> 10.00001 | FK15: X1 | FL15: low spacing | FN15: =FL12+0.00001 -> 10.00001 | FR15: X1 | FS15: low spacing | FU15: =FS12+0.00001 -> 10.00001 | FY15: X1 | FZ15: low spacing | GB15: =FZ12+0.00001 -> 10.00001 | GF15: X1 | GG15: low spacing | GI15: =GG12+0.00001 -> 10.00001
B16: TABULAR REQUIRED (ft) | E16: =IF(LEN(E2)<2," ",IF(AW2=0," ",IF(E14=0,"Spacing = 0 ft",IF(E14>60,"Spacing > 60 ft",VLOOKUP(E2*AU4*AU5,BC181:BD228,2,1))))) ->  | L16: =IF(LEN(L2)<2," ",IF(CA2=0," ",IF(L14=0,"Spacing = 0 ft",IF(L14>60,"Spacing > 60 ft",VLOOKUP(L2*BY4*BY5,CG181:CH228,2,1))))) ->  | S16: =IF(LEN(S2)<2," ",IF(DE2=0," ",IF(S14=0,"Spacing = 0 ft",IF(S14>60,"Spacing > 60 ft",VLOOKUP(S2*DC4*DC5,DK181:DL228,2,1))))) ->  | Z16: =IF(LEN(Z2)<2," ",IF(EI2=0," ",IF(Z14=0,"Spacing = 0 ft",IF(Z14>60,"Spacing > 60 ft",VLOOKUP(Z2*EG4*EG5,EO181:EP228,2,1))))) ->  | AG16: =IF(LEN(AG2)<2," ",IF(FM2=0," ",IF(AG14=0,"Spacing = 0 ft",IF(AG14>60,"Spacing > 60 ft",VLOOKUP(AG2*FK4*FK5,FS181:FT228,2,1))))) ->  | AQ16: 10 | AR16: 1 | AU16: X2 | AV16: high spacing | AX16: =AX12 -> 10 | BB16: X2 | BC16: high spacing | BE16: =BE12 -> 10 | BI16: X2 | BJ16: high spacing | BL16: =BL12 -> 10 | BP16: X2 | BQ16: high spacing | BS16: =BS12 -> 10 | BY16: X2 | BZ16: high spacing | CB16: =CB12 -> 10 | CF16: X2 | CG16: high spacing | CI16: =CI12 -> 10 | CM16: X2 | CN16: high spacing | CP16: =CP12 -> 10 | CT16: X2 | CU16: high spacing | CW16: =CW12 -> 10 | DC16: X2 | DD16: high spacing | DF16: =DF12 -> 10 | DJ16: X2 | DK16: high spacing | DM16: =DM12 -> 10 | DQ16: X2 | DR16: high spacing | DT16: =DT12 -> 10 | DX16: X2 | DY16: high spacing | EA16: =EA12 -> 10 | EG16: X2 | EH16: high spacing | EJ16: =EJ12 -> 10 | EN16: X2 | EO16: high spacing | EQ16: =EQ12 -> 10 | EU16: X2 | EV16: high spacing | EX16: =EX12 -> 10 | FB16: X2 | FC16: high spacing | FE16: =FE12 -> 10 | FK16: X2 | FL16: high spacing | FN16: =FN12 -> 10 | FR16: X2 | FS16: high spacing | FU16: =FU12 -> 10 | FY16: X2 | FZ16: high spacing | GB16: =GB12 -> 10 | GF16: X2 | GG16: high spacing | GI16: =GI12 -> 10
AQ17: 11 | AR17: 1.1 | AU17: X | AV17: actual spacing | AX17: =AW11 -> 10 | BB17: X | BC17: actual spacing | BE17: =BD11 -> 10 | BI17: X | BJ17: actual spacing | BL17: =BK11 -> 10 | BP17: X | BQ17: actual spacing | BS17: =BR11 -> 10 | BY17: X | BZ17: actual spacing | CB17: =CA11 -> 10 | CF17: X | CG17: actual spacing | CI17: =CH11 -> 10 | CM17: X | CN17: actual spacing | CP17: =CO11 -> 10 | CT17: X | CU17: actual spacing | CW17: =CV11 -> 10 | DC17: X | DD17: actual spacing | DF17: =DE11 -> 10 | DJ17: X | DK17: actual spacing | DM17: =DL11 -> 10 | DQ17: X | DR17: actual spacing | DT17: =DS11 -> 10 | DX17: X | DY17: actual spacing | EA17: =DZ11 -> 10 | EG17: X | EH17: actual spacing | EJ17: =EI11 -> 10 | EN17: X | EO17: actual spacing | EQ17: =EP11 -> 10 | EU17: X | EV17: actual spacing | EX17: =EW11 -> 10 | FB17: X | FC17: actual spacing | FE17: =FD11 -> 10 | FK17: X | FL17: actual spacing | FN17: =FM11 -> 10 | FR17: X | FS17: actual spacing | FU17: =FT11 -> 10 | FY17: X | FZ17: actual spacing | GB17: =GA11 -> 10 | GF17: X | GG17: actual spacing | GI17: =GH11 -> 10
B18: ADJUSTMENT | C18: EXPOSURE | E18: B | H18: =IF(F10="X",VLOOKUP(E18,$AT$339:$AU$341,2,1), IF(H9="X",VLOOKUP(E18,$AT$342:$AU$344,2,1),IF(H10="X",VLOOKUP(E18,$AT$342:$AU$344,2,1), IF(J8="X",VLOOKUP(E18,$AT$345:$AU$347,2,1),IF(J9="X",VLOOKUP(E18,$AT$345:$AU$347,2,1),IF(J10="X",VLOOKUP(E18,$AT$345:$AU$347,2,1)," ")))))) -> 1 | L18: =IF(ISBLANK(E18)," ",E18) -> B | O18: =IF(M10="X",VLOOKUP(L18,$AT$339:$AU$341,2,1), IF(O9="X",VLOOKUP(L18,$AT$342:$AU$344,2,1),IF(O10="X",VLOOKUP(L18,$AT$342:$AU$344,2,1), IF(Q8="X",VLOOKUP(L18,$AT$345:$AU$347,2,1),IF(Q9="X",VLOOKUP(L18,$AT$345:$AU$347,2,1),IF(Q10="X",VLOOKUP(L18,$AT$345:$AU$347,2,1)," ")))))) ->  | S18: =L18 -> B | V18: =IF(T10="X",VLOOKUP(S18,$AT$339:$AU$341,2,1), IF(V9="X",VLOOKUP(S18,$AT$342:$AU$344,2,1),IF(V10="X",VLOOKUP(S18,$AT$342:$AU$344,2,1), IF(X8="X",VLOOKUP(S18,$AT$345:$AU$347,2,1),IF(X9="X",VLOOKUP(S18,$AT$345:$AU$347,2,1),IF(X10="X",VLOOKUP(S18,$AT$345:$AU$347,2,1)," ")))))) ->  | Z18: =S18 -> B | AC18: =IF(AA10="X",VLOOKUP(Z18,$AT$339:$AU$341,2,1), IF(AC9="X",VLOOKUP(Z18,$AT$342:$AU$344,2,1),IF(AC10="X",VLOOKUP(Z18,$AT$342:$AU$344,2,1), IF(AE8="X",VLOOKUP(Z18,$AT$345:$AU$347,2,1),IF(AE9="X",VLOOKUP(Z18,$AT$345:$AU$347,2,1),IF(AE10="X",VLOOKUP(Z18,$AT$345:$AU$347,2,1)," ")))))) ->  | AG18: =Z18 -> B | AJ18: =IF(AH10="X",VLOOKUP(AG18,$AT$339:$AU$341,2,1), IF(AJ9="X",VLOOKUP(AG18,$AT$342:$AU$344,2,1),IF(AJ10="X",VLOOKUP(AG18,$AT$342:$AU$344,2,1), IF(AL8="X",VLOOKUP(AG18,$AT$345:$AU$347,2,1),IF(AL9="X",VLOOKUP(AG18,$AT$345:$AU$347,2,1),IF(AL10="X",VLOOKUP(AG18,$AT$345:$AU$347,2,1)," ")))))) ->  | AQ18: 12 | AR18: 1.2 | AU18: Y1 | AV18: low tabular | AX18: =AV13 -> 3.5 | BB18: Y1 | BC18: low tabular | BE18: =BC13 -> 3.5 | BI18: Y1 | BJ18: low tabular | BL18: =BJ13 -> 2 | BP18: Y1 | BQ18: low tabular | BS18: =BQ13 -> 1.5 | BY18: Y1 | BZ18: low tabular | CB18: =BZ13 -> 3.5 | CF18: Y1 | CG18: low tabular | CI18: =CG13 -> 3.5 | CM18: Y1 | CN18: low tabular | CP18: =CN13 -> 2 | CT18: Y1 | CU18: low tabular | CW18: =CU13 -> 1.5 | DC18: Y1 | DD18: low tabular | DF18: =DD13 -> 3.5 | DJ18: Y1 | DK18: low tabular | DM18: =DK13 -> 3.5 | DQ18: Y1 | DR18: low tabular | DT18: =DR13 -> 2 | DX18: Y1 | DY18: low tabular | EA18: =DY13 -> 1.5 | EG18: Y1 | EH18: low tabular | EJ18: =EH13 -> 3.5 | EN18: Y1 | EO18: low tabular | EQ18: =EO13 -> 3.5 | EU18: Y1 | EV18: low tabular | EX18: =EV13 -> 2 | FB18: Y1 | FC18: low tabular | FE18: =FC13 -> 1.5 | FK18: Y1 | FL18: low tabular | FN18: =FL13 -> 3.5 | FR18: Y1 | FS18: low tabular | FU18: =FS13 -> 3.5 | FY18: Y1 | FZ18: low tabular | GB18: =FZ13 -> 2 | GF18: Y1 | GG18: low tabular | GI18: =GG13 -> 1.5
AU19: Y2 | AV19: high tabular | AX19: =AX13 -> 3.5 | BB19: Y2 | BC19: high tabular | BE19: =BE13 -> 3.5 | BI19: Y2 | BJ19: high tabular | BL19: =BL13 -> 2 | BP19: Y2 | BQ19: high tabular | BS19: =BS13 -> 1.5 | BY19: Y2 | BZ19: high tabular | CB19: =CB13 -> 3.5 | CF19: Y2 | CG19: high tabular | CI19: =CI13 -> 3.5 | CM19: Y2 | CN19: high tabular | CP19: =CP13 -> 2 | CT19: Y2 | CU19: high tabular | CW19: =CW13 -> 1.5 | DC19: Y2 | DD19: high tabular | DF19: =DF13 -> 3.5 | DJ19: Y2 | DK19: high tabular | DM19: =DM13 -> 3.5 | DQ19: Y2 | DR19: high tabular | DT19: =DT13 -> 2 | DX19: Y2 | DY19: high tabular | EA19: =EA13 -> 1.5 | EG19: Y2 | EH19: high tabular | EJ19: =EJ13 -> 3.5 | EN19: Y2 | EO19: high tabular | EQ19: =EQ13 -> 3.5 | EU19: Y2 | EV19: high tabular | EX19: =EX13 -> 2 | FB19: Y2 | FC19: high tabular | FE19: =FE13 -> 1.5 | FK19: Y2 | FL19: high tabular | FN19: =FN13 -> 3.5 | FR19: Y2 | FS19: high tabular | FU19: =FU13 -> 3.5 | FY19: Y2 | FZ19: high tabular | GB19: =GB13 -> 2 | GF19: Y2 | GG19: high tabular | GI19: =GI13 -> 1.5
C20: EAVE-RIDGE HT (ft) | H20: =IF(ISBLANK(E20)," ",IF(AU4=0," ",IF(AU4=1,AW189,IF(AU4=2,AW207,AW225)))) ->  | O20: =IF(ISBLANK(L20)," ",IF(BY4=0," ",IF(BY4=1,CA189,IF(BY4=2,CA207,CA225)))) ->  | V20: =IF(ISBLANK(S20)," ",IF(DC4=0," ",IF(DC4=1,DE189,IF(DC4=2,DE207,DE225)))) ->  | AC20: =IF(ISBLANK(Z20)," ",IF(EG4=0," ",IF(EG4=1,EI189,IF(EG4=2,EI207,EI225)))) ->  | AJ20: =IF(ISBLANK(AG20)," ",IF(FK4=0," ",IF(FK4=1,FM189,IF(FK4=2,FM207,FM225)))) ->  | AU20: Y | AV20: TABULAR VALUE | AX20: =AX18+(AX17-AX15)*(AX19-AX18)/(AX16-AX15) -> 3.5 | BB20: Y | BC20: TABULAR VALUE | BE20: =BE18+(BE17-BE15)*(BE19-BE18)/(BE16-BE15) -> 3.5 | BI20: Y | BJ20: TABULAR VALUE | BL20: =BL18+(BL17-BL15)*(BL19-BL18)/(BL16-BL15) -> 2 | BP20: Y | BQ20: TABULAR VALUE | BS20: =BS18+(BS17-BS15)*(BS19-BS18)/(BS16-BS15) -> 1.5 | BY20: Y | BZ20: TABULAR VALUE | CB20: =CB18+(CB17-CB15)*(CB19-CB18)/(CB16-CB15) -> 3.5 | CF20: Y | CG20: TABULAR VALUE | CI20: =CI18+(CI17-CI15)*(CI19-CI18)/(CI16-CI15) -> 3.5 | CM20: Y | CN20: TABULAR VALUE | CP20: =CP18+(CP17-CP15)*(CP19-CP18)/(CP16-CP15) -> 2 | CT20: Y | CU20: TABULAR VALUE | CW20: =CW18+(CW17-CW15)*(CW19-CW18)/(CW16-CW15) -> 1.5 | DC20: Y | DD20: TABULAR VALUE | DF20: =DF18+(DF17-DF15)*(DF19-DF18)/(DF16-DF15) -> 3.5 | DJ20: Y | DK20: TABULAR VALUE | DM20: =DM18+(DM17-DM15)*(DM19-DM18)/(DM16-DM15) -> 3.5 | DQ20: Y | DR20: TABULAR VALUE | DT20: =DT18+(DT17-DT15)*(DT19-DT18)/(DT16-DT15) -> 2 | DX20: Y | DY20: TABULAR VALUE | EA20: =EA18+(EA17-EA15)*(EA19-EA18)/(EA16-EA15) -> 1.5 | EG20: Y | EH20: TABULAR VALUE | EJ20: =EJ18+(EJ17-EJ15)*(EJ19-EJ18)/(EJ16-EJ15) -> 3.5 | EN20: Y | EO20: TABULAR VALUE | EQ20: =EQ18+(EQ17-EQ15)*(EQ19-EQ18)/(EQ16-EQ15) -> 3.5 | EU20: Y | EV20: TABULAR VALUE | EX20: =EX18+(EX17-EX15)*(EX19-EX18)/(EX16-EX15) -> 2 | FB20: Y | FC20: TABULAR VALUE | FE20: =FE18+(FE17-FE15)*(FE19-FE18)/(FE16-FE15) -> 1.5 | FK20: Y | FL20: TABULAR VALUE | FN20: =FN18+(FN17-FN15)*(FN19-FN18)/(FN16-FN15) -> 3.5 | FR20: Y | FS20: TABULAR VALUE | FU20: =FU18+(FU17-FU15)*(FU19-FU18)/(FU16-FU15) -> 3.5 | FY20: Y | FZ20: TABULAR VALUE | GB20: =GB18+(GB17-GB15)*(GB19-GB18)/(GB16-GB15) -> 2 | GF20: Y | GG20: TABULAR VALUE | GI20: =GI18+(GI17-GI15)*(GI19-GI18)/(GI16-GI15) -> 1.5
AQ21: BWL | AR21: VAL | AU21: COLUMN 1 | AX21: 101 | BB21: COLUMN 1 | BE21: 201 | BI21: COLUMN 1 | BL21: 301 | BP21: COLUMN 1 | BS21: 401 | BY21: =BY7 -> COLUMN 2 | CB21: 101 | CF21: =BY21 -> COLUMN 2 | CI21: 201 | CM21: =CF21 -> COLUMN 2 | CP21: 301 | CT21: =CM21 -> COLUMN 2 | CW21: 401 | DC21: =DC7 -> COLUMN 3 | DF21: 101 | DJ21: =DC21 -> COLUMN 3 | DM21: 201 | DQ21: =DJ21 -> COLUMN 3 | DT21: 301 | DX21: =DQ21 -> COLUMN 3 | EA21: 401 | EG21: =EG7 -> COLUMN 4 | EJ21: 101 | EN21: =EG21 -> COLUMN 4 | EQ21: 201 | EU21: =EN21 -> COLUMN 4 | EX21: 301 | FB21: =EU21 -> COLUMN 4 | FE21: 401 | FK21: =FK7 -> COLUMN 5 | FN21: 101 | FR21: =FK21 -> COLUMN 5 | FU21: 201 | FY21: =FR21 -> COLUMN 5 | GB21: 301 | GF21: =FY21 -> COLUMN 5 | GI21: 401
C22: WALL HEIGHT (ft) | H22: =IF(ISBLANK(E22)," ",VLOOKUP(E22,$AQ$14:$AR$17,2,1)) ->  | O22: =IF(ISBLANK(L22)," ",VLOOKUP(L22,$AQ$14:$AR$17,2,1)) ->  | V22: =IF(ISBLANK(S22)," ",VLOOKUP(S22,$AQ$14:$AR$17,2,1)) ->  | AC22: =IF(ISBLANK(Z22)," ",VLOOKUP(Z22,$AQ$14:$AR$17,2,1)) ->  | AJ22: =IF(ISBLANK(AG22)," ",VLOOKUP(AG22,$AQ$14:$AR$17,2,1)) ->  | AQ22: 2 | AR22: 1 | AU22: INTERPOLATED TABULAR VALUE | AX22: =$AT$25*$AT$26*AX21 -> 17170 | BB22: INTERPOLATED TABULAR VALUE | BE22: =$AT$25*$AT$26*BE21 -> 34170 | BI22: INTERPOLATED TABULAR VALUE | BL22: =$AT$25*$AT$26*BL21 -> 51170 | BP22: INTERPOLATED TABULAR VALUE | BS22: =$AT$25*$AT$26*BS21 -> 68170 | BY22: INTERPOLATED TABULAR VALUE | CB22: =$AT$25*$AT$26*CB21 -> 17170 | CF22: INTERPOLATED TABULAR VALUE | CI22: =$AT$25*$AT$26*CI21 -> 34170 | CM22: INTERPOLATED TABULAR VALUE | CP22: =$AT$25*$AT$26*CP21 -> 51170 | CT22: INTERPOLATED TABULAR VALUE | CW22: =$AT$25*$AT$26*CW21 -> 68170 | DC22: INTERPOLATED TABULAR VALUE | DF22: =$AT$25*$AT$26*DF21 -> 17170 | DJ22: INTERPOLATED TABULAR VALUE | DM22: =$AT$25*$AT$26*DM21 -> 34170 | DQ22: INTERPOLATED TABULAR VALUE | DT22: =$AT$25*$AT$26*DT21 -> 51170 | DX22: INTERPOLATED TABULAR VALUE | EA22: =$AT$25*$AT$26*EA21 -> 68170 | EG22: INTERPOLATED TABULAR VALUE | EJ22: =$AT$25*$AT$26*EJ21 -> 17170 | EN22: INTERPOLATED TABULAR VALUE | EQ22: =$AT$25*$AT$26*EQ21 -> 34170 | EU22: INTERPOLATED TABULAR VALUE | EX22: =$AT$25*$AT$26*EX21 -> 51170 | FB22: INTERPOLATED TABULAR VALUE | FE22: =$AT$25*$AT$26*FE21 -> 68170 | FK22: INTERPOLATED TABULAR VALUE | FN22: =$AT$25*$AT$26*FN21 -> 17170 | FR22: INTERPOLATED TABULAR VALUE | FU22: =$AT$25*$AT$26*FU21 -> 34170 | FY22: INTERPOLATED TABULAR VALUE | GB22: =$AT$25*$AT$26*GB21 -> 51170 | GF22: INTERPOLATED TABULAR VALUE | GI22: =$AT$25*$AT$26*GI21 -> 68170
AQ23: 3 | AR23: 1.3 | AU23: Y = Y1 + (X-X1) * (Y2-Y1)/(X2-X1) | BB23: Y = Y1 + (X-X1) * (Y2-Y1)/(X2-X1) | BI23: Y = Y1 + (X-X1) * (Y2-Y1)/(X2-X1) | BP23: Y = Y1 + (X-X1) * (Y2-Y1)/(X2-X1) | BY23: Y = Y1 + (X-X1) * (Y2-Y1)/(X2-X1) | CF23: Y = Y1 + (X-X1) * (Y2-Y1)/(X2-X1) | CM23: Y = Y1 + (X-X1) * (Y2-Y1)/(X2-X1) | CT23: Y = Y1 + (X-X1) * (Y2-Y1)/(X2-X1) | DC23: Y = Y1 + (X-X1) * (Y2-Y1)/(X2-X1) | DJ23: Y = Y1 + (X-X1) * (Y2-Y1)/(X2-X1) | DQ23: Y = Y1 + (X-X1) * (Y2-Y1)/(X2-X1) | DX23: Y = Y1 + (X-X1) * (Y2-Y1)/(X2-X1) | EG23: Y = Y1 + (X-X1) * (Y2-Y1)/(X2-X1) | EN23: Y = Y1 + (X-X1) * (Y2-Y1)/(X2-X1) | EU23: Y = Y1 + (X-X1) * (Y2-Y1)/(X2-X1) | FB23: Y = Y1 + (X-X1) * (Y2-Y1)/(X2-X1) | FK23: Y = Y1 + (X-X1) * (Y2-Y1)/(X2-X1) | FR23: Y = Y1 + (X-X1) * (Y2-Y1)/(X2-X1) | FY23: Y = Y1 + (X-X1) * (Y2-Y1)/(X2-X1) | GF23: Y = Y1 + (X-X1) * (Y2-Y1)/(X2-X1)
C24: # BWLs | H24: =IF(ISBLANK(E24)," ",VLOOKUP(E24,$AQ22:$AR25,2,1)) ->  | O24: =IF(ISBLANK(L24)," ",VLOOKUP(L24,$AQ22:$AR25,2,1)) ->  | V24: =IF(ISBLANK(S24)," ",VLOOKUP(S24,$AQ22:$AR25,2,1)) ->  | AC24: =IF(ISBLANK(Z24)," ",VLOOKUP(Z24,$AQ22:$AR25,2,1)) ->  | AJ24: =IF(ISBLANK(AG24)," ",VLOOKUP(AG24,$AQ22:$AR25,2,1)) ->  | AQ24: 4 | AR24: 1.45
AQ25: ≥5 | AR25: 1.6 | AT25: 85 | AU25: Avg spacing | AW25: =AW11 -> 10 | BB25: Avg spacing | BD25: =AW25 -> 10 | BI25: Avg spacing | BK25: =BD25 -> 10 | BP25: Avg spacing | BR25: =BK25 -> 10 | BX25: 85 | BY25: Avg spacing | CA25: =CA11 -> 10 | CF25: Avg spacing | CH25: =CA25 -> 10 | CM25: Avg spacing | CO25: =CH25 -> 10 | CT25: Avg spacing | CV25: =CO25 -> 10 | DB25: 85 | DC25: Avg spacing | DE25: =DE11 -> 10 | DJ25: Avg spacing | DL25: =DE25 -> 10 | DQ25: Avg spacing | DS25: =DL25 -> 10 | DX25: Avg spacing | DZ25: =DS25 -> 10 | EF25: 85 | EG25: Avg spacing | EI25: =EI11 -> 10 | EN25: Avg spacing | EP25: =EI25 -> 10 | EU25: Avg spacing | EW25: =EP25 -> 10 | FB25: Avg spacing | FD25: =EW25 -> 10 | FJ25: 85 | FK25: Avg spacing | FM25: =FM11 -> 10 | FR25: Avg spacing | FT25: =FM25 -> 10 | FY25: Avg spacing | GA25: =FT25 -> 10 | GF25: Avg spacing | GH25: =GA25 -> 10
C26: OMIT INTERIOR GB | E26: NO | H26: =IF(E26="NO",1,1.4) -> 1 | L26: NO | O26: =IF(L26="NO",1,1.4) -> 1 | S26: NO | V26: =IF(S26="NO",1,1.4) -> 1 | Z26: NO | AC26: =IF(Z26="NO",1,1.4) -> 1 | AG26: NO | AJ26: =IF(AG26="NO",1,1.4) -> 1 | AT26: 2 | AU26: X Range | AV26: =FLOOR(AW25,10) -> 10 | AX26: =CEILING(AW25,10) -> 10 | BB26: X Range | BC26: =FLOOR(BD25,10) -> 10 | BE26: =CEILING(BD25,10) -> 10 | BI26: X Range | BJ26: =FLOOR(BK25,10) -> 10 | BL26: =CEILING(BK25,10) -> 10 | BP26: X Range | BQ26: =FLOOR(BR25,10) -> 10 | BS26: =CEILING(BR25,10) -> 10 | BX26: 2 | BY26: X Range | BZ26: =FLOOR(CA25,10) -> 10 | CB26: =CEILING(CA25,10) -> 10 | CF26: X Range | CG26: =FLOOR(CH25,10) -> 10 | CI26: =CEILING(CH25,10) -> 10 | CM26: X Range | CN26: =FLOOR(CO25,10) -> 10 | CP26: =CEILING(CO25,10) -> 10 | CT26: X Range | CU26: =FLOOR(CV25,10) -> 10 | CW26: =CEILING(CV25,10) -> 10 | DB26: 2 | DC26: X Range | DD26: =FLOOR(DE25,10) -> 10 | DF26: =CEILING(DE25,10) -> 10 | DJ26: X Range | DK26: =FLOOR(DL25,10) -> 10 | DM26: =CEILING(DL25,10) -> 10 | DQ26: X Range | DR26: =FLOOR(DS25,10) -> 10 | DT26: =CEILING(DS25,10) -> 10 | DX26: X Range | DY26: =FLOOR(DZ25,10) -> 10 | EA26: =CEILING(DZ25,10) -> 10 | EF26: 2 | EG26: X Range | EH26: =FLOOR(EI25,10) -> 10 | EJ26: =CEILING(EI25,10) -> 10 | EN26: X Range | EO26: =FLOOR(EP25,10) -> 10 | EQ26: =CEILING(EP25,10) -> 10 | EU26: X Range | EV26: =FLOOR(EW25,10) -> 10 | EX26: =CEILING(EW25,10) -> 10 | FB26: X Range | FC26: =FLOOR(FD25,10) -> 10 | FE26: =CEILING(FD25,10) -> 10 | FJ26: 2 | FK26: X Range | FL26: =FLOOR(FM25,10) -> 10 | FN26: =CEILING(FM25,10) -> 10 | FR26: X Range | FS26: =FLOOR(FT25,10) -> 10 | FU26: =CEILING(FT25,10) -> 10 | FY26: X Range | FZ26: =FLOOR(GA25,10) -> 10 | GB26: =CEILING(GA25,10) -> 10 | GF26: X Range | GG26: =FLOOR(GH25,10) -> 10 | GI26: =CEILING(GH25,10) -> 10
AU27: Y Range | AV27: =VLOOKUP(AV26,$AT$271:$AX$276,2,1) -> 6.5 | AW27: =AX34 -> 6.5 | AX27: =VLOOKUP(AX26,$AT$271:$AX$276,2,1) -> 6.5 | BB27: Y Range | BC27: =VLOOKUP(BC26,$AT$271:$AX$276,3,1) -> 6.5 | BD27: =BE34 -> 6.5 | BE27: =VLOOKUP(BE26,$AT$271:$AX$276,3,1) -> 6.5 | BI27: Y Range | BJ27: =VLOOKUP(BJ26,$AT$271:$AX$276,4,1) -> 3.5 | BK27: =BL34 -> 3.5 | BL27: =VLOOKUP(BL26,$AT$271:$AX$276,4,1) -> 3.5 | BP27: Y Range | BQ27: =VLOOKUP(BQ26,$AT$271:$AX$276,5,1) -> 3 | BR27: =BS34 -> 3 | BS27: =VLOOKUP(BS26,$AT$271:$AX$276,5,1) -> 3 | BY27: Y Range | BZ27: =VLOOKUP(BZ26,$AT$271:$AX$276,2,1) -> 6.5 | CA27: =CB34 -> 6.5 | CB27: =VLOOKUP(CB26,$AT$271:$AX$276,2,1) -> 6.5 | CF27: Y Range | CG27: =VLOOKUP(CG26,$AT$271:$AX$276,3,1) -> 6.5 | CH27: =CI34 -> 6.5 | CI27: =VLOOKUP(CI26,$AT$271:$AX$276,3,1) -> 6.5 | CM27: Y Range | CN27: =VLOOKUP(CN26,$AT$271:$AX$276,4,1) -> 3.5 | CO27: =CP34 -> 3.5 | CP27: =VLOOKUP(CP26,$AT$271:$AX$276,4,1) -> 3.5 | CT27: Y Range | CU27: =VLOOKUP(CU26,$AT$271:$AX$276,5,1) -> 3 | CV27: =CW34 -> 3 | CW27: =VLOOKUP(CW26,$AT$271:$AX$276,5,1) -> 3 | DC27: Y Range | DD27: =VLOOKUP(DD26,$AT$271:$AX$276,2,1) -> 6.5 | DE27: =DF34 -> 6.5 | DF27: =VLOOKUP(DF26,$AT$271:$AX$276,2,1) -> 6.5 | DJ27: Y Range | DK27: =VLOOKUP(DK26,$AT$271:$AX$276,3,1) -> 6.5 | DL27: =DM34 -> 6.5 | DM27: =VLOOKUP(DM26,$AT$271:$AX$276,3,1) -> 6.5 | DQ27: Y Range | DR27: =VLOOKUP(DR26,$AT$271:$AX$276,4,1) -> 3.5 | DS27: =DT34 -> 3.5 | DT27: =VLOOKUP(DT26,$AT$271:$AX$276,4,1) -> 3.5 | DX27: Y Range | DY27: =VLOOKUP(DY26,$AT$271:$AX$276,5,1) -> 3 | DZ27: =EA34 -> 3 | EA27: =VLOOKUP(EA26,$AT$271:$AX$276,5,1) -> 3 | EG27: Y Range | EH27: =VLOOKUP(EH26,$AT$271:$AX$276,2,1) -> 6.5 | EI27: =EJ34 -> 6.5 | EJ27: =VLOOKUP(EJ26,$AT$271:$AX$276,2,1) -> 6.5 | EN27: Y Range | EO27: =VLOOKUP(EO26,$AT$271:$AX$276,3,1) -> 6.5 | EP27: =EQ34 -> 6.5 | EQ27: =VLOOKUP(EQ26,$AT$271:$AX$276,3,1) -> 6.5 | EU27: Y Range | EV27: =VLOOKUP(EV26,$AT$271:$AX$276,4,1) -> 3.5 | EW27: =EX34 -> 3.5 | EX27: =VLOOKUP(EX26,$AT$271:$AX$276,4,1) -> 3.5 | FB27: Y Range | FC27: =VLOOKUP(FC26,$AT$271:$AX$276,5,1) -> 3 | FD27: =FE34 -> 3 | FE27: =VLOOKUP(FE26,$AT$271:$AX$276,5,1) -> 3 | FK27: Y Range | FL27: =VLOOKUP(FL26,$AT$271:$AX$276,2,1) -> 6.5 | FM27: =FN34 -> 6.5 | FN27: =VLOOKUP(FN26,$AT$271:$AX$276,2,1) -> 6.5 | FR27: Y Range | FS27: =VLOOKUP(FS26,$AT$271:$AX$276,3,1) -> 6.5 | FT27: =FU34 -> 6.5 | FU27: =VLOOKUP(FU26,$AT$271:$AX$276,3,1) -> 6.5 | FY27: Y Range | FZ27: =VLOOKUP(FZ26,$AT$271:$AX$276,4,1) -> 3.5 | GA27: =GB34 -> 3.5 | GB27: =VLOOKUP(GB26,$AT$271:$AX$276,4,1) -> 3.5 | GF27: Y Range | GG27: =VLOOKUP(GG26,$AT$271:$AX$276,5,1) -> 3 | GH27: =GI34 -> 3 | GI27: =VLOOKUP(GI26,$AT$271:$AX$276,5,1) -> 3
C28: ADD PAIR 800# HOLD DOWNS | E28: NO | H28: =IF(E28="NO", 1,0.8) -> 1 | L28: NO | O28: =IF(L28="NO", 1,0.8) -> 1 | S28: NO | V28: =IF(S28="NO", 1,0.8) -> 1 | Z28: NO | AC28: =IF(Z28="NO", 1,0.8) -> 1 | AG28: NO | AJ28: =IF(AG28="NO", 1,0.8) -> 1
AQ29: LIB | AU29: X1 | AV29: low spacing | AX29: =AV26+0.00001 -> 10.00001 | BB29: X1 | BC29: low spacing | BE29: =BC26+0.00001 -> 10.00001 | BI29: X1 | BJ29: low spacing | BL29: =BJ26+0.00001 -> 10.00001 | BP29: X1 | BQ29: low spacing | BS29: =BQ26+0.00001 -> 10.00001 | BY29: X1 | BZ29: low spacing | CB29: =BZ26+0.00001 -> 10.00001 | CF29: X1 | CG29: low spacing | CI29: =CG26+0.00001 -> 10.00001 | CM29: X1 | CN29: low spacing | CP29: =CN26+0.00001 -> 10.00001 | CT29: X1 | CU29: low spacing | CW29: =CU26+0.00001 -> 10.00001 | DC29: X1 | DD29: low spacing | DF29: =DD26+0.00001 -> 10.00001 | DJ29: X1 | DK29: low spacing | DM29: =DK26+0.00001 -> 10.00001 | DQ29: X1 | DR29: low spacing | DT29: =DR26+0.00001 -> 10.00001 | DX29: X1 | DY29: low spacing | EA29: =DY26+0.00001 -> 10.00001 | EG29: X1 | EH29: low spacing | EJ29: =EH26+0.00001 -> 10.00001 | EN29: X1 | EO29: low spacing | EQ29: =EO26+0.00001 -> 10.00001 | EU29: X1 | EV29: low spacing | EX29: =EV26+0.00001 -> 10.00001 | FB29: X1 | FC29: low spacing | FE29: =FC26+0.00001 -> 10.00001 | FK29: X1 | FL29: low spacing | FN29: =FL26+0.00001 -> 10.00001 | FR29: X1 | FS29: low spacing | FU29: =FS26+0.00001 -> 10.00001 | FY29: X1 | FZ29: low spacing | GB29: =FZ26+0.00001 -> 10.00001 | GF29: X1 | GG29: low spacing | GI29: =GG26+0.00001 -> 10.00001
C30: METHOD GB FASTEN @ 4" o.c | E30: NO | H30: =IF(E30="NO", 1,0.7) -> 1 | L30: NO | O30: =IF(L30="NO", 1,0.7) -> 1 | S30: NO | V30: =IF(S30="NO", 1,0.7) -> 1 | Z30: NO | AC30: =IF(Z30="NO", 1,0.7) -> 1 | AG30: NO | AJ30: =IF(AG30="NO", 1,0.7) -> 1 | AQ30: GB | AU30: X2 | AV30: high spacing | AX30: =AX26 -> 10 | BB30: X2 | BC30: high spacing | BE30: =BE26 -> 10 | BI30: X2 | BJ30: high spacing | BL30: =BL26 -> 10 | BP30: X2 | BQ30: high spacing | BS30: =BS26 -> 10 | BY30: X2 | BZ30: high spacing | CB30: =CB26 -> 10 | CF30: X2 | CG30: high spacing | CI30: =CI26 -> 10 | CM30: X2 | CN30: high spacing | CP30: =CP26 -> 10 | CT30: X2 | CU30: high spacing | CW30: =CW26 -> 10 | DC30: X2 | DD30: high spacing | DF30: =DF26 -> 10 | DJ30: X2 | DK30: high spacing | DM30: =DM26 -> 10 | DQ30: X2 | DR30: high spacing | DT30: =DT26 -> 10 | DX30: X2 | DY30: high spacing | EA30: =EA26 -> 10 | EG30: X2 | EH30: high spacing | EJ30: =EJ26 -> 10 | EN30: X2 | EO30: high spacing | EQ30: =EQ26 -> 10 | EU30: X2 | EV30: high spacing | EX30: =EX26 -> 10 | FB30: X2 | FC30: high spacing | FE30: =FE26 -> 10 | FK30: X2 | FL30: high spacing | FN30: =FN26 -> 10 | FR30: X2 | FS30: high spacing | FU30: =FU26 -> 10 | FY30: X2 | FZ30: high spacing | GB30: =GB26 -> 10 | GF30: X2 | GG30: high spacing | GI30: =GI26 -> 10
AQ31: WSP SFB PCP HPS CS-SFB | AU31: X | AV31: actual spacing | AX31: =AW25 -> 10 | BB31: X | BC31: actual spacing | BE31: =BD25 -> 10 | BI31: X | BJ31: actual spacing | BL31: =BK25 -> 10 | BP31: X | BQ31: actual spacing | BS31: =BR25 -> 10 | BY31: X | BZ31: actual spacing | CB31: =CA25 -> 10 | CF31: X | CG31: actual spacing | CI31: =CH25 -> 10 | CM31: X | CN31: actual spacing | CP31: =CO25 -> 10 | CT31: X | CU31: actual spacing | CW31: =CV25 -> 10 | DC31: X | DD31: actual spacing | DF31: =DE25 -> 10 | DJ31: X | DK31: actual spacing | DM31: =DL25 -> 10 | DQ31: X | DR31: actual spacing | DT31: =DS25 -> 10 | DX31: X | DY31: actual spacing | EA31: =DZ25 -> 10 | EG31: X | EH31: actual spacing | EJ31: =EI25 -> 10 | EN31: X | EO31: actual spacing | EQ31: =EP25 -> 10 | EU31: X | EV31: actual spacing | EX31: =EW25 -> 10 | FB31: X | FC31: actual spacing | FE31: =FD25 -> 10 | FK31: X | FL31: actual spacing | FN31: =FM25 -> 10 | FR31: X | FS31: actual spacing | FU31: =FT25 -> 10 | FY31: X | FZ31: actual spacing | GB31: =GA25 -> 10 | GF31: X | GG31: actual spacing | GI31: =GH25 -> 10
B32: REQUIRED BWP LENGTH (ft) | E32: =IF(ISBLANK(E14)," ",IF(E14=0," ",E16*H18*H20*H22*H24*H26*H28*H30)) ->  | L32: =IF(ISBLANK(L14)," ",IF(L14=0," ",L16*O18*O20*O22*O24*O26*O28*O30)) ->  | S32: =IF(ISBLANK(S14)," ",IF(S14=0," ",S16*V18*V20*V22*V24*V26*V28*V30)) ->  | Z32: =IF(ISBLANK(Z14)," ",IF(Z14=0," ",Z16*AC18*AC20*AC22*AC24*AC26*AC28*AC30)) ->  | AG32: =IF(ISBLANK(AG14)," ",IF(AG14=0," ",AG16*AJ18*AJ20*AJ22*AJ24*AJ26*AJ28*AJ30)) ->  | AQ32: CS-WSP CS-PF CS-G | AU32: Y1 | AV32: low tabular | AX32: =AV27 -> 6.5 | BB32: Y1 | BC32: low tabular | BE32: =BC27 -> 6.5 | BI32: Y1 | BJ32: low tabular | BL32: =BJ27 -> 3.5 | BP32: Y1 | BQ32: low tabular | BS32: =BQ27 -> 3 | BY32: Y1 | BZ32: low tabular | CB32: =BZ27 -> 6.5 | CF32: Y1 | CG32: low tabular | CI32: =CG27 -> 6.5 | CM32: Y1 | CN32: low tabular | CP32: =CN27 -> 3.5 | CT32: Y1 | CU32: low tabular | CW32: =CU27 -> 3 | DC32: Y1 | DD32: low tabular | DF32: =DD27 -> 6.5 | DJ32: Y1 | DK32: low tabular | DM32: =DK27 -> 6.5 | DQ32: Y1 | DR32: low tabular | DT32: =DR27 -> 3.5 | DX32: Y1 | DY32: low tabular | EA32: =DY27 -> 3 | EG32: Y1 | EH32: low tabular | EJ32: =EH27 -> 6.5 | EN32: Y1 | EO32: low tabular | EQ32: =EO27 -> 6.5 | EU32: Y1 | EV32: low tabular | EX32: =EV27 -> 3.5 | FB32: Y1 | FC32: low tabular | FE32: =FC27 -> 3 | FK32: Y1 | FL32: low tabular | FN32: =FL27 -> 6.5 | FR32: Y1 | FS32: low tabular | FU32: =FS27 -> 6.5 | FY32: Y1 | FZ32: low tabular | GB32: =FZ27 -> 3.5 | GF32: Y1 | GG32: low tabular | GI32: =GG27 -> 3
AU33: Y2 | AV33: high tabular | AX33: =AX27 -> 6.5 | BB33: Y2 | BC33: high tabular | BE33: =BE27 -> 6.5 | BI33: Y2 | BJ33: high tabular | BL33: =BL27 -> 3.5 | BP33: Y2 | BQ33: high tabular | BS33: =BS27 -> 3 | BY33: Y2 | BZ33: high tabular | CB33: =CB27 -> 6.5 | CF33: Y2 | CG33: high tabular | CI33: =CI27 -> 6.5 | CM33: Y2 | CN33: high tabular | CP33: =CP27 -> 3.5 | CT33: Y2 | CU33: high tabular | CW33: =CW27 -> 3 | DC33: Y2 | DD33: high tabular | DF33: =DF27 -> 6.5 | DJ33: Y2 | DK33: high tabular | DM33: =DM27 -> 6.5 | DQ33: Y2 | DR33: high tabular | DT33: =DT27 -> 3.5 | DX33: Y2 | DY33: high tabular | EA33: =EA27 -> 3 | EG33: Y2 | EH33: high tabular | EJ33: =EJ27 -> 6.5 | EN33: Y2 | EO33: high tabular | EQ33: =EQ27 -> 6.5 | EU33: Y2 | EV33: high tabular | EX33: =EX27 -> 3.5 | FB33: Y2 | FC33: high tabular | FE33: =FE27 -> 3 | FK33: Y2 | FL33: high tabular | FN33: =FN27 -> 6.5 | FR33: Y2 | FS33: high tabular | FU33: =FU27 -> 6.5 | FY33: Y2 | FZ33: high tabular | GB33: =GB27 -> 3.5 | GF33: Y2 | GG33: high tabular | GI33: =GI27 -> 3
B34: ACTUAL BWP | C34: CONTRIBUTING LENGTH | D34: BWP | E34: METHOD | H34: LENGTH (ft) | L34: METHOD | O34: LENGTH (ft) | S34: METHOD | V34: LENGTH (ft) | Z34: METHOD | AC34: LENGTH (ft) | AG34: METHOD | AJ34: LENGTH (ft) | AU34: Y | AV34: TABULAR VALUE | AX34: =AX32+(AX31-AX29)*(AX33-AX32)/(AX30-AX29) -> 6.5 | BB34: Y | BC34: TABULAR VALUE | BE34: =BE32+(BE31-BE29)*(BE33-BE32)/(BE30-BE29) -> 6.5 | BI34: Y | BJ34: TABULAR VALUE | BL34: =BL32+(BL31-BL29)*(BL33-BL32)/(BL30-BL29) -> 3.5 | BP34: Y | BQ34: TABULAR VALUE | BS34: =BS32+(BS31-BS29)*(BS33-BS32)/(BS30-BS29) -> 3 | BY34: Y | BZ34: TABULAR VALUE | CB34: =CB32+(CB31-CB29)*(CB33-CB32)/(CB30-CB29) -> 6.5 | CF34: Y | CG34: TABULAR VALUE | CI34: =CI32+(CI31-CI29)*(CI33-CI32)/(CI30-CI29) -> 6.5 | CM34: Y | CN34: TABULAR VALUE | CP34: =CP32+(CP31-CP29)*(CP33-CP32)/(CP30-CP29) -> 3.5 | CT34: Y | CU34: TABULAR VALUE | CW34: =CW32+(CW31-CW29)*(CW33-CW32)/(CW30-CW29) -> 3 | DC34: Y | DD34: TABULAR VALUE | DF34: =DF32+(DF31-DF29)*(DF33-DF32)/(DF30-DF29) -> 6.5 | DJ34: Y | DK34: TABULAR VALUE | DM34: =DM32+(DM31-DM29)*(DM33-DM32)/(DM30-DM29) -> 6.5 | DQ34: Y | DR34: TABULAR VALUE | DT34: =DT32+(DT31-DT29)*(DT33-DT32)/(DT30-DT29) -> 3.5 | DX34: Y | DY34: TABULAR VALUE | EA34: =EA32+(EA31-EA29)*(EA33-EA32)/(EA30-EA29) -> 3 | EG34: Y | EH34: TABULAR VALUE | EJ34: =EJ32+(EJ31-EJ29)*(EJ33-EJ32)/(EJ30-EJ29) -> 6.5 | EN34: Y | EO34: TABULAR VALUE | EQ34: =EQ32+(EQ31-EQ29)*(EQ33-EQ32)/(EQ30-EQ29) -> 6.5 | EU34: Y | EV34: TABULAR VALUE | EX34: =EX32+(EX31-EX29)*(EX33-EX32)/(EX30-EX29) -> 3.5 | FB34: Y | FC34: TABULAR VALUE | FE34: =FE32+(FE31-FE29)*(FE33-FE32)/(FE30-FE29) -> 3 | FK34: Y | FL34: TABULAR VALUE | FN34: =FN32+(FN31-FN29)*(FN33-FN32)/(FN30-FN29) -> 6.5 | FR34: Y | FS34: TABULAR VALUE | FU34: =FU32+(FU31-FU29)*(FU33-FU32)/(FU30-FU29) -> 6.5 | FY34: Y | FZ34: TABULAR VALUE | GB34: =GB32+(GB31-GB29)*(GB33-GB32)/(GB30-GB29) -> 3.5 | GF34: Y | GG34: TABULAR VALUE | GI34: =GI32+(GI31-GI29)*(GI33-GI32)/(GI30-GI29) -> 3
AU35: COLUMN 1 | AX35: 101 | BB35: COLUMN 1 | BE35: 201 | BI35: COLUMN 1 | BL35: 301 | BP35: COLUMN 1 | BS35: 401 | BY35: =BY21 -> COLUMN 2 | CB35: 101 | CF35: =BY35 -> COLUMN 2 | CI35: 201 | CM35: =CF35 -> COLUMN 2 | CP35: 301 | CT35: =CM35 -> COLUMN 2 | CW35: 401 | DC35: =DC21 -> COLUMN 3 | DF35: 101 | DJ35: =DC35 -> COLUMN 3 | DM35: 201 | DQ35: =DJ35 -> COLUMN 3 | DT35: 301 | DX35: =DQ35 -> COLUMN 3 | EA35: 401 | EG35: =EG21 -> COLUMN 4 | EJ35: 101 | EN35: =EG35 -> COLUMN 4 | EQ35: 201 | EU35: =EN35 -> COLUMN 4 | EX35: 301 | FB35: =EU35 -> COLUMN 4 | FE35: 401 | FK35: =FK21 -> COLUMN 5 | FN35: 101 | FR35: =FK35 -> COLUMN 5 | FU35: 201 | FY35: =FR35 -> COLUMN 5 | GB35: 301 | GF35: =FY35 -> COLUMN 5 | GI35: 401
D36: 1 | AR36: =LEN(L2) -> 1 | AU36: INTERPOLATED TABULAR VALUE | AX36: =$AT$39*$AT$40*AX35 -> 25755 | BB36: INTERPOLATED TABULAR VALUE | BE36: =$AT$39*$AT$40*BE35 -> 51255 | BI36: INTERPOLATED TABULAR VALUE | BL36: =$AT$39*$AT$40*BL35 -> 76755 | BP36: INTERPOLATED TABULAR VALUE | BS36: =$AT$39*$AT$40*BS35 -> 102255 | BY36: INTERPOLATED TABULAR VALUE | CB36: =$AT$39*$AT$40*CB35 -> 25755 | CF36: INTERPOLATED TABULAR VALUE | CI36: =$AT$39*$AT$40*CI35 -> 51255 | CM36: INTERPOLATED TABULAR VALUE | CP36: =$AT$39*$AT$40*CP35 -> 76755 | CT36: INTERPOLATED TABULAR VALUE | CW36: =$AT$39*$AT$40*CW35 -> 102255 | DC36: INTERPOLATED TABULAR VALUE | DF36: =$AT$39*$AT$40*DF35 -> 25755 | DJ36: INTERPOLATED TABULAR VALUE | DM36: =$AT$39*$AT$40*DM35 -> 51255 | DQ36: INTERPOLATED TABULAR VALUE | DT36: =$AT$39*$AT$40*DT35 -> 76755 | DX36: INTERPOLATED TABULAR VALUE | EA36: =$AT$39*$AT$40*EA35 -> 102255 | EG36: INTERPOLATED TABULAR VALUE | EJ36: =$AT$39*$AT$40*EJ35 -> 25755 | EN36: INTERPOLATED TABULAR VALUE | EQ36: =$AT$39*$AT$40*EQ35 -> 51255 | EU36: INTERPOLATED TABULAR VALUE | EX36: =$AT$39*$AT$40*EX35 -> 76755 | FB36: INTERPOLATED TABULAR VALUE | FE36: =$AT$39*$AT$40*FE35 -> 102255 | FK36: INTERPOLATED TABULAR VALUE | FN36: =$AT$39*$AT$40*FN35 -> 25755 | FR36: INTERPOLATED TABULAR VALUE | FU36: =$AT$39*$AT$40*FU35 -> 51255 | FY36: INTERPOLATED TABULAR VALUE | GB36: =$AT$39*$AT$40*GB35 -> 76755 | GF36: INTERPOLATED TABULAR VALUE | GI36: =$AT$39*$AT$40*GI35 -> 102255
AU37: Y = Y1 + (X-X1) * (Y2-Y1)/(X2-X1) | BB37: Y = Y1 + (X-X1) * (Y2-Y1)/(X2-X1) | BI37: Y = Y1 + (X-X1) * (Y2-Y1)/(X2-X1) | BP37: Y = Y1 + (X-X1) * (Y2-Y1)/(X2-X1) | BY37: Y = Y1 + (X-X1) * (Y2-Y1)/(X2-X1) | CF37: Y = Y1 + (X-X1) * (Y2-Y1)/(X2-X1) | CM37: Y = Y1 + (X-X1) * (Y2-Y1)/(X2-X1) | CT37: Y = Y1 + (X-X1) * (Y2-Y1)/(X2-X1) | DC37: Y = Y1 + (X-X1) * (Y2-Y1)/(X2-X1) | DJ37: Y = Y1 + (X-X1) * (Y2-Y1)/(X2-X1) | DQ37: Y = Y1 + (X-X1) * (Y2-Y1)/(X2-X1) | DX37: Y = Y1 + (X-X1) * (Y2-Y1)/(X2-X1) | EG37: Y = Y1 + (X-X1) * (Y2-Y1)/(X2-X1) | EN37: Y = Y1 + (X-X1) * (Y2-Y1)/(X2-X1) | EU37: Y = Y1 + (X-X1) * (Y2-Y1)/(X2-X1) | FB37: Y = Y1 + (X-X1) * (Y2-Y1)/(X2-X1) | FK37: Y = Y1 + (X-X1) * (Y2-Y1)/(X2-X1) | FR37: Y = Y1 + (X-X1) * (Y2-Y1)/(X2-X1) | FY37: Y = Y1 + (X-X1) * (Y2-Y1)/(X2-X1) | GF37: Y = Y1 + (X-X1) * (Y2-Y1)/(X2-X1)
D38: 2 | AQ38: LIB
AQ39: WSP | AT39: 85 | AU39: Avg spacing | AW39: =AW25 -> 10 | BB39: Avg spacing | BD39: =AW39 -> 10 | BI39: Avg spacing | BK39: =BD39 -> 10 | BP39: Avg spacing | BR39: =BK39 -> 10 | BX39: 85 | BY39: Avg spacing | CA39: =CA25 -> 10 | CF39: Avg spacing | CH39: =CA39 -> 10 | CM39: Avg spacing | CO39: =CH39 -> 10 | CT39: Avg spacing | CV39: =CO39 -> 10 | DB39: 85 | DC39: Avg spacing | DE39: =DE25 -> 10 | DJ39: Avg spacing | DL39: =DE39 -> 10 | DQ39: Avg spacing | DS39: =DL39 -> 10 | DX39: Avg spacing | DZ39: =DS39 -> 10 | EF39: 85 | EG39: Avg spacing | EI39: =EI25 -> 10 | EN39: Avg spacing | EP39: =EI39 -> 10 | EU39: Avg spacing | EW39: =EP39 -> 10 | FB39: Avg spacing | FD39: =EW39 -> 10 | FJ39: 85 | FK39: Avg spacing | FM39: =FM25 -> 10 | FR39: Avg spacing | FT39: =FM39 -> 10 | FY39: Avg spacing | GA39: =FT39 -> 10 | GF39: Avg spacing | GH39: =GA39 -> 10
D40: 3 | AQ40: SFB | AT40: 3 | AU40: X Range | AV40: =FLOOR(AW39,10) -> 10 | AX40: =CEILING(AW39,10) -> 10 | BB40: X Range | BC40: =FLOOR(BD39,10) -> 10 | BE40: =CEILING(BD39,10) -> 10 | BI40: X Range | BJ40: =FLOOR(BK39,10) -> 10 | BL40: =CEILING(BK39,10) -> 10 | BP40: X Range | BQ40: =FLOOR(BR39,10) -> 10 | BS40: =CEILING(BR39,10) -> 10 | BX40: 3 | BY40: X Range | BZ40: =FLOOR(CA39,10) -> 10 | CB40: =CEILING(CA39,10) -> 10 | CF40: X Range | CG40: =FLOOR(CH39,10) -> 10 | CI40: =CEILING(CH39,10) -> 10 | CM40: X Range | CN40: =FLOOR(CO39,10) -> 10 | CP40: =CEILING(CO39,10) -> 10 | CT40: X Range | CU40: =FLOOR(CV39,10) -> 10 | CW40: =CEILING(CV39,10) -> 10 | DB40: 3 | DC40: X Range | DD40: =FLOOR(DE39,10) -> 10 | DF40: =CEILING(DE39,10) -> 10 | DJ40: X Range | DK40: =FLOOR(DL39,10) -> 10 | DM40: =CEILING(DL39,10) -> 10 | DQ40: X Range | DR40: =FLOOR(DS39,10) -> 10 | DT40: =CEILING(DS39,10) -> 10 | DX40: X Range | DY40: =FLOOR(DZ39,10) -> 10 | EA40: =CEILING(DZ39,10) -> 10 | EF40: 3 | EG40: X Range | EH40: =FLOOR(EI39,10) -> 10 | EJ40: =CEILING(EI39,10) -> 10 | EN40: X Range | EO40: =FLOOR(EP39,10) -> 10 | EQ40: =CEILING(EP39,10) -> 10 | EU40: X Range | EV40: =FLOOR(EW39,10) -> 10 | EX40: =CEILING(EW39,10) -> 10 | FB40: X Range | FC40: =FLOOR(FD39,10) -> 10 | FE40: =CEILING(FD39,10) -> 10 | FJ40: 3 | FK40: X Range | FL40: =FLOOR(FM39,10) -> 10 | FN40: =CEILING(FM39,10) -> 10 | FR40: X Range | FS40: =FLOOR(FT39,10) -> 10 | FU40: =CEILING(FT39,10) -> 10 | FY40: X Range | FZ40: =FLOOR(GA39,10) -> 10 | GB40: =CEILING(GA39,10) -> 10 | GF40: X Range | GG40: =FLOOR(GH39,10) -> 10 | GI40: =CEILING(GH39,10) -> 10
AQ41: SS - GB | AU41: Y Range | AV41: =VLOOKUP(AV40,$AT$277:$AX$282,2,1) -> 0 | AW41: =AX48 -> NA | AX41: =VLOOKUP(AX40,$AT$277:$AX$282,2,1) -> 0 | BB41: Y Range | BC41: =VLOOKUP(BC40,$AT$277:$AX$282,3,1) -> 9 | BD41: =BE48 -> 9 | BE41: =VLOOKUP(BE40,$AT$277:$AX$282,3,1) -> 9 | BI41: Y Range | BJ41: =VLOOKUP(BJ40,$AT$277:$AX$282,4,1) -> 5.5 | BK41: =BL48 -> 5.5 | BL41: =VLOOKUP(BL40,$AT$277:$AX$282,4,1) -> 5.5 | BP41: Y Range | BQ41: =VLOOKUP(BQ40,$AT$277:$AX$282,5,1) -> 4.5 | BR41: =BS48 -> 4.5 | BS41: =VLOOKUP(BS40,$AT$277:$AX$282,5,1) -> 4.5 | BY41: Y Range | BZ41: =VLOOKUP(BZ40,$AT$277:$AX$282,2,1) -> 0 | CA41: =CB48 -> NA | CB41: =VLOOKUP(CB40,$AT$277:$AX$282,2,1) -> 0 | CF41: Y Range | CG41: =VLOOKUP(CG40,$AT$277:$AX$282,3,1) -> 9 | CH41: =CI48 -> 9 | CI41: =VLOOKUP(CI40,$AT$277:$AX$282,3,1) -> 9 | CM41: Y Range | CN41: =VLOOKUP(CN40,$AT$277:$AX$282,4,1) -> 5.5 | CO41: =CP48 -> 5.5 | CP41: =VLOOKUP(CP40,$AT$277:$AX$282,4,1) -> 5.5 | CT41: Y Range | CU41: =VLOOKUP(CU40,$AT$277:$AX$282,5,1) -> 4.5 | CV41: =CW48 -> 4.5 | CW41: =VLOOKUP(CW40,$AT$277:$AX$282,5,1) -> 4.5 | DC41: Y Range | DD41: =VLOOKUP(DD40,$AT$277:$AX$282,2,1) -> 0 | DE41: =DF48 -> NA | DF41: =VLOOKUP(DF40,$AT$277:$AX$282,2,1) -> 0 | DJ41: Y Range | DK41: =VLOOKUP(DK40,$AT$277:$AX$282,3,1) -> 9 | DL41: =DM48 -> 9 | DM41: =VLOOKUP(DM40,$AT$277:$AX$282,3,1) -> 9 | DQ41: Y Range | DR41: =VLOOKUP(DR40,$AT$277:$AX$282,4,1) -> 5.5 | DS41: =DT48 -> 5.5 | DT41: =VLOOKUP(DT40,$AT$277:$AX$282,4,1) -> 5.5 | DX41: Y Range | DY41: =VLOOKUP(DY40,$AT$277:$AX$282,5,1) -> 4.5 | DZ41: =EA48 -> 4.5 | EA41: =VLOOKUP(EA40,$AT$277:$AX$282,5,1) -> 4.5 | EG41: Y Range | EH41: =VLOOKUP(EH40,$AT$277:$AX$282,2,1) -> 0 | EI41: =EJ48 -> NA | EJ41: =VLOOKUP(EJ40,$AT$277:$AX$282,2,1) -> 0 | EN41: Y Range | EO41: =VLOOKUP(EO40,$AT$277:$AX$282,3,1) -> 9 | EP41: =EQ48 -> 9 | EQ41: =VLOOKUP(EQ40,$AT$277:$AX$282,3,1) -> 9 | EU41: Y Range | EV41: =VLOOKUP(EV40,$AT$277:$AX$282,4,1) -> 5.5 | EW41: =EX48 -> 5.5 | EX41: =VLOOKUP(EX40,$AT$277:$AX$282,4,1) -> 5.5 | FB41: Y Range | FC41: =VLOOKUP(FC40,$AT$277:$AX$282,5,1) -> 4.5 | FD41: =FE48 -> 4.5 | FE41: =VLOOKUP(FE40,$AT$277:$AX$282,5,1) -> 4.5 | FK41: Y Range | FL41: =VLOOKUP(FL40,$AT$277:$AX$282,2,1) -> 0 | FM41: =FN48 -> NA | FN41: =VLOOKUP(FN40,$AT$277:$AX$282,2,1) -> 0 | FR41: Y Range | FS41: =VLOOKUP(FS40,$AT$277:$AX$282,3,1) -> 9 | FT41: =FU48 -> 9 | FU41: =VLOOKUP(FU40,$AT$277:$AX$282,3,1) -> 9 | FY41: Y Range | FZ41: =VLOOKUP(FZ40,$AT$277:$AX$282,4,1) -> 5.5 | GA41: =GB48 -> 5.5 | GB41: =VLOOKUP(GB40,$AT$277:$AX$282,4,1) -> 5.5 | GF41: Y Range | GG41: =VLOOKUP(GG40,$AT$277:$AX$282,5,1) -> 4.5 | GH41: =GI48 -> 4.5 | GI41: =VLOOKUP(GI40,$AT$277:$AX$282,5,1) -> 4.5
D42: 4 | AQ42: DS - GB
AQ43: CS-WSP | AU43: X1 | AV43: low spacing | AX43: =AV40+0.00001 -> 10.00001 | BB43: X1 | BC43: low spacing | BE43: =BC40+0.00001 -> 10.00001 | BI43: X1 | BJ43: low spacing | BL43: =BJ40+0.00001 -> 10.00001 | BP43: X1 | BQ43: low spacing | BS43: =BQ40+0.00001 -> 10.00001 | BY43: X1 | BZ43: low spacing | CB43: =BZ40+0.00001 -> 10.00001 | CF43: X1 | CG43: low spacing | CI43: =CG40+0.00001 -> 10.00001 | CM43: X1 | CN43: low spacing | CP43: =CN40+0.00001 -> 10.00001 | CT43: X1 | CU43: low spacing | CW43: =CU40+0.00001 -> 10.00001 | DC43: X1 | DD43: low spacing | DF43: =DD40+0.00001 -> 10.00001 | DJ43: X1 | DK43: low spacing | DM43: =DK40+0.00001 -> 10.00001 | DQ43: X1 | DR43: low spacing | DT43: =DR40+0.00001 -> 10.00001 | DX43: X1 | DY43: low spacing | EA43: =DY40+0.00001 -> 10.00001 | EG43: X1 | EH43: low spacing | EJ43: =EH40+0.00001 -> 10.00001 | EN43: X1 | EO43: low spacing | EQ43: =EO40+0.00001 -> 10.00001 | EU43: X1 | EV43: low spacing | EX43: =EV40+0.00001 -> 10.00001 | FB43: X1 | FC43: low spacing | FE43: =FC40+0.00001 -> 10.00001 | FK43: X1 | FL43: low spacing | FN43: =FL40+0.00001 -> 10.00001 | FR43: X1 | FS43: low spacing | FU43: =FS40+0.00001 -> 10.00001 | FY43: X1 | FZ43: low spacing | GB43: =FZ40+0.00001 -> 10.00001 | GF43: X1 | GG43: low spacing | GI43: =GG40+0.00001 -> 10.00001
D44: 5 | AQ44: CS-PF | AU44: X2 | AV44: high spacing | AX44: =AX40 -> 10 | BB44: X2 | BC44: high spacing | BE44: =BE40 -> 10 | BI44: X2 | BJ44: high spacing | BL44: =BL40 -> 10 | BP44: X2 | BQ44: high spacing | BS44: =BS40 -> 10 | BY44: X2 | BZ44: high spacing | CB44: =CB40 -> 10 | CF44: X2 | CG44: high spacing | CI44: =CI40 -> 10 | CM44: X2 | CN44: high spacing | CP44: =CP40 -> 10 | CT44: X2 | CU44: high spacing | CW44: =CW40 -> 10 | DC44: X2 | DD44: high spacing | DF44: =DF40 -> 10 | DJ44: X2 | DK44: high spacing | DM44: =DM40 -> 10 | DQ44: X2 | DR44: high spacing | DT44: =DT40 -> 10 | DX44: X2 | DY44: high spacing | EA44: =EA40 -> 10 | EG44: X2 | EH44: high spacing | EJ44: =EJ40 -> 10 | EN44: X2 | EO44: high spacing | EQ44: =EQ40 -> 10 | EU44: X2 | EV44: high spacing | EX44: =EX40 -> 10 | FB44: X2 | FC44: high spacing | FE44: =FE40 -> 10 | FK44: X2 | FL44: high spacing | FN44: =FN40 -> 10 | FR44: X2 | FS44: high spacing | FU44: =FU40 -> 10 | FY44: X2 | FZ44: high spacing | GB44: =GB40 -> 10 | GF44: X2 | GG44: high spacing | GI44: =GI40 -> 10
AQ45: CS-G | AU45: X | AV45: actual spacing | AX45: =AW39 -> 10 | BB45: X | BC45: actual spacing | BE45: =BD39 -> 10 | BI45: X | BJ45: actual spacing | BL45: =BK39 -> 10 | BP45: X | BQ45: actual spacing | BS45: =BR39 -> 10 | BY45: X | BZ45: actual spacing | CB45: =CA39 -> 10 | CF45: X | CG45: actual spacing | CI45: =CH39 -> 10 | CM45: X | CN45: actual spacing | CP45: =CO39 -> 10 | CT45: X | CU45: actual spacing | CW45: =CV39 -> 10 | DC45: X | DD45: actual spacing | DF45: =DE39 -> 10 | DJ45: X | DK45: actual spacing | DM45: =DL39 -> 10 | DQ45: X | DR45: actual spacing | DT45: =DS39 -> 10 | DX45: X | DY45: actual spacing | EA45: =DZ39 -> 10 | EG45: X | EH45: actual spacing | EJ45: =EI39 -> 10 | EN45: X | EO45: actual spacing | EQ45: =EP39 -> 10 | EU45: X | EV45: actual spacing | EX45: =EW39 -> 10 | FB45: X | FC45: actual spacing | FE45: =FD39 -> 10 | FK45: X | FL45: actual spacing | FN45: =FM39 -> 10 | FR45: X | FS45: actual spacing | FU45: =FT39 -> 10 | FY45: X | FZ45: actual spacing | GB45: =GA39 -> 10 | GF45: X | GG45: actual spacing | GI45: =GH39 -> 10
D46: 6 | AQ46: CS-SFB | AU46: Y1 | AV46: low tabular | AX46: =AV41 -> 0 | BB46: Y1 | BC46: low tabular | BE46: =BC41 -> 9 | BI46: Y1 | BJ46: low tabular | BL46: =BJ41 -> 5.5 | BP46: Y1 | BQ46: low tabular | BS46: =BQ41 -> 4.5 | BY46: Y1 | BZ46: low tabular | CB46: =BZ41 -> 0 | CF46: Y1 | CG46: low tabular | CI46: =CG41 -> 9 | CM46: Y1 | CN46: low tabular | CP46: =CN41 -> 5.5 | CT46: Y1 | CU46: low tabular | CW46: =CU41 -> 4.5 | DC46: Y1 | DD46: low tabular | DF46: =DD41 -> 0 | DJ46: Y1 | DK46: low tabular | DM46: =DK41 -> 9 | DQ46: Y1 | DR46: low tabular | DT46: =DR41 -> 5.5 | DX46: Y1 | DY46: low tabular | EA46: =DY41 -> 4.5 | EG46: Y1 | EH46: low tabular | EJ46: =EH41 -> 0 | EN46: Y1 | EO46: low tabular | EQ46: =EO41 -> 9 | EU46: Y1 | EV46: low tabular | EX46: =EV41 -> 5.5 | FB46: Y1 | FC46: low tabular | FE46: =FC41 -> 4.5 | FK46: Y1 | FL46: low tabular | FN46: =FL41 -> 0 | FR46: Y1 | FS46: low tabular | FU46: =FS41 -> 9 | FY46: Y1 | FZ46: low tabular | GB46: =FZ41 -> 5.5 | GF46: Y1 | GG46: low tabular | GI46: =GG41 -> 4.5
AQ47: DWP | AU47: Y2 | AV47: high tabular | AX47: =AX41 -> 0 | BB47: Y2 | BC47: high tabular | BE47: =BE41 -> 9 | BI47: Y2 | BJ47: high tabular | BL47: =BL41 -> 5.5 | BP47: Y2 | BQ47: high tabular | BS47: =BS41 -> 4.5 | BY47: Y2 | BZ47: high tabular | CB47: =CB41 -> 0 | CF47: Y2 | CG47: high tabular | CI47: =CI41 -> 9 | CM47: Y2 | CN47: high tabular | CP47: =CP41 -> 5.5 | CT47: Y2 | CU47: high tabular | CW47: =CW41 -> 4.5 | DC47: Y2 | DD47: high tabular | DF47: =DF41 -> 0 | DJ47: Y2 | DK47: high tabular | DM47: =DM41 -> 9 | DQ47: Y2 | DR47: high tabular | DT47: =DT41 -> 5.5 | DX47: Y2 | DY47: high tabular | EA47: =EA41 -> 4.5 | EG47: Y2 | EH47: high tabular | EJ47: =EJ41 -> 0 | EN47: Y2 | EO47: high tabular | EQ47: =EQ41 -> 9 | EU47: Y2 | EV47: high tabular | EX47: =EX41 -> 5.5 | FB47: Y2 | FC47: high tabular | FE47: =FE41 -> 4.5 | FK47: Y2 | FL47: high tabular | FN47: =FN41 -> 0 | FR47: Y2 | FS47: high tabular | FU47: =FU41 -> 9 | FY47: Y2 | FZ47: high tabular | GB47: =GB41 -> 5.5 | GF47: Y2 | GG47: high tabular | GI47: =GI41 -> 4.5
D48: 7 | AQ48: PBS | AU48: Y | AV48: TABULAR VALUE | AX48: NA | BB48: Y | BC48: TABULAR VALUE | BE48: =BE46+(BE45-BE43)*(BE47-BE46)/(BE44-BE43) -> 9 | BI48: Y | BJ48: TABULAR VALUE | BL48: =BL46+(BL45-BL43)*(BL47-BL46)/(BL44-BL43) -> 5.5 | BP48: Y | BQ48: TABULAR VALUE | BS48: =BS46+(BS45-BS43)*(BS47-BS46)/(BS44-BS43) -> 4.5 | BY48: Y | BZ48: TABULAR VALUE | CB48: NA | CF48: Y | CG48: TABULAR VALUE | CI48: =CI46+(CI45-CI43)*(CI47-CI46)/(CI44-CI43) -> 9 | CM48: Y | CN48: TABULAR VALUE | CP48: =CP46+(CP45-CP43)*(CP47-CP46)/(CP44-CP43) -> 5.5 | CT48: Y | CU48: TABULAR VALUE | CW48: =CW46+(CW45-CW43)*(CW47-CW46)/(CW44-CW43) -> 4.5 | DC48: Y | DD48: TABULAR VALUE | DF48: NA | DJ48: Y | DK48: TABULAR VALUE | DM48: =DM46+(DM45-DM43)*(DM47-DM46)/(DM44-DM43) -> 9 | DQ48: Y | DR48: TABULAR VALUE | DT48: =DT46+(DT45-DT43)*(DT47-DT46)/(DT44-DT43) -> 5.5 | DX48: Y | DY48: TABULAR VALUE | EA48: =EA46+(EA45-EA43)*(EA47-EA46)/(EA44-EA43) -> 4.5 | EG48: Y | EH48: TABULAR VALUE | EJ48: NA | EN48: Y | EO48: TABULAR VALUE | EQ48: =EQ46+(EQ45-EQ43)*(EQ47-EQ46)/(EQ44-EQ43) -> 9 | EU48: Y | EV48: TABULAR VALUE | EX48: =EX46+(EX45-EX43)*(EX47-EX46)/(EX44-EX43) -> 5.5 | FB48: Y | FC48: TABULAR VALUE | FE48: =FE46+(FE45-FE43)*(FE47-FE46)/(FE44-FE43) -> 4.5 | FK48: Y | FL48: TABULAR VALUE | FN48: NA | FR48: Y | FS48: TABULAR VALUE | FU48: =FU46+(FU45-FU43)*(FU47-FU46)/(FU44-FU43) -> 9 | FY48: Y | FZ48: TABULAR VALUE | GB48: =GB46+(GB45-GB43)*(GB47-GB46)/(GB44-GB43) -> 5.5 | GF48: Y | GG48: TABULAR VALUE | GI48: =GI46+(GI45-GI43)*(GI47-GI46)/(GI44-GI43) -> 4.5
AQ49: PCP
B50: ACTUAL BWP LENGTH (ft) | E50: =IF(H36+H38+H40+H42+H44+H46+H48=0," ",H36+H38+H40+H42+H44+H46+H48) ->  | L50: =IF(O36+O38+O40+O42+O44+O46+O48=0," ",O36+O38+O40+O42+O44+O46+O48) ->  | S50: =IF(V36+V38+V40+V42+V44+V46+V48=0," ",V36+V38+V40+V42+V44+V46+V48) ->  | Z50: =IF(AC36+AC38+AC40+AC42+AC44+AC46+AC48=0," ",AC36+AC38+AC40+AC42+AC44+AC46+AC48) ->  | AG50: =IF(AJ36+AJ38+AJ40+AJ42+AJ44+AJ46+AJ48=0," ",AJ36+AJ38+AJ40+AJ42+AJ44+AJ46+AJ48) ->  | AQ50: HPS | AU50: COLUMN 1 | AX50: 101 | BB50: COLUMN 1 | BE50: 201 | BI50: COLUMN 1 | BL50: 301 | BP50: COLUMN 1 | BS50: 401 | BY50: =BY35 -> COLUMN 2 | CB50: 101 | CF50: =BY50 -> COLUMN 2 | CI50: 201 | CM50: =CF50 -> COLUMN 2 | CP50: 301 | CT50: =CM50 -> COLUMN 2 | CW50: 401 | DC50: =DC35 -> COLUMN 3 | DF50: 101 | DJ50: =DC50 -> COLUMN 3 | DM50: 201 | DQ50: =DJ50 -> COLUMN 3 | DT50: 301 | DX50: =DQ50 -> COLUMN 3 | EA50: 401 | EG50: =EG35 -> COLUMN 4 | EJ50: 101 | EN50: =EG50 -> COLUMN 4 | EQ50: 201 | EU50: =EN50 -> COLUMN 4 | EX50: 301 | FB50: =EU50 -> COLUMN 4 | FE50: 401 | FK50: =FK35 -> COLUMN 5 | FN50: 101 | FR50: =FK50 -> COLUMN 5 | FU50: 201 | FY50: =FR50 -> COLUMN 5 | GB50: 301 | GF50: =FY50 -> COLUMN 5 | GI50: 401
AQ51: AWB | AU51: INTERPOLATED TABULAR VALUE | AX51: =$AT$54*$AT$55*AX50 -> 9090 | BB51: INTERPOLATED TABULAR VALUE | BE51: =$AT$54*$AT$55*BE50 -> 18090 | BI51: INTERPOLATED TABULAR VALUE | BL51: =$AT$54*$AT$55*BL50 -> 27090 | BP51: INTERPOLATED TABULAR VALUE | BS51: =$AT$54*$AT$55*BS50 -> 36090 | BY51: INTERPOLATED TABULAR VALUE | CB51: =$AT$54*$AT$55*CB50 -> 9090 | CF51: INTERPOLATED TABULAR VALUE | CI51: =$AT$54*$AT$55*CI50 -> 18090 | CM51: INTERPOLATED TABULAR VALUE | CP51: =$AT$54*$AT$55*CP50 -> 27090 | CT51: INTERPOLATED TABULAR VALUE | CW51: =$AT$54*$AT$55*CW50 -> 36090 | DC51: INTERPOLATED TABULAR VALUE | DF51: =$AT$54*$AT$55*DF50 -> 9090 | DJ51: INTERPOLATED TABULAR VALUE | DM51: =$AT$54*$AT$55*DM50 -> 18090 | DQ51: INTERPOLATED TABULAR VALUE | DT51: =$AT$54*$AT$55*DT50 -> 27090 | DX51: INTERPOLATED TABULAR VALUE | EA51: =$AT$54*$AT$55*EA50 -> 36090 | EG51: INTERPOLATED TABULAR VALUE | EJ51: =$AT$54*$AT$55*EJ50 -> 9090 | EN51: INTERPOLATED TABULAR VALUE | EQ51: =$AT$54*$AT$55*EQ50 -> 18090 | EU51: INTERPOLATED TABULAR VALUE | EX51: =$AT$54*$AT$55*EX50 -> 27090 | FB51: INTERPOLATED TABULAR VALUE | FE51: =$AT$54*$AT$55*FE50 -> 36090 | FK51: INTERPOLATED TABULAR VALUE | FN51: =$AT$54*$AT$55*FN50 -> 9090 | FR51: INTERPOLATED TABULAR VALUE | FU51: =$AT$54*$AT$55*FU50 -> 18090 | FY51: INTERPOLATED TABULAR VALUE | GB51: =$AT$54*$AT$55*GB50 -> 27090 | GF51: INTERPOLATED TABULAR VALUE | GI51: =$AT$54*$AT$55*GI50 -> 36090
B52: ACTUAL ≥ REQUIRED | E52: =IF(E50=" "," ",IF(E50>=E32,"YES","NO")) ->  | L52: =IF(L50=" "," ",IF(L50>=L32,"YES","NO")) ->  | S52: =IF(S50=" "," ",IF(S50>=S32,"YES","NO")) ->  | Z52: =IF(Z50=" "," ",IF(Z50>=Z32,"YES","NO")) ->  | AG52: =IF(AG50=" "," ",IF(AG50>=AG32,"YES","NO")) ->  | AQ52: PFH | AU52: Y = Y1 + (X-X1) * (Y2-Y1)/(X2-X1) | BB52: Y = Y1 + (X-X1) * (Y2-Y1)/(X2-X1) | BI52: Y = Y1 + (X-X1) * (Y2-Y1)/(X2-X1) | BP52: Y = Y1 + (X-X1) * (Y2-Y1)/(X2-X1) | BY52: Y = Y1 + (X-X1) * (Y2-Y1)/(X2-X1) | CF52: Y = Y1 + (X-X1) * (Y2-Y1)/(X2-X1) | CM52: Y = Y1 + (X-X1) * (Y2-Y1)/(X2-X1) | CT52: Y = Y1 + (X-X1) * (Y2-Y1)/(X2-X1) | DC52: Y = Y1 + (X-X1) * (Y2-Y1)/(X2-X1) | DJ52: Y = Y1 + (X-X1) * (Y2-Y1)/(X2-X1) | DQ52: Y = Y1 + (X-X1) * (Y2-Y1)/(X2-X1) | DX52: Y = Y1 + (X-X1) * (Y2-Y1)/(X2-X1) | EG52: Y = Y1 + (X-X1) * (Y2-Y1)/(X2-X1) | EN52: Y = Y1 + (X-X1) * (Y2-Y1)/(X2-X1) | EU52: Y = Y1 + (X-X1) * (Y2-Y1)/(X2-X1) | FB52: Y = Y1 + (X-X1) * (Y2-Y1)/(X2-X1) | FK52: Y = Y1 + (X-X1) * (Y2-Y1)/(X2-X1) | FR52: Y = Y1 + (X-X1) * (Y2-Y1)/(X2-X1) | FY52: Y = Y1 + (X-X1) * (Y2-Y1)/(X2-X1) | GF52: Y = Y1 + (X-X1) * (Y2-Y1)/(X2-X1)
AQ53: PFG
B54: SPACE | C54: BWPs ≤ 20' APART | AQ54: ENGR | AT54: 90 | AU54: Avg spacing | AW54: =AW11 -> 10 | BB54: Avg spacing | BD54: =AW54 -> 10 | BI54: Avg spacing | BK54: =BD54 -> 10 | BP54: Avg spacing | BR54: =BK54 -> 10 | BX54: 90 | BY54: Avg spacing | CA54: =CA39 -> 10 | CF54: Avg spacing | CH54: =CA54 -> 10 | CM54: Avg spacing | CO54: =CH54 -> 10 | CT54: Avg spacing | CV54: =CO54 -> 10 | DB54: 90 | DC54: Avg spacing | DE54: =DE39 -> 10 | DJ54: Avg spacing | DL54: =DE54 -> 10 | DQ54: Avg spacing | DS54: =DL54 -> 10 | DX54: Avg spacing | DZ54: =DS54 -> 10 | EF54: 90 | EG54: Avg spacing | EI54: =EI39 -> 10 | EN54: Avg spacing | EP54: =EI54 -> 10 | EU54: Avg spacing | EW54: =EP54 -> 10 | FB54: Avg spacing | FD54: =EW54 -> 10 | FJ54: 90 | FK54: Avg spacing | FM54: =FM39 -> 10 | FR54: Avg spacing | FT54: =FM54 -> 10 | FY54: Avg spacing | GA54: =FT54 -> 10 | GF54: Avg spacing | GH54: =GA54 -> 10
AQ55: OTHER | AT55: 1 | AU55: X Range | AV55: =FLOOR(AW54,10) -> 10 | AX55: =CEILING(AW54,10) -> 10 | BB55: X Range | BC55: =FLOOR(BD54,10) -> 10 | BE55: =CEILING(BD54,10) -> 10 | BI55: X Range | BJ55: =FLOOR(BK54,10) -> 10 | BL55: =CEILING(BK54,10) -> 10 | BP55: X Range | BQ55: =FLOOR(BR54,10) -> 10 | BS55: =CEILING(BR54,10) -> 10 | BX55: 1 | BY55: X Range | BZ55: =FLOOR(CA54,10) -> 10 | CB55: =CEILING(CA54,10) -> 10 | CF55: X Range | CG55: =FLOOR(CH54,10) -> 10 | CI55: =CEILING(CH54,10) -> 10 | CM55: X Range | CN55: =FLOOR(CO54,10) -> 10 | CP55: =CEILING(CO54,10) -> 10 | CT55: X Range | CU55: =FLOOR(CV54,10) -> 10 | CW55: =CEILING(CV54,10) -> 10 | DB55: 1 | DC55: X Range | DD55: =FLOOR(DE54,10) -> 10 | DF55: =CEILING(DE54,10) -> 10 | DJ55: X Range | DK55: =FLOOR(DL54,10) -> 10 | DM55: =CEILING(DL54,10) -> 10 | DQ55: X Range | DR55: =FLOOR(DS54,10) -> 10 | DT55: =CEILING(DS54,10) -> 10 | DX55: X Range | DY55: =FLOOR(DZ54,10) -> 10 | EA55: =CEILING(DZ54,10) -> 10 | EF55: 1 | EG55: X Range | EH55: =FLOOR(EI54,10) -> 10 | EJ55: =CEILING(EI54,10) -> 10 | EN55: X Range | EO55: =FLOOR(EP54,10) -> 10 | EQ55: =CEILING(EP54,10) -> 10 | EU55: X Range | EV55: =FLOOR(EW54,10) -> 10 | EX55: =CEILING(EW54,10) -> 10 | FB55: X Range | FC55: =FLOOR(FD54,10) -> 10 | FE55: =CEILING(FD54,10) -> 10 | FJ55: 1 | FK55: X Range | FL55: =FLOOR(FM54,10) -> 10 | FN55: =CEILING(FM54,10) -> 10 | FR55: X Range | FS55: =FLOOR(FT54,10) -> 10 | FU55: =CEILING(FT54,10) -> 10 | FY55: X Range | FZ55: =FLOOR(GA54,10) -> 10 | GB55: =CEILING(GA54,10) -> 10 | GF55: X Range | GG55: =FLOOR(GH54,10) -> 10 | GI55: =CEILING(GH54,10) -> 10
B56: # of BWPs | C56: Length of BWL (ft) | AU56: Y Range | AV56: =VLOOKUP(AV55,$AT$283:$AX$288,2,1) -> 3.5 | AW56: =AX63 -> 3.5 | AX56: =VLOOKUP(AX55,$AT$283:$AX$288,2,1) -> 3.5 | BB56: Y Range | BC56: =VLOOKUP(BC55,$AT$283:$AX$288,3,1) -> 3.5 | BD56: =BE63 -> 3.5 | BE56: =VLOOKUP(BE55,$AT$283:$AX$288,3,1) -> 3.5 | BI56: Y Range | BJ56: =VLOOKUP(BJ55,$AT$283:$AX$288,4,1) -> 2 | BK56: =BL63 -> 2 | BL56: =VLOOKUP(BL55,$AT$283:$AX$288,4,1) -> 2 | BP56: Y Range | BQ56: =VLOOKUP(BQ55,$AT$283:$AX$288,5,1) -> 2 | BR56: =BS63 -> 2 | BS56: =VLOOKUP(BS55,$AT$283:$AX$288,5,1) -> 2 | BY56: Y Range | BZ56: =VLOOKUP(BZ55,$AT$283:$AX$288,2,1) -> 3.5 | CA56: =CB63 -> 3.5 | CB56: =VLOOKUP(CB55,$AT$283:$AX$288,2,1) -> 3.5 | CF56: Y Range | CG56: =VLOOKUP(CG55,$AT$283:$AX$288,3,1) -> 3.5 | CH56: =CI63 -> 3.5 | CI56: =VLOOKUP(CI55,$AT$283:$AX$288,3,1) -> 3.5 | CM56: Y Range | CN56: =VLOOKUP(CN55,$AT$283:$AX$288,4,1) -> 2 | CO56: =CP63 -> 2 | CP56: =VLOOKUP(CP55,$AT$283:$AX$288,4,1) -> 2 | CT56: Y Range | CU56: =VLOOKUP(CU55,$AT$283:$AX$288,5,1) -> 2 | CV56: =CW63 -> 2 | CW56: =VLOOKUP(CW55,$AT$283:$AX$288,5,1) -> 2 | DC56: Y Range | DD56: =VLOOKUP(DD55,$AT$283:$AX$288,2,1) -> 3.5 | DE56: =DF63 -> 3.5 | DF56: =VLOOKUP(DF55,$AT$283:$AX$288,2,1) -> 3.5 | DJ56: Y Range | DK56: =VLOOKUP(DK55,$AT$283:$AX$288,3,1) -> 3.5 | DL56: =DM63 -> 3.5 | DM56: =VLOOKUP(DM55,$AT$283:$AX$288,3,1) -> 3.5 | DQ56: Y Range | DR56: =VLOOKUP(DR55,$AT$283:$AX$288,4,1) -> 2 | DS56: =DT63 -> 2 | DT56: =VLOOKUP(DT55,$AT$283:$AX$288,4,1) -> 2 | DX56: Y Range | DY56: =VLOOKUP(DY55,$AT$283:$AX$288,5,1) -> 2 | DZ56: =EA63 -> 2 | EA56: =VLOOKUP(EA55,$AT$283:$AX$288,5,1) -> 2 | EG56: Y Range | EH56: =VLOOKUP(EH55,$AT$283:$AX$288,2,1) -> 3.5 | EI56: =EJ63 -> 3.5 | EJ56: =VLOOKUP(EJ55,$AT$283:$AX$288,2,1) -> 3.5 | EN56: Y Range | EO56: =VLOOKUP(EO55,$AT$283:$AX$288,3,1) -> 3.5 | EP56: =EQ63 -> 3.5 | EQ56: =VLOOKUP(EQ55,$AT$283:$AX$288,3,1) -> 3.5 | EU56: Y Range | EV56: =VLOOKUP(EV55,$AT$283:$AX$288,4,1) -> 2 | EW56: =EX63 -> 2 | EX56: =VLOOKUP(EX55,$AT$283:$AX$288,4,1) -> 2 | FB56: Y Range | FC56: =VLOOKUP(FC55,$AT$283:$AX$288,5,1) -> 2 | FD56: =FE63 -> 2 | FE56: =VLOOKUP(FE55,$AT$283:$AX$288,5,1) -> 2 | FK56: Y Range | FL56: =VLOOKUP(FL55,$AT$283:$AX$288,2,1) -> 3.5 | FM56: =FN63 -> 3.5 | FN56: =VLOOKUP(FN55,$AT$283:$AX$288,2,1) -> 3.5 | FR56: Y Range | FS56: =VLOOKUP(FS55,$AT$283:$AX$288,3,1) -> 3.5 | FT56: =FU63 -> 3.5 | FU56: =VLOOKUP(FU55,$AT$283:$AX$288,3,1) -> 3.5 | FY56: Y Range | FZ56: =VLOOKUP(FZ55,$AT$283:$AX$288,4,1) -> 2 | GA56: =GB63 -> 2 | GB56: =VLOOKUP(GB55,$AT$283:$AX$288,4,1) -> 2 | GF56: Y Range | GG56: =VLOOKUP(GG55,$AT$283:$AX$288,5,1) -> 2 | GH56: =GI63 -> 2 | GI56: =VLOOKUP(GI55,$AT$283:$AX$288,5,1) -> 2
C58: BWP 1 ≤ 16', 2 > 16' | E58: =IF(ISBLANK(E56)," ", IF( OR(COUNTA(E36:G49)>1,E50/4>=2),"YES", IF(AND(E56>0,E56<=16,COUNTA(E36:G49)>=2),"YES",IF(AND(E56<=16,E50>=4),"YES","NO")))) ->  | F58: =IF(ISBLANK($E$56)," ",IF(AND(COUNTA($E$36:$G$49)>1,$E$56>16),"YES",IF(AND($E$56>0,$E$56<17,$E$50>=4),"yes",123))) ->  | L58: =IF(ISBLANK(L56)," ", IF( OR(COUNTA(L36:N49)>1,L50/4>=2),"YES", IF(AND(L56>0,L56<=16,COUNTA(L36:N49)>=2),"YES",IF(AND(L56<=16,L50>=4),"YES","NO")))) ->  | S58: =IF(ISBLANK(S56)," ", IF( OR(COUNTA(S36:U49)>1,S50/4>=2),"YES", IF(AND(S56>0,S56<=16,COUNTA(S36:U49)>=2),"YES",IF(AND(S56<=16,S50>=4),"YES","NO")))) ->  | U58: =IF(ISBLANK($E$56)," ",IF(AND(COUNTA($E$36:$G$49)>1,$E$56>16),"YES",IF(AND($E$56>0,$E$56<17,$E$50>=4),"yes",123))) ->  | Z58: =IF(ISBLANK(Z56)," ", IF( OR(COUNTA(Z36:AB49)>1,Z50/4>=2),"YES", IF(AND(Z56>0,Z56<=16,COUNTA(Z36:AB49)>=2),"YES",IF(AND(Z56<=16,Z50>=4),"YES","NO")))) ->  | AG58: =IF(ISBLANK(AG56)," ", IF( OR(COUNTA(AG36:AI49)>1,AG50/4>=2),"YES", IF(AND(AG56>0,AG56<=16,COUNTA(AG36:AI49)>=2),"YES",IF(AND(AG56<=16,AG50>=4),"YES","NO")))) ->  | AU58: X1 | AV58: low spacing | AX58: =AV55+0.00001 -> 10.00001 | BB58: X1 | BC58: low spacing | BE58: =BC55+0.00001 -> 10.00001 | BI58: X1 | BJ58: low spacing | BL58: =BJ55+0.00001 -> 10.00001 | BP58: X1 | BQ58: low spacing | BS58: =BQ55+0.00001 -> 10.00001 | BY58: X1 | BZ58: low spacing | CB58: =BZ55+0.00001 -> 10.00001 | CF58: X1 | CG58: low spacing | CI58: =CG55+0.00001 -> 10.00001 | CM58: X1 | CN58: low spacing | CP58: =CN55+0.00001 -> 10.00001 | CT58: X1 | CU58: low spacing | CW58: =CU55+0.00001 -> 10.00001 | DC58: X1 | DD58: low spacing | DF58: =DD55+0.00001 -> 10.00001 | DJ58: X1 | DK58: low spacing | DM58: =DK55+0.00001 -> 10.00001 | DQ58: X1 | DR58: low spacing | DT58: =DR55+0.00001 -> 10.00001 | DX58: X1 | DY58: low spacing | EA58: =DY55+0.00001 -> 10.00001 | EG58: X1 | EH58: low spacing | EJ58: =EH55+0.00001 -> 10.00001 | EN58: X1 | EO58: low spacing | EQ58: =EO55+0.00001 -> 10.00001 | EU58: X1 | EV58: low spacing | EX58: =EV55+0.00001 -> 10.00001 | FB58: X1 | FC58: low spacing | FE58: =FC55+0.00001 -> 10.00001 | FK58: X1 | FL58: low spacing | FN58: =FL55+0.00001 -> 10.00001 | FR58: X1 | FS58: low spacing | FU58: =FS55+0.00001 -> 10.00001 | FY58: X1 | FZ58: low spacing | GB58: =FZ55+0.00001 -> 10.00001 | GF58: X1 | GG58: low spacing | GI58: =GG55+0.00001 -> 10.00001
L59: =IF(ISBLANK($E$56)," ",IF(AND(COUNTA($E$36:$G$49)>1,$E$56>16),"YES",IF(AND($E$56>0,$E$56<17,$E$50>=4),"yes",123))) ->  | AQ59: 1 | AU59: X2 | AV59: high spacing | AX59: =AX55 -> 10 | BB59: X2 | BC59: high spacing | BE59: =BE55 -> 10 | BI59: X2 | BJ59: high spacing | BL59: =BL55 -> 10 | BP59: X2 | BQ59: high spacing | BS59: =BS55 -> 10 | BY59: X2 | BZ59: high spacing | CB59: =CB55 -> 10 | CF59: X2 | CG59: high spacing | CI59: =CI55 -> 10 | CM59: X2 | CN59: high spacing | CP59: =CP55 -> 10 | CT59: X2 | CU59: high spacing | CW59: =CW55 -> 10 | DC59: X2 | DD59: high spacing | DF59: =DF55 -> 10 | DJ59: X2 | DK59: high spacing | DM59: =DM55 -> 10 | DQ59: X2 | DR59: high spacing | DT59: =DT55 -> 10 | DX59: X2 | DY59: high spacing | EA59: =EA55 -> 10 | EG59: X2 | EH59: high spacing | EJ59: =EJ55 -> 10 | EN59: X2 | EO59: high spacing | EQ59: =EQ55 -> 10 | EU59: X2 | EV59: high spacing | EX59: =EX55 -> 10 | FB59: X2 | FC59: high spacing | FE59: =FE55 -> 10 | FK59: X2 | FL59: high spacing | FN59: =FN55 -> 10 | FR59: X2 | FS59: high spacing | FU59: =FU55 -> 10 | FY59: X2 | FZ59: high spacing | GB59: =GB55 -> 10 | GF59: X2 | GG59: high spacing | GI59: =GI55 -> 10
B60: ENDS | C60: BWP WITHIN 10' OF END | AQ60: 2 | AU60: X | AV60: actual spacing | AX60: =AW54 -> 10 | BB60: X | BC60: actual spacing | BE60: =BD54 -> 10 | BI60: X | BJ60: actual spacing | BL60: =BK54 -> 10 | BP60: X | BQ60: actual spacing | BS60: =BR54 -> 10 | BY60: X | BZ60: actual spacing | CB60: =CA54 -> 10 | CF60: X | CG60: actual spacing | CI60: =CH54 -> 10 | CM60: X | CN60: actual spacing | CP60: =CO54 -> 10 | CT60: X | CU60: actual spacing | CW60: =CV54 -> 10 | DC60: X | DD60: actual spacing | DF60: =DE54 -> 10 | DJ60: X | DK60: actual spacing | DM60: =DL54 -> 10 | DQ60: X | DR60: actual spacing | DT60: =DS54 -> 10 | DX60: X | DY60: actual spacing | EA60: =DZ54 -> 10 | EG60: X | EH60: actual spacing | EJ60: =EI54 -> 10 | EN60: X | EO60: actual spacing | EQ60: =EP54 -> 10 | EU60: X | EV60: actual spacing | EX60: =EW54 -> 10 | FB60: X | FC60: actual spacing | FE60: =FD54 -> 10 | FK60: X | FL60: actual spacing | FN60: =FM54 -> 10 | FR60: X | FS60: actual spacing | FU60: =FT54 -> 10 | FY60: X | FZ60: actual spacing | GB60: =GA54 -> 10 | GF60: X | GG60: actual spacing | GI60: =GH54 -> 10
AQ61: 3 | AU61: Y1 | AV61: low tabular | AX61: =AV56 -> 3.5 | BB61: Y1 | BC61: low tabular | BE61: =BC56 -> 3.5 | BI61: Y1 | BJ61: low tabular | BL61: =BJ56 -> 2 | BP61: Y1 | BQ61: low tabular | BS61: =BQ56 -> 2 | BY61: Y1 | BZ61: low tabular | CB61: =BZ56 -> 3.5 | CF61: Y1 | CG61: low tabular | CI61: =CG56 -> 3.5 | CM61: Y1 | CN61: low tabular | CP61: =CN56 -> 2 | CT61: Y1 | CU61: low tabular | CW61: =CU56 -> 2 | DC61: Y1 | DD61: low tabular | DF61: =DD56 -> 3.5 | DJ61: Y1 | DK61: low tabular | DM61: =DK56 -> 3.5 | DQ61: Y1 | DR61: low tabular | DT61: =DR56 -> 2 | DX61: Y1 | DY61: low tabular | EA61: =DY56 -> 2 | EG61: Y1 | EH61: low tabular | EJ61: =EH56 -> 3.5 | EN61: Y1 | EO61: low tabular | EQ61: =EO56 -> 3.5 | EU61: Y1 | EV61: low tabular | EX61: =EV56 -> 2 | FB61: Y1 | FC61: low tabular | FE61: =FC56 -> 2 | FK61: Y1 | FL61: low tabular | FN61: =FL56 -> 3.5 | FR61: Y1 | FS61: low tabular | FU61: =FS56 -> 3.5 | FY61: Y1 | FZ61: low tabular | GB61: =FZ56 -> 2 | GF61: Y1 | GG61: low tabular | GI61: =GG56 -> 2
C62: CONTINUOUS END CONDITION | AQ62: 4 | AU62: Y2 | AV62: high tabular | AX62: =AX56 -> 3.5 | BB62: Y2 | BC62: high tabular | BE62: =BE56 -> 3.5 | BI62: Y2 | BJ62: high tabular | BL62: =BL56 -> 2 | BP62: Y2 | BQ62: high tabular | BS62: =BS56 -> 2 | BY62: Y2 | BZ62: high tabular | CB62: =CB56 -> 3.5 | CF62: Y2 | CG62: high tabular | CI62: =CI56 -> 3.5 | CM62: Y2 | CN62: high tabular | CP62: =CP56 -> 2 | CT62: Y2 | CU62: high tabular | CW62: =CW56 -> 2 | DC62: Y2 | DD62: high tabular | DF62: =DF56 -> 3.5 | DJ62: Y2 | DK62: high tabular | DM62: =DM56 -> 3.5 | DQ62: Y2 | DR62: high tabular | DT62: =DT56 -> 2 | DX62: Y2 | DY62: high tabular | EA62: =EA56 -> 2 | EG62: Y2 | EH62: high tabular | EJ62: =EJ56 -> 3.5 | EN62: Y2 | EO62: high tabular | EQ62: =EQ56 -> 3.5 | EU62: Y2 | EV62: high tabular | EX62: =EX56 -> 2 | FB62: Y2 | FC62: high tabular | FE62: =FE56 -> 2 | FK62: Y2 | FL62: high tabular | FN62: =FN56 -> 3.5 | FR62: Y2 | FS62: high tabular | FU62: =FU56 -> 3.5 | FY62: Y2 | FZ62: high tabular | GB62: =GB56 -> 2 | GF62: Y2 | GG62: high tabular | GI62: =GI56 -> 2
AQ63: 5 | AU63: Y | AV63: TABULAR VALUE | AX63: =AX61+(AX60-AX58)*(AX62-AX61)/(AX59-AX58) -> 3.5 | BB63: Y | BC63: TABULAR VALUE | BE63: =BE61+(BE60-BE58)*(BE62-BE61)/(BE59-BE58) -> 3.5 | BI63: Y | BJ63: TABULAR VALUE | BL63: =BL61+(BL60-BL58)*(BL62-BL61)/(BL59-BL58) -> 2 | BP63: Y | BQ63: TABULAR VALUE | BS63: =BS61+(BS60-BS58)*(BS62-BS61)/(BS59-BS58) -> 2 | BY63: Y | BZ63: TABULAR VALUE | CB63: =CB61+(CB60-CB58)*(CB62-CB61)/(CB59-CB58) -> 3.5 | CF63: Y | CG63: TABULAR VALUE | CI63: =CI61+(CI60-CI58)*(CI62-CI61)/(CI59-CI58) -> 3.5 | CM63: Y | CN63: TABULAR VALUE | CP63: =CP61+(CP60-CP58)*(CP62-CP61)/(CP59-CP58) -> 2 | CT63: Y | CU63: TABULAR VALUE | CW63: =CW61+(CW60-CW58)*(CW62-CW61)/(CW59-CW58) -> 2 | DC63: Y | DD63: TABULAR VALUE | DF63: =DF61+(DF60-DF58)*(DF62-DF61)/(DF59-DF58) -> 3.5 | DJ63: Y | DK63: TABULAR VALUE | DM63: =DM61+(DM60-DM58)*(DM62-DM61)/(DM59-DM58) -> 3.5 | DQ63: Y | DR63: TABULAR VALUE | DT63: =DT61+(DT60-DT58)*(DT62-DT61)/(DT59-DT58) -> 2 | DX63: Y | DY63: TABULAR VALUE | EA63: =EA61+(EA60-EA58)*(EA62-EA61)/(EA59-EA58) -> 2 | EG63: Y | EH63: TABULAR VALUE | EJ63: =EJ61+(EJ60-EJ58)*(EJ62-EJ61)/(EJ59-EJ58) -> 3.5 | EN63: Y | EO63: TABULAR VALUE | EQ63: =EQ61+(EQ60-EQ58)*(EQ62-EQ61)/(EQ59-EQ58) -> 3.5 | EU63: Y | EV63: TABULAR VALUE | EX63: =EX61+(EX60-EX58)*(EX62-EX61)/(EX59-EX58) -> 2 | FB63: Y | FC63: TABULAR VALUE | FE63: =FE61+(FE60-FE58)*(FE62-FE61)/(FE59-FE58) -> 2 | FK63: Y | FL63: TABULAR VALUE | FN63: =FN61+(FN60-FN58)*(FN62-FN61)/(FN59-FN58) -> 3.5 | FR63: Y | FS63: TABULAR VALUE | FU63: =FU61+(FU60-FU58)*(FU62-FU61)/(FU59-FU58) -> 3.5 | FY63: Y | FZ63: TABULAR VALUE | GB63: =GB61+(GB60-GB58)*(GB62-GB61)/(GB59-GB58) -> 2 | GF63: Y | GG63: TABULAR VALUE | GI63: =GI61+(GI60-GI58)*(GI62-GI61)/(GI59-GI58) -> 2
B64: BWL COMPLIANCE PASS-FAIL | E64: =IF(E56=0," ",IF(AND(E52="yes",E54="yes",E58="yes",E60="yes",H60="yes",AU5=401,E62>0,H62>0),"PASS",IF(AND(E52="Yes",E54="yes",E58="yes",E60="yes",H60="yes",AU5<>401),"PASS","FAIL"))) ->  | L64: =IF(L56=0," ",IF(AND(L52="yes",L54="yes",L58="yes",L60="yes",O60="yes",BY5=401,L62>0,O62>0),"PASS",IF(AND(L52="Yes",L54="yes",L58="yes",L60="yes",O60="yes",BY5<>401),"PASS","FAIL"))) ->  | S64: =IF(S56=0," ",IF(AND(S52="yes",S54="yes",S58="yes",S60="yes",V60="yes",DC5=401,S62>0,V62>0),"PASS",IF(AND(S52="Yes",S54="yes",S58="yes",S60="yes",V60="yes",DC5<>401),"PASS","FAIL"))) ->  | Z64: =IF(Z56=0," ",IF(AND(Z52="yes",Z54="yes",Z58="yes",Z60="yes",AC60="yes",EG5=401,Z62>0,AC62>0),"PASS",IF(AND(Z52="Yes",Z54="yes",Z58="yes",Z60="yes",AC60="yes",EG5<>401),"PASS","FAIL"))) ->  | AG64: =IF(AG56=0," ",IF(AND(AG52="yes",AG54="yes",AG58="yes",AG60="yes",AJ60="yes",FK5=401,AG62>0,AJ62>0),"PASS",IF(AND(AG52="Yes",AG54="yes",AG58="yes",AG60="yes",AJ60="yes",FK5<>401),"PASS","FAIL"))) ->  | AU64: COLUMN 1 | AX64: 101 | BB64: COLUMN 1 | BE64: 201 | BI64: COLUMN 1 | BL64: 301 | BP64: COLUMN 1 | BS64: 401 | BY64: =BY50 -> COLUMN 2 | CB64: 101 | CF64: =BY64 -> COLUMN 2 | CI64: 201 | CM64: =CF64 -> COLUMN 2 | CP64: 301 | CT64: =CM64 -> COLUMN 2 | CW64: 401 | DC64: =DC50 -> COLUMN 3 | DF64: 101 | DJ64: =DC64 -> COLUMN 3 | DM64: 201 | DQ64: =DJ64 -> COLUMN 3 | DT64: 301 | DX64: =DQ64 -> COLUMN 3 | EA64: 401 | EG64: =EG50 -> COLUMN 4 | EJ64: 101 | EN64: =EG64 -> COLUMN 4 | EQ64: 201 | EU64: =EN64 -> COLUMN 4 | EX64: 301 | FB64: =EU64 -> COLUMN 4 | FE64: 401 | FK64: =FK50 -> COLUMN 5 | FN64: 101 | FR64: =FK64 -> COLUMN 5 | FU64: 201 | FY64: =FR64 -> COLUMN 5 | GB64: 301 | GF64: =FY64 -> COLUMN 5 | GI64: 401
AU65: INTERPOLATED TABULAR VALUE | AX65: =$AT$68*$AT$69*AX64 -> 18180 | BB65: INTERPOLATED TABULAR VALUE | BE65: =$AT$68*$AT$69*BE64 -> 36180 | BI65: INTERPOLATED TABULAR VALUE | BL65: =$AT$68*$AT$69*BL64 -> 54180 | BP65: INTERPOLATED TABULAR VALUE | BS65: =$AT$68*$AT$69*BS64 -> 72180 | BY65: INTERPOLATED TABULAR VALUE | CB65: =$AT$68*$AT$69*CB64 -> 18180 | CF65: INTERPOLATED TABULAR VALUE | CI65: =$AT$68*$AT$69*CI64 -> 36180 | CM65: INTERPOLATED TABULAR VALUE | CP65: =$AT$68*$AT$69*CP64 -> 54180 | CT65: INTERPOLATED TABULAR VALUE | CW65: =$AT$68*$AT$69*CW64 -> 72180 | DC65: INTERPOLATED TABULAR VALUE | DF65: =$AT$68*$AT$69*DF64 -> 18180 | DJ65: INTERPOLATED TABULAR VALUE | DM65: =$AT$68*$AT$69*DM64 -> 36180 | DQ65: INTERPOLATED TABULAR VALUE | DT65: =$AT$68*$AT$69*DT64 -> 54180 | DX65: INTERPOLATED TABULAR VALUE | EA65: =$AT$68*$AT$69*EA64 -> 72180 | EG65: INTERPOLATED TABULAR VALUE | EJ65: =$AT$68*$AT$69*EJ64 -> 18180 | EN65: INTERPOLATED TABULAR VALUE | EQ65: =$AT$68*$AT$69*EQ64 -> 36180 | EU65: INTERPOLATED TABULAR VALUE | EX65: =$AT$68*$AT$69*EX64 -> 54180 | FB65: INTERPOLATED TABULAR VALUE | FE65: =$AT$68*$AT$69*FE64 -> 72180 | FK65: INTERPOLATED TABULAR VALUE | FN65: =$AT$68*$AT$69*FN64 -> 18180 | FR65: INTERPOLATED TABULAR VALUE | FU65: =$AT$68*$AT$69*FU64 -> 36180 | FY65: INTERPOLATED TABULAR VALUE | GB65: =$AT$68*$AT$69*GB64 -> 54180 | GF65: INTERPOLATED TABULAR VALUE | GI65: =$AT$68*$AT$69*GI64 -> 72180
E66: YES | H66: YES | L66: YES | O66: YES | S66: YES | V66: YES | Z66: YES | AC66: YES | AG66: YES | AJ66: YES | AU66: Y = Y1 + (X-X1) * (Y2-Y1)/(X2-X1) | BB66: Y = Y1 + (X-X1) * (Y2-Y1)/(X2-X1) | BI66: Y = Y1 + (X-X1) * (Y2-Y1)/(X2-X1) | BP66: Y = Y1 + (X-X1) * (Y2-Y1)/(X2-X1) | BY66: Y = Y1 + (X-X1) * (Y2-Y1)/(X2-X1) | CF66: Y = Y1 + (X-X1) * (Y2-Y1)/(X2-X1) | CM66: Y = Y1 + (X-X1) * (Y2-Y1)/(X2-X1) | CT66: Y = Y1 + (X-X1) * (Y2-Y1)/(X2-X1) | DC66: Y = Y1 + (X-X1) * (Y2-Y1)/(X2-X1) | DJ66: Y = Y1 + (X-X1) * (Y2-Y1)/(X2-X1) | DQ66: Y = Y1 + (X-X1) * (Y2-Y1)/(X2-X1) | DX66: Y = Y1 + (X-X1) * (Y2-Y1)/(X2-X1) | EG66: Y = Y1 + (X-X1) * (Y2-Y1)/(X2-X1) | EN66: Y = Y1 + (X-X1) * (Y2-Y1)/(X2-X1) | EU66: Y = Y1 + (X-X1) * (Y2-Y1)/(X2-X1) | FB66: Y = Y1 + (X-X1) * (Y2-Y1)/(X2-X1) | FK66: Y = Y1 + (X-X1) * (Y2-Y1)/(X2-X1) | FR66: Y = Y1 + (X-X1) * (Y2-Y1)/(X2-X1) | FY66: Y = Y1 + (X-X1) * (Y2-Y1)/(X2-X1) | GF66: Y = Y1 + (X-X1) * (Y2-Y1)/(X2-X1)
AT68: 90 | AU68: Avg spacing | AW68: =AW54 -> 10 | BB68: Avg spacing | BD68: =AW68 -> 10 | BI68: Avg spacing | BK68: =BD68 -> 10 | BP68: Avg spacing | BR68: =BK68 -> 10 | BX68: 90 | BY68: Avg spacing | CA68: =CA54 -> 10 | CF68: Avg spacing | CH68: =CA68 -> 10 | CM68: Avg spacing | CO68: =CH68 -> 10 | CT68: Avg spacing | CV68: =CO68 -> 10 | DB68: 90 | DC68: Avg spacing | DE68: =DE54 -> 10 | DJ68: Avg spacing | DL68: =DE68 -> 10 | DQ68: Avg spacing | DS68: =DL68 -> 10 | DX68: Avg spacing | DZ68: =DS68 -> 10 | EF68: 90 | EG68: Avg spacing | EI68: =EI54 -> 10 | EN68: Avg spacing | EP68: =EI68 -> 10 | EU68: Avg spacing | EW68: =EP68 -> 10 | FB68: Avg spacing | FD68: =EW68 -> 10 | FJ68: 90 | FK68: Avg spacing | FM68: =FM54 -> 10 | FR68: Avg spacing | FT68: =FM68 -> 10 | FY68: Avg spacing | GA68: =FT68 -> 10 | GF68: Avg spacing | GH68: =GA68 -> 10
C69: Instructions: You can only fill yellow cells. White cells will automatically fill in as you complete certain yellow cells. Print the worksheet when done. | AT69: 2 | AU69: X Range | AV69: =FLOOR(AW68,10) -> 10 | AX69: =CEILING(AW68,10) -> 10 | BB69: X Range | BC69: =FLOOR(BD68,10) -> 10 | BE69: =CEILING(BD68,10) -> 10 | BI69: X Range | BJ69: =FLOOR(BK68,10) -> 10 | BL69: =CEILING(BK68,10) -> 10 | BP69: X Range | BQ69: =FLOOR(BR68,10) -> 10 | BS69: =CEILING(BR68,10) -> 10 | BX69: 2 | BY69: X Range | BZ69: =FLOOR(CA68,10) -> 10 | CB69: =CEILING(CA68,10) -> 10 | CF69: X Range | CG69: =FLOOR(CH68,10) -> 10 | CI69: =CEILING(CH68,10) -> 10 | CM69: X Range | CN69: =FLOOR(CO68,10) -> 10 | CP69: =CEILING(CO68,10) -> 10 | CT69: X Range | CU69: =FLOOR(CV68,10) -> 10 | CW69: =CEILING(CV68,10) -> 10 | DB69: 2 | DC69: X Range | DD69: =FLOOR(DE68,10) -> 10 | DF69: =CEILING(DE68,10) -> 10 | DJ69: X Range | DK69: =FLOOR(DL68,10) -> 10 | DM69: =CEILING(DL68,10) -> 10 | DQ69: X Range | DR69: =FLOOR(DS68,10) -> 10 | DT69: =CEILING(DS68,10) -> 10 | DX69: X Range | DY69: =FLOOR(DZ68,10) -> 10 | EA69: =CEILING(DZ68,10) -> 10 | EF69: 2 | EG69: X Range | EH69: =FLOOR(EI68,10) -> 10 | EJ69: =CEILING(EI68,10) -> 10 | EN69: X Range | EO69: =FLOOR(EP68,10) -> 10 | EQ69: =CEILING(EP68,10) -> 10 | EU69: X Range | EV69: =FLOOR(EW68,10) -> 10 | EX69: =CEILING(EW68,10) -> 10 | FB69: X Range | FC69: =FLOOR(FD68,10) -> 10 | FE69: =CEILING(FD68,10) -> 10 | FJ69: 2 | FK69: X Range | FL69: =FLOOR(FM68,10) -> 10 | FN69: =CEILING(FM68,10) -> 10 | FR69: X Range | FS69: =FLOOR(FT68,10) -> 10 | FU69: =CEILING(FT68,10) -> 10 | FY69: X Range | FZ69: =FLOOR(GA68,10) -> 10 | GB69: =CEILING(GA68,10) -> 10 | GF69: X Range | GG69: =FLOOR(GH68,10) -> 10 | GI69: =CEILING(GH68,10) -> 10
AU70: Y Range | AV70: =VLOOKUP(AV69,$AT$289:$AX$294,2,1) -> 7 | AW70: =AX77 -> 7 | AX70: =VLOOKUP(AX69,$AT$289:$AX$294,2,1) -> 7 | BB70: Y Range | BC70: =VLOOKUP(BC69,$AT$289:$AX$294,3,1) -> 7 | BD70: =BE77 -> 7 | BE70: =VLOOKUP(BE69,$AT$289:$AX$294,3,1) -> 7 | BI70: Y Range | BJ70: =VLOOKUP(BJ69,$AT$289:$AX$294,4,1) -> 4 | BK70: =BL77 -> 4 | BL70: =VLOOKUP(BL69,$AT$289:$AX$294,4,1) -> 4 | BP70: Y Range | BQ70: =VLOOKUP(BQ69,$AT$289:$AX$294,5,1) -> 3.5 | BR70: =BS77 -> 3.5 | BS70: =VLOOKUP(BS69,$AT$289:$AX$294,5,1) -> 3.5 | BY70: Y Range | BZ70: =VLOOKUP(BZ69,$AT$289:$AX$294,2,1) -> 7 | CA70: =CB77 -> 7 | CB70: =VLOOKUP(CB69,$AT$289:$AX$294,2,1) -> 7 | CF70: Y Range | CG70: =VLOOKUP(CG69,$AT$289:$AX$294,3,1) -> 7 | CH70: =CI77 -> 7 | CI70: =VLOOKUP(CI69,$AT$289:$AX$294,3,1) -> 7 | CM70: Y Range | CN70: =VLOOKUP(CN69,$AT$289:$AX$294,4,1) -> 4 | CO70: =CP77 -> 4 | CP70: =VLOOKUP(CP69,$AT$289:$AX$294,4,1) -> 4 | CT70: Y Range | CU70: =VLOOKUP(CU69,$AT$289:$AX$294,5,1) -> 3.5 | CV70: =CW77 -> 3.5 | CW70: =VLOOKUP(CW69,$AT$289:$AX$294,5,1) -> 3.5 | DC70: Y Range | DD70: =VLOOKUP(DD69,$AT$289:$AX$294,2,1) -> 7 | DE70: =DF77 -> 7 | DF70: =VLOOKUP(DF69,$AT$289:$AX$294,2,1) -> 7 | DJ70: Y Range | DK70: =VLOOKUP(DK69,$AT$289:$AX$294,3,1) -> 7 | DL70: =DM77 -> 7 | DM70: =VLOOKUP(DM69,$AT$289:$AX$294,3,1) -> 7 | DQ70: Y Range | DR70: =VLOOKUP(DR69,$AT$289:$AX$294,4,1) -> 4 | DS70: =DT77 -> 4 | DT70: =VLOOKUP(DT69,$AT$289:$AX$294,4,1) -> 4 | DX70: Y Range | DY70: =VLOOKUP(DY69,$AT$289:$AX$294,5,1) -> 3.5 | DZ70: =EA77 -> 3.5 | EA70: =VLOOKUP(EA69,$AT$289:$AX$294,5,1) -> 3.5 | EG70: Y Range | EH70: =VLOOKUP(EH69,$AT$289:$AX$294,2,1) -> 7 | EI70: =EJ77 -> 7 | EJ70: =VLOOKUP(EJ69,$AT$289:$AX$294,2,1) -> 7 | EN70: Y Range | EO70: =VLOOKUP(EO69,$AT$289:$AX$294,3,1) -> 7 | EP70: =EQ77 -> 7 | EQ70: =VLOOKUP(EQ69,$AT$289:$AX$294,3,1) -> 7 | EU70: Y Range | EV70: =VLOOKUP(EV69,$AT$289:$AX$294,4,1) -> 4 | EW70: =EX77 -> 4 | EX70: =VLOOKUP(EX69,$AT$289:$AX$294,4,1) -> 4 | FB70: Y Range | FC70: =VLOOKUP(FC69,$AT$289:$AX$294,5,1) -> 3.5 | FD70: =FE77 -> 3.5 | FE70: =VLOOKUP(FE69,$AT$289:$AX$294,5,1) -> 3.5 | FK70: Y Range | FL70: =VLOOKUP(FL69,$AT$289:$AX$294,2,1) -> 7 | FM70: =FN77 -> 7 | FN70: =VLOOKUP(FN69,$AT$289:$AX$294,2,1) -> 7 | FR70: Y Range | FS70: =VLOOKUP(FS69,$AT$289:$AX$294,3,1) -> 7 | FT70: =FU77 -> 7 | FU70: =VLOOKUP(FU69,$AT$289:$AX$294,3,1) -> 7 | FY70: Y Range | FZ70: =VLOOKUP(FZ69,$AT$289:$AX$294,4,1) -> 4 | GA70: =GB77 -> 4 | GB70: =VLOOKUP(GB69,$AT$289:$AX$294,4,1) -> 4 | GF70: Y Range | GG70: =VLOOKUP(GG69,$AT$289:$AX$294,5,1) -> 3.5 | GH70: =GI77 -> 3.5 | GI70: =VLOOKUP(GI69,$AT$289:$AX$294,5,1) -> 3.5
AU72: X1 | AV72: low spacing | AX72: =AV69+0.00001 -> 10.00001 | BB72: X1 | BC72: low spacing | BE72: =BC69+0.00001 -> 10.00001 | BI72: X1 | BJ72: low spacing | BL72: =BJ69+0.00001 -> 10.00001 | BP72: X1 | BQ72: low spacing | BS72: =BQ69+0.00001 -> 10.00001 | BY72: X1 | BZ72: low spacing | CB72: =BZ69+0.00001 -> 10.00001 | CF72: X1 | CG72: low spacing | CI72: =CG69+0.00001 -> 10.00001 | CM72: X1 | CN72: low spacing | CP72: =CN69+0.00001 -> 10.00001 | CT72: X1 | CU72: low spacing | CW72: =CU69+0.00001 -> 10.00001 | DC72: X1 | DD72: low spacing | DF72: =DD69+0.00001 -> 10.00001 | DJ72: X1 | DK72: low spacing | DM72: =DK69+0.00001 -> 10.00001 | DQ72: X1 | DR72: low spacing | DT72: =DR69+0.00001 -> 10.00001 | DX72: X1 | DY72: low spacing | EA72: =DY69+0.00001 -> 10.00001 | EG72: X1 | EH72: low spacing | EJ72: =EH69+0.00001 -> 10.00001 | EN72: X1 | EO72: low spacing | EQ72: =EO69+0.00001 -> 10.00001 | EU72: X1 | EV72: low spacing | EX72: =EV69+0.00001 -> 10.00001 | FB72: X1 | FC72: low spacing | FE72: =FC69+0.00001 -> 10.00001 | FK72: X1 | FL72: low spacing | FN72: =FL69+0.00001 -> 10.00001 | FR72: X1 | FS72: low spacing | FU72: =FS69+0.00001 -> 10.00001 | FY72: X1 | FZ72: low spacing | GB72: =FZ69+0.00001 -> 10.00001 | GF72: X1 | GG72: low spacing | GI72: =GG69+0.00001 -> 10.00001
AU73: X2 | AV73: high spacing | AX73: =AX69 -> 10 | BB73: X2 | BC73: high spacing | BE73: =BE69 -> 10 | BI73: X2 | BJ73: high spacing | BL73: =BL69 -> 10 | BP73: X2 | BQ73: high spacing | BS73: =BS69 -> 10 | BY73: X2 | BZ73: high spacing | CB73: =CB69 -> 10 | CF73: X2 | CG73: high spacing | CI73: =CI69 -> 10 | CM73: X2 | CN73: high spacing | CP73: =CP69 -> 10 | CT73: X2 | CU73: high spacing | CW73: =CW69 -> 10 | DC73: X2 | DD73: high spacing | DF73: =DF69 -> 10 | DJ73: X2 | DK73: high spacing | DM73: =DM69 -> 10 | DQ73: X2 | DR73: high spacing | DT73: =DT69 -> 10 | DX73: X2 | DY73: high spacing | EA73: =EA69 -> 10 | EG73: X2 | EH73: high spacing | EJ73: =EJ69 -> 10 | EN73: X2 | EO73: high spacing | EQ73: =EQ69 -> 10 | EU73: X2 | EV73: high spacing | EX73: =EX69 -> 10 | FB73: X2 | FC73: high spacing | FE73: =FE69 -> 10 | FK73: X2 | FL73: high spacing | FN73: =FN69 -> 10 | FR73: X2 | FS73: high spacing | FU73: =FU69 -> 10 | FY73: X2 | FZ73: high spacing | GB73: =GB69 -> 10 | GF73: X2 | GG73: high spacing | GI73: =GI69 -> 10
AU74: X | AV74: actual spacing | AX74: =AW68 -> 10 | BB74: X | BC74: actual spacing | BE74: =BD68 -> 10 | BI74: X | BJ74: actual spacing | BL74: =BK68 -> 10 | BP74: X | BQ74: actual spacing | BS74: =BR68 -> 10 | BY74: X | BZ74: actual spacing | CB74: =CA68 -> 10 | CF74: X | CG74: actual spacing | CI74: =CH68 -> 10 | CM74: X | CN74: actual spacing | CP74: =CO68 -> 10 | CT74: X | CU74: actual spacing | CW74: =CV68 -> 10 | DC74: X | DD74: actual spacing | DF74: =DE68 -> 10 | DJ74: X | DK74: actual spacing | DM74: =DL68 -> 10 | DQ74: X | DR74: actual spacing | DT74: =DS68 -> 10 | DX74: X | DY74: actual spacing | EA74: =DZ68 -> 10 | EG74: X | EH74: actual spacing | EJ74: =EI68 -> 10 | EN74: X | EO74: actual spacing | EQ74: =EP68 -> 10 | EU74: X | EV74: actual spacing | EX74: =EW68 -> 10 | FB74: X | FC74: actual spacing | FE74: =FD68 -> 10 | FK74: X | FL74: actual spacing | FN74: =FM68 -> 10 | FR74: X | FS74: actual spacing | FU74: =FT68 -> 10 | FY74: X | FZ74: actual spacing | GB74: =GA68 -> 10 | GF74: X | GG74: actual spacing | GI74: =GH68 -> 10
AU75: Y1 | AV75: low tabular | AX75: =AV70 -> 7 | BB75: Y1 | BC75: low tabular | BE75: =BC70 -> 7 | BI75: Y1 | BJ75: low tabular | BL75: =BJ70 -> 4 | BP75: Y1 | BQ75: low tabular | BS75: =BQ70 -> 3.5 | BY75: Y1 | BZ75: low tabular | CB75: =BZ70 -> 7 | CF75: Y1 | CG75: low tabular | CI75: =CG70 -> 7 | CM75: Y1 | CN75: low tabular | CP75: =CN70 -> 4 | CT75: Y1 | CU75: low tabular | CW75: =CU70 -> 3.5 | DC75: Y1 | DD75: low tabular | DF75: =DD70 -> 7 | DJ75: Y1 | DK75: low tabular | DM75: =DK70 -> 7 | DQ75: Y1 | DR75: low tabular | DT75: =DR70 -> 4 | DX75: Y1 | DY75: low tabular | EA75: =DY70 -> 3.5 | EG75: Y1 | EH75: low tabular | EJ75: =EH70 -> 7 | EN75: Y1 | EO75: low tabular | EQ75: =EO70 -> 7 | EU75: Y1 | EV75: low tabular | EX75: =EV70 -> 4 | FB75: Y1 | FC75: low tabular | FE75: =FC70 -> 3.5 | FK75: Y1 | FL75: low tabular | FN75: =FL70 -> 7 | FR75: Y1 | FS75: low tabular | FU75: =FS70 -> 7 | FY75: Y1 | FZ75: low tabular | GB75: =FZ70 -> 4 | GF75: Y1 | GG75: low tabular | GI75: =GG70 -> 3.5
C76: Time Saver (be sure your cursor is NOT in one of the yellow cells ) | D76: Control + Shift + A To clear the contents of all yellow cells of the sheet | AU76: Y2 | AV76: high tabular | AX76: =AX70 -> 7 | BB76: Y2 | BC76: high tabular | BE76: =BE70 -> 7 | BI76: Y2 | BJ76: high tabular | BL76: =BL70 -> 4 | BP76: Y2 | BQ76: high tabular | BS76: =BS70 -> 3.5 | BY76: Y2 | BZ76: high tabular | CB76: =CB70 -> 7 | CF76: Y2 | CG76: high tabular | CI76: =CI70 -> 7 | CM76: Y2 | CN76: high tabular | CP76: =CP70 -> 4 | CT76: Y2 | CU76: high tabular | CW76: =CW70 -> 3.5 | DC76: Y2 | DD76: high tabular | DF76: =DF70 -> 7 | DJ76: Y2 | DK76: high tabular | DM76: =DM70 -> 7 | DQ76: Y2 | DR76: high tabular | DT76: =DT70 -> 4 | DX76: Y2 | DY76: high tabular | EA76: =EA70 -> 3.5 | EG76: Y2 | EH76: high tabular | EJ76: =EJ70 -> 7 | EN76: Y2 | EO76: high tabular | EQ76: =EQ70 -> 7 | EU76: Y2 | EV76: high tabular | EX76: =EX70 -> 4 | FB76: Y2 | FC76: high tabular | FE76: =FE70 -> 3.5 | FK76: Y2 | FL76: high tabular | FN76: =FN70 -> 7 | FR76: Y2 | FS76: high tabular | FU76: =FU70 -> 7 | FY76: Y2 | FZ76: high tabular | GB76: =GB70 -> 4 | GF76: Y2 | GG76: high tabular | GI76: =GI70 -> 3.5
AU77: Y | AV77: TABULAR VALUE | AX77: =AX75+(AX74-AX72)*(AX76-AX75)/(AX73-AX72) -> 7 | BB77: Y | BC77: TABULAR VALUE | BE77: =BE75+(BE74-BE72)*(BE76-BE75)/(BE73-BE72) -> 7 | BI77: Y | BJ77: TABULAR VALUE | BL77: =BL75+(BL74-BL72)*(BL76-BL75)/(BL73-BL72) -> 4 | BP77: Y | BQ77: TABULAR VALUE | BS77: =BS75+(BS74-BS72)*(BS76-BS75)/(BS73-BS72) -> 3.5 | BY77: Y | BZ77: TABULAR VALUE | CB77: =CB75+(CB74-CB72)*(CB76-CB75)/(CB73-CB72) -> 7 | CF77: Y | CG77: TABULAR VALUE | CI77: =CI75+(CI74-CI72)*(CI76-CI75)/(CI73-CI72) -> 7 | CM77: Y | CN77: TABULAR VALUE | CP77: =CP75+(CP74-CP72)*(CP76-CP75)/(CP73-CP72) -> 4 | CT77: Y | CU77: TABULAR VALUE | CW77: =CW75+(CW74-CW72)*(CW76-CW75)/(CW73-CW72) -> 3.5 | DC77: Y | DD77: TABULAR VALUE | DF77: =DF75+(DF74-DF72)*(DF76-DF75)/(DF73-DF72) -> 7 | DJ77: Y | DK77: TABULAR VALUE | DM77: =DM75+(DM74-DM72)*(DM76-DM75)/(DM73-DM72) -> 7 | DQ77: Y | DR77: TABULAR VALUE | DT77: =DT75+(DT74-DT72)*(DT76-DT75)/(DT73-DT72) -> 4 | DX77: Y | DY77: TABULAR VALUE | EA77: =EA75+(EA74-EA72)*(EA76-EA75)/(EA73-EA72) -> 3.5 | EG77: Y | EH77: TABULAR VALUE | EJ77: =EJ75+(EJ74-EJ72)*(EJ76-EJ75)/(EJ73-EJ72) -> 7 | EN77: Y | EO77: TABULAR VALUE | EQ77: =EQ75+(EQ74-EQ72)*(EQ76-EQ75)/(EQ73-EQ72) -> 7 | EU77: Y | EV77: TABULAR VALUE | EX77: =EX75+(EX74-EX72)*(EX76-EX75)/(EX73-EX72) -> 4 | FB77: Y | FC77: TABULAR VALUE | FE77: =FE75+(FE74-FE72)*(FE76-FE75)/(FE73-FE72) -> 3.5 | FK77: Y | FL77: TABULAR VALUE | FN77: =FN75+(FN74-FN72)*(FN76-FN75)/(FN73-FN72) -> 7 | FR77: Y | FS77: TABULAR VALUE | FU77: =FU75+(FU74-FU72)*(FU76-FU75)/(FU73-FU72) -> 7 | FY77: Y | FZ77: TABULAR VALUE | GB77: =GB75+(GB74-GB72)*(GB76-GB75)/(GB73-GB72) -> 4 | GF77: Y | GG77: TABULAR VALUE | GI77: =GI75+(GI74-GI72)*(GI76-GI75)/(GI73-GI72) -> 3.5
AU78: COLUMN 1 | AX78: 101 | BB78: COLUMN 1 | BE78: 201 | BI78: COLUMN 1 | BL78: 301 | BP78: COLUMN 1 | BS78: 401 | BY78: =BY64 -> COLUMN 2 | CB78: 101 | CF78: =BY78 -> COLUMN 2 | CI78: 201 | CM78: =CF78 -> COLUMN 2 | CP78: 301 | CT78: =CM78 -> COLUMN 2 | CW78: 401 | DC78: =DC64 -> COLUMN 3 | DF78: 101 | DJ78: =DC78 -> COLUMN 3 | DM78: 201 | DQ78: =DJ78 -> COLUMN 3 | DT78: 301 | DX78: =DQ78 -> COLUMN 3 | EA78: 401 | EG78: =EG64 -> COLUMN 4 | EJ78: 101 | EN78: =EG78 -> COLUMN 4 | EQ78: 201 | EU78: =EN78 -> COLUMN 4 | EX78: 301 | FB78: =EU78 -> COLUMN 4 | FE78: 401 | FK78: =FK64 -> COLUMN 5 | FN78: 101 | FR78: =FK78 -> COLUMN 5 | FU78: 201 | FY78: =FR78 -> COLUMN 5 | GB78: 301 | GF78: =FY78 -> COLUMN 5 | GI78: 401
D79: Control + Shift + Q To clear the contents of the yellow cells in the first BWL | AU79: INTERPOLATED TABULAR VALUE | AX79: =$AT$82*$AT$83*AX78 -> 27270 | BB79: INTERPOLATED TABULAR VALUE | BE79: =$AT$82*$AT$83*BE78 -> 54270 | BI79: INTERPOLATED TABULAR VALUE | BL79: =$AT$82*$AT$83*BL78 -> 81270 | BP79: INTERPOLATED TABULAR VALUE | BS79: =$AT$82*$AT$83*BS78 -> 108270 | BY79: INTERPOLATED TABULAR VALUE | CB79: =$AT$82*$AT$83*CB78 -> 27270 | CF79: INTERPOLATED TABULAR VALUE | CI79: =$AT$82*$AT$83*CI78 -> 54270 | CM79: INTERPOLATED TABULAR VALUE | CP79: =$AT$82*$AT$83*CP78 -> 81270 | CT79: INTERPOLATED TABULAR VALUE | CW79: =$AT$82*$AT$83*CW78 -> 108270 | DC79: INTERPOLATED TABULAR VALUE | DF79: =$AT$82*$AT$83*DF78 -> 27270 | DJ79: INTERPOLATED TABULAR VALUE | DM79: =$AT$82*$AT$83*DM78 -> 54270 | DQ79: INTERPOLATED TABULAR VALUE | DT79: =$AT$82*$AT$83*DT78 -> 81270 | DX79: INTERPOLATED TABULAR VALUE | EA79: =$AT$82*$AT$83*EA78 -> 108270 | EG79: INTERPOLATED TABULAR VALUE | EJ79: =$AT$82*$AT$83*EJ78 -> 27270 | EN79: INTERPOLATED TABULAR VALUE | EQ79: =$AT$82*$AT$83*EQ78 -> 54270 | EU79: INTERPOLATED TABULAR VALUE | EX79: =$AT$82*$AT$83*EX78 -> 81270 | FB79: INTERPOLATED TABULAR VALUE | FE79: =$AT$82*$AT$83*FE78 -> 108270 | FK79: INTERPOLATED TABULAR VALUE | FN79: =$AT$82*$AT$83*FN78 -> 27270 | FR79: INTERPOLATED TABULAR VALUE | FU79: =$AT$82*$AT$83*FU78 -> 54270 | FY79: INTERPOLATED TABULAR VALUE | GB79: =$AT$82*$AT$83*GB78 -> 81270 | GF79: INTERPOLATED TABULAR VALUE | GI79: =$AT$82*$AT$83*GI78 -> 108270
AU80: Y = Y1 + (X-X1) * (Y2-Y1)/(X2-X1) | BB80: Y = Y1 + (X-X1) * (Y2-Y1)/(X2-X1) | BI80: Y = Y1 + (X-X1) * (Y2-Y1)/(X2-X1) | BP80: Y = Y1 + (X-X1) * (Y2-Y1)/(X2-X1) | BY80: Y = Y1 + (X-X1) * (Y2-Y1)/(X2-X1) | CF80: Y = Y1 + (X-X1) * (Y2-Y1)/(X2-X1) | CM80: Y = Y1 + (X-X1) * (Y2-Y1)/(X2-X1) | CT80: Y = Y1 + (X-X1) * (Y2-Y1)/(X2-X1) | DC80: Y = Y1 + (X-X1) * (Y2-Y1)/(X2-X1) | DJ80: Y = Y1 + (X-X1) * (Y2-Y1)/(X2-X1) | DQ80: Y = Y1 + (X-X1) * (Y2-Y1)/(X2-X1) | DX80: Y = Y1 + (X-X1) * (Y2-Y1)/(X2-X1) | EG80: Y = Y1 + (X-X1) * (Y2-Y1)/(X2-X1) | EN80: Y = Y1 + (X-X1) * (Y2-Y1)/(X2-X1) | EU80: Y = Y1 + (X-X1) * (Y2-Y1)/(X2-X1) | FB80: Y = Y1 + (X-X1) * (Y2-Y1)/(X2-X1) | FK80: Y = Y1 + (X-X1) * (Y2-Y1)/(X2-X1) | FR80: Y = Y1 + (X-X1) * (Y2-Y1)/(X2-X1) | FY80: Y = Y1 + (X-X1) * (Y2-Y1)/(X2-X1) | GF80: Y = Y1 + (X-X1) * (Y2-Y1)/(X2-X1)
D82: Control + Shift + w To clear the contents of the yellow cells in the second BWL | AT82: 90 | AU82: Avg spacing | AW82: =AW68 -> 10 | BB82: Avg spacing | BD82: =AW82 -> 10 | BI82: Avg spacing | BK82: =BD82 -> 10 | BP82: Avg spacing | BR82: =BK82 -> 10 | BX82: 90 | BY82: Avg spacing | CA82: =CA68 -> 10 | CF82: Avg spacing | CH82: =CA82 -> 10 | CM82: Avg spacing | CO82: =CH82 -> 10 | CT82: Avg spacing | CV82: =CO82 -> 10 | DB82: 90 | DC82: Avg spacing | DE82: =DE68 -> 10 | DJ82: Avg spacing | DL82: =DE82 -> 10 | DQ82: Avg spacing | DS82: =DL82 -> 10 | DX82: Avg spacing | DZ82: =DS82 -> 10 | EF82: 90 | EG82: Avg spacing | EI82: =EI68 -> 10 | EN82: Avg spacing | EP82: =EI82 -> 10 | EU82: Avg spacing | EW82: =EP82 -> 10 | FB82: Avg spacing | FD82: =EW82 -> 10 | FJ82: 90 | FK82: Avg spacing | FM82: =FM68 -> 10 | FR82: Avg spacing | FT82: =FM82 -> 10 | FY82: Avg spacing | GA82: =FT82 -> 10 | GF82: Avg spacing | GH82: =GA82 -> 10
AT83: 3 | AU83: X Range | AV83: =FLOOR(AW82,10) -> 10 | AX83: =CEILING(AW82,10) -> 10 | BB83: X Range | BC83: =FLOOR(BD82,10) -> 10 | BE83: =CEILING(BD82,10) -> 10 | BI83: X Range | BJ83: =FLOOR(BK82,10) -> 10 | BL83: =CEILING(BK82,10) -> 10 | BP83: X Range | BQ83: =FLOOR(BR82,10) -> 10 | BS83: =CEILING(BR82,10) -> 10 | BX83: 3 | BY83: X Range | BZ83: =FLOOR(CA82,10) -> 10 | CB83: =CEILING(CA82,10) -> 10 | CF83: X Range | CG83: =FLOOR(CH82,10) -> 10 | CI83: =CEILING(CH82,10) -> 10 | CM83: X Range | CN83: =FLOOR(CO82,10) -> 10 | CP83: =CEILING(CO82,10) -> 10 | CT83: X Range | CU83: =FLOOR(CV82,10) -> 10 | CW83: =CEILING(CV82,10) -> 10 | DB83: 3 | DC83: X Range | DD83: =FLOOR(DE82,10) -> 10 | DF83: =CEILING(DE82,10) -> 10 | DJ83: X Range | DK83: =FLOOR(DL82,10) -> 10 | DM83: =CEILING(DL82,10) -> 10 | DQ83: X Range | DR83: =FLOOR(DS82,10) -> 10 | DT83: =CEILING(DS82,10) -> 10 | DX83: X Range | DY83: =FLOOR(DZ82,10) -> 10 | EA83: =CEILING(DZ82,10) -> 10 | EF83: 3 | EG83: X Range | EH83: =FLOOR(EI82,10) -> 10 | EJ83: =CEILING(EI82,10) -> 10 | EN83: X Range | EO83: =FLOOR(EP82,10) -> 10 | EQ83: =CEILING(EP82,10) -> 10 | EU83: X Range | EV83: =FLOOR(EW82,10) -> 10 | EX83: =CEILING(EW82,10) -> 10 | FB83: X Range | FC83: =FLOOR(FD82,10) -> 10 | FE83: =CEILING(FD82,10) -> 10 | FJ83: 3 | FK83: X Range | FL83: =FLOOR(FM82,10) -> 10 | FN83: =CEILING(FM82,10) -> 10 | FR83: X Range | FS83: =FLOOR(FT82,10) -> 10 | FU83: =CEILING(FT82,10) -> 10 | FY83: X Range | FZ83: =FLOOR(GA82,10) -> 10 | GB83: =CEILING(GA82,10) -> 10 | GF83: X Range | GG83: =FLOOR(GH82,10) -> 10 | GI83: =CEILING(GH82,10) -> 10
AU84: Y Range | AV84: =VLOOKUP(AV83,$AT$295:$AX$300,2,1) -> 0 | AW84: =AX91 -> NA | AX84: =VLOOKUP(AX83,$AT$295:$AX$300,2,1) -> 0 | BB84: Y Range | BC84: =VLOOKUP(BC83,$AT$295:$AX$300,3,1) -> 10.5 | BD84: =BE91 -> 10.5 | BE84: =VLOOKUP(BE83,$AT$295:$AX$300,3,1) -> 10.5 | BI84: Y Range | BJ84: =VLOOKUP(BJ83,$AT$295:$AX$300,4,1) -> 6 | BK84: =BL91 -> 6 | BL84: =VLOOKUP(BL83,$AT$295:$AX$300,4,1) -> 6 | BP84: Y Range | BQ84: =VLOOKUP(BQ83,$AT$295:$AX$300,5,1) -> 5 | BR84: =BS91 -> 5 | BS84: =VLOOKUP(BS83,$AT$295:$AX$300,5,1) -> 5 | BY84: Y Range | BZ84: =VLOOKUP(BZ83,$AT$295:$AX$300,2,1) -> 0 | CA84: =CB91 -> NA | CB84: =VLOOKUP(CB83,$AT$295:$AX$300,2,1) -> 0 | CF84: Y Range | CG84: =VLOOKUP(CG83,$AT$295:$AX$300,3,1) -> 10.5 | CH84: =CI91 -> 10.5 | CI84: =VLOOKUP(CI83,$AT$295:$AX$300,3,1) -> 10.5 | CM84: Y Range | CN84: =VLOOKUP(CN83,$AT$295:$AX$300,4,1) -> 6 | CO84: =CP91 -> 6 | CP84: =VLOOKUP(CP83,$AT$295:$AX$300,4,1) -> 6 | CT84: Y Range | CU84: =VLOOKUP(CU83,$AT$295:$AX$300,5,1) -> 5 | CV84: =CW91 -> 5 | CW84: =VLOOKUP(CW83,$AT$295:$AX$300,5,1) -> 5 | DC84: Y Range | DD84: =VLOOKUP(DD83,$AT$295:$AX$300,2,1) -> 0 | DE84: =DF91 -> NA | DF84: =VLOOKUP(DF83,$AT$295:$AX$300,2,1) -> 0 | DJ84: Y Range | DK84: =VLOOKUP(DK83,$AT$295:$AX$300,3,1) -> 10.5 | DL84: =DM91 -> 10.5 | DM84: =VLOOKUP(DM83,$AT$295:$AX$300,3,1) -> 10.5 | DQ84: Y Range | DR84: =VLOOKUP(DR83,$AT$295:$AX$300,4,1) -> 6 | DS84: =DT91 -> 6 | DT84: =VLOOKUP(DT83,$AT$295:$AX$300,4,1) -> 6 | DX84: Y Range | DY84: =VLOOKUP(DY83,$AT$295:$AX$300,5,1) -> 5 | DZ84: =EA91 -> 5 | EA84: =VLOOKUP(EA83,$AT$295:$AX$300,5,1) -> 5 | EG84: Y Range | EH84: =VLOOKUP(EH83,$AT$295:$AX$300,2,1) -> 0 | EI84: =EJ91 -> NA | EJ84: =VLOOKUP(EJ83,$AT$295:$AX$300,2,1) -> 0 | EN84: Y Range | EO84: =VLOOKUP(EO83,$AT$295:$AX$300,3,1) -> 10.5 | EP84: =EQ91 -> 10.5 | EQ84: =VLOOKUP(EQ83,$AT$295:$AX$300,3,1) -> 10.5 | EU84: Y Range | EV84: =VLOOKUP(EV83,$AT$295:$AX$300,4,1) -> 6 | EW84: =EX91 -> 6 | EX84: =VLOOKUP(EX83,$AT$295:$AX$300,4,1) -> 6 | FB84: Y Range | FC84: =VLOOKUP(FC83,$AT$295:$AX$300,5,1) -> 5 | FD84: =FE91 -> 5 | FE84: =VLOOKUP(FE83,$AT$295:$AX$300,5,1) -> 5 | FK84: Y Range | FL84: =VLOOKUP(FL83,$AT$295:$AX$300,2,1) -> 0 | FM84: =FN91 -> NA | FN84: =VLOOKUP(FN83,$AT$295:$AX$300,2,1) -> 0 | FR84: Y Range | FS84: =VLOOKUP(FS83,$AT$295:$AX$300,3,1) -> 10.5 | FT84: =FU91 -> 10.5 | FU84: =VLOOKUP(FU83,$AT$295:$AX$300,3,1) -> 10.5 | FY84: Y Range | FZ84: =VLOOKUP(FZ83,$AT$295:$AX$300,4,1) -> 6 | GA84: =GB91 -> 6 | GB84: =VLOOKUP(GB83,$AT$295:$AX$300,4,1) -> 6 | GF84: Y Range | GG84: =VLOOKUP(GG83,$AT$295:$AX$300,5,1) -> 5 | GH84: =GI91 -> 5 | GI84: =VLOOKUP(GI83,$AT$295:$AX$300,5,1) -> 5
D85: Control + Shift + E To clear the contents of the yellow cells in thethird BWL
AU86: X1 | AV86: low spacing | AX86: =AV83+0.00001 -> 10.00001 | BB86: X1 | BC86: low spacing | BE86: =BC83+0.00001 -> 10.00001 | BI86: X1 | BJ86: low spacing | BL86: =BJ83+0.00001 -> 10.00001 | BP86: X1 | BQ86: low spacing | BS86: =BQ83+0.00001 -> 10.00001 | BY86: X1 | BZ86: low spacing | CB86: =BZ83+0.00001 -> 10.00001 | CF86: X1 | CG86: low spacing | CI86: =CG83+0.00001 -> 10.00001 | CM86: X1 | CN86: low spacing | CP86: =CN83+0.00001 -> 10.00001 | CT86: X1 | CU86: low spacing | CW86: =CU83+0.00001 -> 10.00001 | DC86: X1 | DD86: low spacing | DF86: =DD83+0.00001 -> 10.00001 | DJ86: X1 | DK86: low spacing | DM86: =DK83+0.00001 -> 10.00001 | DQ86: X1 | DR86: low spacing | DT86: =DR83+0.00001 -> 10.00001 | DX86: X1 | DY86: low spacing | EA86: =DY83+0.00001 -> 10.00001 | EG86: X1 | EH86: low spacing | EJ86: =EH83+0.00001 -> 10.00001 | EN86: X1 | EO86: low spacing | EQ86: =EO83+0.00001 -> 10.00001 | EU86: X1 | EV86: low spacing | EX86: =EV83+0.00001 -> 10.00001 | FB86: X1 | FC86: low spacing | FE86: =FC83+0.00001 -> 10.00001 | FK86: X1 | FL86: low spacing | FN86: =FL83+0.00001 -> 10.00001 | FR86: X1 | FS86: low spacing | FU86: =FS83+0.00001 -> 10.00001 | FY86: X1 | FZ86: low spacing | GB86: =FZ83+0.00001 -> 10.00001 | GF86: X1 | GG86: low spacing | GI86: =GG83+0.00001 -> 10.00001
AU87: X2 | AV87: high spacing | AX87: =AX83 -> 10 | BB87: X2 | BC87: high spacing | BE87: =BE83 -> 10 | BI87: X2 | BJ87: high spacing | BL87: =BL83 -> 10 | BP87: X2 | BQ87: high spacing | BS87: =BS83 -> 10 | BY87: X2 | BZ87: high spacing | CB87: =CB83 -> 10 | CF87: X2 | CG87: high spacing | CI87: =CI83 -> 10 | CM87: X2 | CN87: high spacing | CP87: =CP83 -> 10 | CT87: X2 | CU87: high spacing | CW87: =CW83 -> 10 | DC87: X2 | DD87: high spacing | DF87: =DF83 -> 10 | DJ87: X2 | DK87: high spacing | DM87: =DM83 -> 10 | DQ87: X2 | DR87: high spacing | DT87: =DT83 -> 10 | DX87: X2 | DY87: high spacing | EA87: =EA83 -> 10 | EG87: X2 | EH87: high spacing | EJ87: =EJ83 -> 10 | EN87: X2 | EO87: high spacing | EQ87: =EQ83 -> 10 | EU87: X2 | EV87: high spacing | EX87: =EX83 -> 10 | FB87: X2 | FC87: high spacing | FE87: =FE83 -> 10 | FK87: X2 | FL87: high spacing | FN87: =FN83 -> 10 | FR87: X2 | FS87: high spacing | FU87: =FU83 -> 10 | FY87: X2 | FZ87: high spacing | GB87: =GB83 -> 10 | GF87: X2 | GG87: high spacing | GI87: =GI83 -> 10
D88: Control + Shift + R To clear the contents of the yellow cells in the fourth BWL | AU88: X | AV88: actual spacing | AX88: =AW82 -> 10 | BB88: X | BC88: actual spacing | BE88: =BD82 -> 10 | BI88: X | BJ88: actual spacing | BL88: =BK82 -> 10 | BP88: X | BQ88: actual spacing | BS88: =BR82 -> 10 | BY88: X | BZ88: actual spacing | CB88: =CA82 -> 10 | CF88: X | CG88: actual spacing | CI88: =CH82 -> 10 | CM88: X | CN88: actual spacing | CP88: =CO82 -> 10 | CT88: X | CU88: actual spacing | CW88: =CV82 -> 10 | DC88: X | DD88: actual spacing | DF88: =DE82 -> 10 | DJ88: X | DK88: actual spacing | DM88: =DL82 -> 10 | DQ88: X | DR88: actual spacing | DT88: =DS82 -> 10 | DX88: X | DY88: actual spacing | EA88: =DZ82 -> 10 | EG88: X | EH88: actual spacing | EJ88: =EI82 -> 10 | EN88: X | EO88: actual spacing | EQ88: =EP82 -> 10 | EU88: X | EV88: actual spacing | EX88: =EW82 -> 10 | FB88: X | FC88: actual spacing | FE88: =FD82 -> 10 | FK88: X | FL88: actual spacing | FN88: =FM82 -> 10 | FR88: X | FS88: actual spacing | FU88: =FT82 -> 10 | FY88: X | FZ88: actual spacing | GB88: =GA82 -> 10 | GF88: X | GG88: actual spacing | GI88: =GH82 -> 10
AU89: Y1 | AV89: low tabular | AX89: =AV84 -> 0 | BB89: Y1 | BC89: low tabular | BE89: =BC84 -> 10.5 | BI89: Y1 | BJ89: low tabular | BL89: =BJ84 -> 6 | BP89: Y1 | BQ89: low tabular | BS89: =BQ84 -> 5 | BY89: Y1 | BZ89: low tabular | CB89: =BZ84 -> 0 | CF89: Y1 | CG89: low tabular | CI89: =CG84 -> 10.5 | CM89: Y1 | CN89: low tabular | CP89: =CN84 -> 6 | CT89: Y1 | CU89: low tabular | CW89: =CU84 -> 5 | DC89: Y1 | DD89: low tabular | DF89: =DD84 -> 0 | DJ89: Y1 | DK89: low tabular | DM89: =DK84 -> 10.5 | DQ89: Y1 | DR89: low tabular | DT89: =DR84 -> 6 | DX89: Y1 | DY89: low tabular | EA89: =DY84 -> 5 | EG89: Y1 | EH89: low tabular | EJ89: =EH84 -> 0 | EN89: Y1 | EO89: low tabular | EQ89: =EO84 -> 10.5 | EU89: Y1 | EV89: low tabular | EX89: =EV84 -> 6 | FB89: Y1 | FC89: low tabular | FE89: =FC84 -> 5 | FK89: Y1 | FL89: low tabular | FN89: =FL84 -> 0 | FR89: Y1 | FS89: low tabular | FU89: =FS84 -> 10.5 | FY89: Y1 | FZ89: low tabular | GB89: =FZ84 -> 6 | GF89: Y1 | GG89: low tabular | GI89: =GG84 -> 5
AU90: Y2 | AV90: high tabular | AX90: =AX84 -> 0 | BB90: Y2 | BC90: high tabular | BE90: =BE84 -> 10.5 | BI90: Y2 | BJ90: high tabular | BL90: =BL84 -> 6 | BP90: Y2 | BQ90: high tabular | BS90: =BS84 -> 5 | BY90: Y2 | BZ90: high tabular | CB90: =CB84 -> 0 | CF90: Y2 | CG90: high tabular | CI90: =CI84 -> 10.5 | CM90: Y2 | CN90: high tabular | CP90: =CP84 -> 6 | CT90: Y2 | CU90: high tabular | CW90: =CW84 -> 5 | DC90: Y2 | DD90: high tabular | DF90: =DF84 -> 0 | DJ90: Y2 | DK90: high tabular | DM90: =DM84 -> 10.5 | DQ90: Y2 | DR90: high tabular | DT90: =DT84 -> 6 | DX90: Y2 | DY90: high tabular | EA90: =EA84 -> 5 | EG90: Y2 | EH90: high tabular | EJ90: =EJ84 -> 0 | EN90: Y2 | EO90: high tabular | EQ90: =EQ84 -> 10.5 | EU90: Y2 | EV90: high tabular | EX90: =EX84 -> 6 | FB90: Y2 | FC90: high tabular | FE90: =FE84 -> 5 | FK90: Y2 | FL90: high tabular | FN90: =FN84 -> 0 | FR90: Y2 | FS90: high tabular | FU90: =FU84 -> 10.5 | FY90: Y2 | FZ90: high tabular | GB90: =GB84 -> 6 | GF90: Y2 | GG90: high tabular | GI90: =GI84 -> 5
D91: Control + Shift + T To clear the contents of the yellow cells in the fifth BWL | AU91: Y | AV91: TABULAR VALUE | AX91: NA | BB91: Y | BC91: TABULAR VALUE | BE91: =BE89+(BE88-BE86)*(BE90-BE89)/(BE87-BE86) -> 10.5 | BI91: Y | BJ91: TABULAR VALUE | BL91: =BL89+(BL88-BL86)*(BL90-BL89)/(BL87-BL86) -> 6 | BP91: Y | BQ91: TABULAR VALUE | BS91: =BS89+(BS88-BS86)*(BS90-BS89)/(BS87-BS86) -> 5 | BY91: Y | BZ91: TABULAR VALUE | CB91: NA | CF91: Y | CG91: TABULAR VALUE | CI91: =CI89+(CI88-CI86)*(CI90-CI89)/(CI87-CI86) -> 10.5 | CM91: Y | CN91: TABULAR VALUE | CP91: =CP89+(CP88-CP86)*(CP90-CP89)/(CP87-CP86) -> 6 | CT91: Y | CU91: TABULAR VALUE | CW91: =CW89+(CW88-CW86)*(CW90-CW89)/(CW87-CW86) -> 5 | DC91: Y | DD91: TABULAR VALUE | DF91: NA | DJ91: Y | DK91: TABULAR VALUE | DM91: =DM89+(DM88-DM86)*(DM90-DM89)/(DM87-DM86) -> 10.5 | DQ91: Y | DR91: TABULAR VALUE | DT91: =DT89+(DT88-DT86)*(DT90-DT89)/(DT87-DT86) -> 6 | DX91: Y | DY91: TABULAR VALUE | EA91: =EA89+(EA88-EA86)*(EA90-EA89)/(EA87-EA86) -> 5 | EG91: Y | EH91: TABULAR VALUE | EJ91: NA | EN91: Y | EO91: TABULAR VALUE | EQ91: =EQ89+(EQ88-EQ86)*(EQ90-EQ89)/(EQ87-EQ86) -> 10.5 | EU91: Y | EV91: TABULAR VALUE | EX91: =EX89+(EX88-EX86)*(EX90-EX89)/(EX87-EX86) -> 6 | FB91: Y | FC91: TABULAR VALUE | FE91: =FE89+(FE88-FE86)*(FE90-FE89)/(FE87-FE86) -> 5 | FK91: Y | FL91: TABULAR VALUE | FN91: NA | FR91: Y | FS91: TABULAR VALUE | FU91: =FU89+(FU88-FU86)*(FU90-FU89)/(FU87-FU86) -> 10.5 | FY91: Y | FZ91: TABULAR VALUE | GB91: =GB89+(GB88-GB86)*(GB90-GB89)/(GB87-GB86) -> 6 | GF91: Y | GG91: TABULAR VALUE | GI91: =GI89+(GI88-GI86)*(GI90-GI89)/(GI87-GI86) -> 5
AU93: COLUMN 1 | AX93: 101 | BB93: COLUMN 1 | BE93: 201 | BI93: COLUMN 1 | BL93: 301 | BP93: COLUMN 1 | BS93: 401 | BY93: =BY78 -> COLUMN 2 | CB93: 101 | CF93: =BY93 -> COLUMN 2 | CI93: 201 | CM93: =CF93 -> COLUMN 2 | CP93: 301 | CT93: =CM93 -> COLUMN 2 | CW93: 401 | DC93: =DC78 -> COLUMN 3 | DF93: 101 | DJ93: =DC93 -> COLUMN 3 | DM93: 201 | DQ93: =DJ93 -> COLUMN 3 | DT93: 301 | DX93: =DQ93 -> COLUMN 3 | EA93: 401 | EG93: =EG78 -> COLUMN 4 | EJ93: 101 | EN93: =EG93 -> COLUMN 4 | EQ93: 201 | EU93: =EN93 -> COLUMN 4 | EX93: 301 | FB93: =EU93 -> COLUMN 4 | FE93: 401 | FK93: =FK78 -> COLUMN 5 | FN93: 101 | FR93: =FK93 -> COLUMN 5 | FU93: 201 | FY93: =FR93 -> COLUMN 5 | GB93: 301 | GF93: =FY93 -> COLUMN 5 | GI93: 401
C94: If you have an older version of Excel, you might have trouble with the Time Saver(s). Go to TOOLS>>MACRO>>SECURITY and turn it down to "LOW". It should work fine. | AU94: INTERPOLATED TABULAR VALUE | AX94: =$AT$97*$AT$98*AX93 -> 10100 | BB94: INTERPOLATED TABULAR VALUE | BE94: =$AT$97*$AT$98*BE93 -> 20100 | BI94: INTERPOLATED TABULAR VALUE | BL94: =$AT$97*$AT$98*BL93 -> 30100 | BP94: INTERPOLATED TABULAR VALUE | BS94: =$AT$97*$AT$98*BS93 -> 40100 | BY94: INTERPOLATED TABULAR VALUE | CB94: =$AT$97*$AT$98*CB93 -> 10100 | CF94: INTERPOLATED TABULAR VALUE | CI94: =$AT$97*$AT$98*CI93 -> 20100 | CM94: INTERPOLATED TABULAR VALUE | CP94: =$AT$97*$AT$98*CP93 -> 30100 | CT94: INTERPOLATED TABULAR VALUE | CW94: =$AT$97*$AT$98*CW93 -> 40100 | DC94: INTERPOLATED TABULAR VALUE | DF94: =$AT$97*$AT$98*DF93 -> 10100 | DJ94: INTERPOLATED TABULAR VALUE | DM94: =$AT$97*$AT$98*DM93 -> 20100 | DQ94: INTERPOLATED TABULAR VALUE | DT94: =$AT$97*$AT$98*DT93 -> 30100 | DX94: INTERPOLATED TABULAR VALUE | EA94: =$AT$97*$AT$98*EA93 -> 40100 | EG94: INTERPOLATED TABULAR VALUE | EJ94: =$AT$97*$AT$98*EJ93 -> 10100 | EN94: INTERPOLATED TABULAR VALUE | EQ94: =$AT$97*$AT$98*EQ93 -> 20100 | EU94: INTERPOLATED TABULAR VALUE | EX94: =$AT$97*$AT$98*EX93 -> 30100 | FB94: INTERPOLATED TABULAR VALUE | FE94: =$AT$97*$AT$98*FE93 -> 40100 | FK94: INTERPOLATED TABULAR VALUE | FN94: =$AT$97*$AT$98*FN93 -> 10100 | FR94: INTERPOLATED TABULAR VALUE | FU94: =$AT$97*$AT$98*FU93 -> 20100 | FY94: INTERPOLATED TABULAR VALUE | GB94: =$AT$97*$AT$98*GB93 -> 30100 | GF94: INTERPOLATED TABULAR VALUE | GI94: =$AT$97*$AT$98*GI93 -> 40100
AU95: Y = Y1 + (X-X1) * (Y2-Y1)/(X2-X1) | BB95: Y = Y1 + (X-X1) * (Y2-Y1)/(X2-X1) | BI95: Y = Y1 + (X-X1) * (Y2-Y1)/(X2-X1) | BP95: Y = Y1 + (X-X1) * (Y2-Y1)/(X2-X1) | BY95: Y = Y1 + (X-X1) * (Y2-Y1)/(X2-X1) | CF95: Y = Y1 + (X-X1) * (Y2-Y1)/(X2-X1) | CM95: Y = Y1 + (X-X1) * (Y2-Y1)/(X2-X1) | CT95: Y = Y1 + (X-X1) * (Y2-Y1)/(X2-X1) | DC95: Y = Y1 + (X-X1) * (Y2-Y1)/(X2-X1) | DJ95: Y = Y1 + (X-X1) * (Y2-Y1)/(X2-X1) | DQ95: Y = Y1 + (X-X1) * (Y2-Y1)/(X2-X1) | DX95: Y = Y1 + (X-X1) * (Y2-Y1)/(X2-X1) | EG95: Y = Y1 + (X-X1) * (Y2-Y1)/(X2-X1) | EN95: Y = Y1 + (X-X1) * (Y2-Y1)/(X2-X1) | EU95: Y = Y1 + (X-X1) * (Y2-Y1)/(X2-X1) | FB95: Y = Y1 + (X-X1) * (Y2-Y1)/(X2-X1) | FK95: Y = Y1 + (X-X1) * (Y2-Y1)/(X2-X1) | FR95: Y = Y1 + (X-X1) * (Y2-Y1)/(X2-X1) | FY95: Y = Y1 + (X-X1) * (Y2-Y1)/(X2-X1) | GF95: Y = Y1 + (X-X1) * (Y2-Y1)/(X2-X1)
AT97: 100 | AU97: Avg spacing | AW97: =AW54 -> 10 | BB97: Avg spacing | BD97: =AW97 -> 10 | BI97: Avg spacing | BK97: =BD97 -> 10 | BP97: Avg spacing | BR97: =BK97 -> 10 | BX97: 100 | BY97: Avg spacing | CA97: =CA82 -> 10 | CF97: Avg spacing | CH97: =CA97 -> 10 | CM97: Avg spacing | CO97: =CH97 -> 10 | CT97: Avg spacing | CV97: =CO97 -> 10 | DB97: 100 | DC97: Avg spacing | DE97: =DE82 -> 10 | DJ97: Avg spacing | DL97: =DE97 -> 10 | DQ97: Avg spacing | DS97: =DL97 -> 10 | DX97: Avg spacing | DZ97: =DS97 -> 10 | EF97: 100 | EG97: Avg spacing | EI97: =EI82 -> 10 | EN97: Avg spacing | EP97: =EI97 -> 10 | EU97: Avg spacing | EW97: =EP97 -> 10 | FB97: Avg spacing | FD97: =EW97 -> 10 | FJ97: 100 | FK97: Avg spacing | FM97: =FM82 -> 10 | FR97: Avg spacing | FT97: =FM97 -> 10 | FY97: Avg spacing | GA97: =FT97 -> 10 | GF97: Avg spacing | GH97: =GA97 -> 10
AT98: 1 | AU98: X Range | AV98: =FLOOR(AW97,10) -> 10 | AX98: =CEILING(AW97,10) -> 10 | BB98: X Range | BC98: =FLOOR(BD97,10) -> 10 | BE98: =CEILING(BD97,10) -> 10 | BI98: X Range | BJ98: =FLOOR(BK97,10) -> 10 | BL98: =CEILING(BK97,10) -> 10 | BP98: X Range | BQ98: =FLOOR(BR97,10) -> 10 | BS98: =CEILING(BR97,10) -> 10 | BX98: 1 | BY98: X Range | BZ98: =FLOOR(CA97,10) -> 10 | CB98: =CEILING(CA97,10) -> 10 | CF98: X Range | CG98: =FLOOR(CH97,10) -> 10 | CI98: =CEILING(CH97,10) -> 10 | CM98: X Range | CN98: =FLOOR(CO97,10) -> 10 | CP98: =CEILING(CO97,10) -> 10 | CT98: X Range | CU98: =FLOOR(CV97,10) -> 10 | CW98: =CEILING(CV97,10) -> 10 | DB98: 1 | DC98: X Range | DD98: =FLOOR(DE97,10) -> 10 | DF98: =CEILING(DE97,10) -> 10 | DJ98: X Range | DK98: =FLOOR(DL97,10) -> 10 | DM98: =CEILING(DL97,10) -> 10 | DQ98: X Range | DR98: =FLOOR(DS97,10) -> 10 | DT98: =CEILING(DS97,10) -> 10 | DX98: X Range | DY98: =FLOOR(DZ97,10) -> 10 | EA98: =CEILING(DZ97,10) -> 10 | EF98: 1 | EG98: X Range | EH98: =FLOOR(EI97,10) -> 10 | EJ98: =CEILING(EI97,10) -> 10 | EN98: X Range | EO98: =FLOOR(EP97,10) -> 10 | EQ98: =CEILING(EP97,10) -> 10 | EU98: X Range | EV98: =FLOOR(EW97,10) -> 10 | EX98: =CEILING(EW97,10) -> 10 | FB98: X Range | FC98: =FLOOR(FD97,10) -> 10 | FE98: =CEILING(FD97,10) -> 10 | FJ98: 1 | FK98: X Range | FL98: =FLOOR(FM97,10) -> 10 | FN98: =CEILING(FM97,10) -> 10 | FR98: X Range | FS98: =FLOOR(FT97,10) -> 10 | FU98: =CEILING(FT97,10) -> 10 | FY98: X Range | FZ98: =FLOOR(GA97,10) -> 10 | GB98: =CEILING(GA97,10) -> 10 | GF98: X Range | GG98: =FLOOR(GH97,10) -> 10 | GI98: =CEILING(GH97,10) -> 10
AU99: Y Range | AV99: =VLOOKUP(AV98,$AT$301:$AX$306,2,1) -> 4.5 | AW99: =AX106 -> 4.5 | AX99: =VLOOKUP(AX98,$AT$301:$AX$306,2,1) -> 4.5 | BB99: Y Range | BC99: =VLOOKUP(BC98,$AT$301:$AX$306,3,1) -> 4.5 | BD99: =BE106 -> 4.5 | BE99: =VLOOKUP(BE98,$AT$301:$AX$306,3,1) -> 4.5 | BI99: Y Range | BJ99: =VLOOKUP(BJ98,$AT$301:$AX$306,4,1) -> 2.5 | BK99: =BL106 -> 2.5 | BL99: =VLOOKUP(BL98,$AT$301:$AX$306,4,1) -> 2.5 | BP99: Y Range | BQ99: =VLOOKUP(BQ98,$AT$301:$AX$306,5,1) -> 2.5 | BR99: =BS106 -> 2.5 | BS99: =VLOOKUP(BS98,$AT$301:$AX$306,5,1) -> 2.5 | BY99: Y Range | BZ99: =VLOOKUP(BZ98,$AT$301:$AX$306,2,1) -> 4.5 | CA99: =CB106 -> 4.5 | CB99: =VLOOKUP(CB98,$AT$301:$AX$306,2,1) -> 4.5 | CF99: Y Range | CG99: =VLOOKUP(CG98,$AT$301:$AX$306,3,1) -> 4.5 | CH99: =CI106 -> 4.5 | CI99: =VLOOKUP(CI98,$AT$301:$AX$306,3,1) -> 4.5 | CM99: Y Range | CN99: =VLOOKUP(CN98,$AT$301:$AX$306,4,1) -> 2.5 | CO99: =CP106 -> 2.5 | CP99: =VLOOKUP(CP98,$AT$301:$AX$306,4,1) -> 2.5 | CT99: Y Range | CU99: =VLOOKUP(CU98,$AT$301:$AX$306,5,1) -> 2.5 | CV99: =CW106 -> 2.5 | CW99: =VLOOKUP(CW98,$AT$301:$AX$306,5,1) -> 2.5 | DC99: Y Range | DD99: =VLOOKUP(DD98,$AT$301:$AX$306,2,1) -> 4.5 | DE99: =DF106 -> 4.5 | DF99: =VLOOKUP(DF98,$AT$301:$AX$306,2,1) -> 4.5 | DJ99: Y Range | DK99: =VLOOKUP(DK98,$AT$301:$AX$306,3,1) -> 4.5 | DL99: =DM106 -> 4.5 | DM99: =VLOOKUP(DM98,$AT$301:$AX$306,3,1) -> 4.5 | DQ99: Y Range | DR99: =VLOOKUP(DR98,$AT$301:$AX$306,4,1) -> 2.5 | DS99: =DT106 -> 2.5 | DT99: =VLOOKUP(DT98,$AT$301:$AX$306,4,1) -> 2.5 | DX99: Y Range | DY99: =VLOOKUP(DY98,$AT$301:$AX$306,5,1) -> 2.5 | DZ99: =EA106 -> 2.5 | EA99: =VLOOKUP(EA98,$AT$301:$AX$306,5,1) -> 2.5 | EG99: Y Range | EH99: =VLOOKUP(EH98,$AT$301:$AX$306,2,1) -> 4.5 | EI99: =EJ106 -> 4.5 | EJ99: =VLOOKUP(EJ98,$AT$301:$AX$306,2,1) -> 4.5 | EN99: Y Range | EO99: =VLOOKUP(EO98,$AT$301:$AX$306,3,1) -> 4.5 | EP99: =EQ106 -> 4.5 | EQ99: =VLOOKUP(EQ98,$AT$301:$AX$306,3,1) -> 4.5 | EU99: Y Range | EV99: =VLOOKUP(EV98,$AT$301:$AX$306,4,1) -> 2.5 | EW99: =EX106 -> 2.5 | EX99: =VLOOKUP(EX98,$AT$301:$AX$306,4,1) -> 2.5 | FB99: Y Range | FC99: =VLOOKUP(FC98,$AT$301:$AX$306,5,1) -> 2.5 | FD99: =FE106 -> 2.5 | FE99: =VLOOKUP(FE98,$AT$301:$AX$306,5,1) -> 2.5 | FK99: Y Range | FL99: =VLOOKUP(FL98,$AT$301:$AX$306,2,1) -> 4.5 | FM99: =FN106 -> 4.5 | FN99: =VLOOKUP(FN98,$AT$301:$AX$306,2,1) -> 4.5 | FR99: Y Range | FS99: =VLOOKUP(FS98,$AT$301:$AX$306,3,1) -> 4.5 | FT99: =FU106 -> 4.5 | FU99: =VLOOKUP(FU98,$AT$301:$AX$306,3,1) -> 4.5 | FY99: Y Range | FZ99: =VLOOKUP(FZ98,$AT$301:$AX$306,4,1) -> 2.5 | GA99: =GB106 -> 2.5 | GB99: =VLOOKUP(GB98,$AT$301:$AX$306,4,1) -> 2.5 | GF99: Y Range | GG99: =VLOOKUP(GG98,$AT$301:$AX$306,5,1) -> 2.5 | GH99: =GI106 -> 2.5 | GI99: =VLOOKUP(GI98,$AT$301:$AX$306,5,1) -> 2.5
AU101: X1 | AV101: low spacing | AX101: =AV98+0.00001 -> 10.00001 | BB101: X1 | BC101: low spacing | BE101: =BC98+0.00001 -> 10.00001 | BI101: X1 | BJ101: low spacing | BL101: =BJ98+0.00001 -> 10.00001 | BP101: X1 | BQ101: low spacing | BS101: =BQ98+0.00001 -> 10.00001 | BY101: X1 | BZ101: low spacing | CB101: =BZ98+0.00001 -> 10.00001 | CF101: X1 | CG101: low spacing | CI101: =CG98+0.00001 -> 10.00001 | CM101: X1 | CN101: low spacing | CP101: =CN98+0.00001 -> 10.00001 | CT101: X1 | CU101: low spacing | CW101: =CU98+0.00001 -> 10.00001 | DC101: X1 | DD101: low spacing | DF101: =DD98+0.00001 -> 10.00001 | DJ101: X1 | DK101: low spacing | DM101: =DK98+0.00001 -> 10.00001 | DQ101: X1 | DR101: low spacing | DT101: =DR98+0.00001 -> 10.00001 | DX101: X1 | DY101: low spacing | EA101: =DY98+0.00001 -> 10.00001 | EG101: X1 | EH101: low spacing | EJ101: =EH98+0.00001 -> 10.00001 | EN101: X1 | EO101: low spacing | EQ101: =EO98+0.00001 -> 10.00001 | EU101: X1 | EV101: low spacing | EX101: =EV98+0.00001 -> 10.00001 | FB101: X1 | FC101: low spacing | FE101: =FC98+0.00001 -> 10.00001 | FK101: X1 | FL101: low spacing | FN101: =FL98+0.00001 -> 10.00001 | FR101: X1 | FS101: low spacing | FU101: =FS98+0.00001 -> 10.00001 | FY101: X1 | FZ101: low spacing | GB101: =FZ98+0.00001 -> 10.00001 | GF101: X1 | GG101: low spacing | GI101: =GG98+0.00001 -> 10.00001
AU102: X2 | AV102: high spacing | AX102: =AX98 -> 10 | BB102: X2 | BC102: high spacing | BE102: =BE98 -> 10 | BI102: X2 | BJ102: high spacing | BL102: =BL98 -> 10 | BP102: X2 | BQ102: high spacing | BS102: =BS98 -> 10 | BY102: X2 | BZ102: high spacing | CB102: =CB98 -> 10 | CF102: X2 | CG102: high spacing | CI102: =CI98 -> 10 | CM102: X2 | CN102: high spacing | CP102: =CP98 -> 10 | CT102: X2 | CU102: high spacing | CW102: =CW98 -> 10 | DC102: X2 | DD102: high spacing | DF102: =DF98 -> 10 | DJ102: X2 | DK102: high spacing | DM102: =DM98 -> 10 | DQ102: X2 | DR102: high spacing | DT102: =DT98 -> 10 | DX102: X2 | DY102: high spacing | EA102: =EA98 -> 10 | EG102: X2 | EH102: high spacing | EJ102: =EJ98 -> 10 | EN102: X2 | EO102: high spacing | EQ102: =EQ98 -> 10 | EU102: X2 | EV102: high spacing | EX102: =EX98 -> 10 | FB102: X2 | FC102: high spacing | FE102: =FE98 -> 10 | FK102: X2 | FL102: high spacing | FN102: =FN98 -> 10 | FR102: X2 | FS102: high spacing | FU102: =FU98 -> 10 | FY102: X2 | FZ102: high spacing | GB102: =GB98 -> 10 | GF102: X2 | GG102: high spacing | GI102: =GI98 -> 10
AU103: X | AV103: actual spacing | AX103: =AW97 -> 10 | BB103: X | BC103: actual spacing | BE103: =BD97 -> 10 | BI103: X | BJ103: actual spacing | BL103: =BK97 -> 10 | BP103: X | BQ103: actual spacing | BS103: =BR97 -> 10 | BY103: X | BZ103: actual spacing | CB103: =CA97 -> 10 | CF103: X | CG103: actual spacing | CI103: =CH97 -> 10 | CM103: X | CN103: actual spacing | CP103: =CO97 -> 10 | CT103: X | CU103: actual spacing | CW103: =CV97 -> 10 | DC103: X | DD103: actual spacing | DF103: =DE97 -> 10 | DJ103: X | DK103: actual spacing | DM103: =DL97 -> 10 | DQ103: X | DR103: actual spacing | DT103: =DS97 -> 10 | DX103: X | DY103: actual spacing | EA103: =DZ97 -> 10 | EG103: X | EH103: actual spacing | EJ103: =EI97 -> 10 | EN103: X | EO103: actual spacing | EQ103: =EP97 -> 10 | EU103: X | EV103: actual spacing | EX103: =EW97 -> 10 | FB103: X | FC103: actual spacing | FE103: =FD97 -> 10 | FK103: X | FL103: actual spacing | FN103: =FM97 -> 10 | FR103: X | FS103: actual spacing | FU103: =FT97 -> 10 | FY103: X | FZ103: actual spacing | GB103: =GA97 -> 10 | GF103: X | GG103: actual spacing | GI103: =GH97 -> 10
AU104: Y1 | AV104: low tabular | AX104: =AV99 -> 4.5 | BB104: Y1 | BC104: low tabular | BE104: =BC99 -> 4.5 | BI104: Y1 | BJ104: low tabular | BL104: =BJ99 -> 2.5 | BP104: Y1 | BQ104: low tabular | BS104: =BQ99 -> 2.5 | BY104: Y1 | BZ104: low tabular | CB104: =BZ99 -> 4.5 | CF104: Y1 | CG104: low tabular | CI104: =CG99 -> 4.5 | CM104: Y1 | CN104: low tabular | CP104: =CN99 -> 2.5 | CT104: Y1 | CU104: low tabular | CW104: =CU99 -> 2.5 | DC104: Y1 | DD104: low tabular | DF104: =DD99 -> 4.5 | DJ104: Y1 | DK104: low tabular | DM104: =DK99 -> 4.5 | DQ104: Y1 | DR104: low tabular | DT104: =DR99 -> 2.5 | DX104: Y1 | DY104: low tabular | EA104: =DY99 -> 2.5 | EG104: Y1 | EH104: low tabular | EJ104: =EH99 -> 4.5 | EN104: Y1 | EO104: low tabular | EQ104: =EO99 -> 4.5 | EU104: Y1 | EV104: low tabular | EX104: =EV99 -> 2.5 | FB104: Y1 | FC104: low tabular | FE104: =FC99 -> 2.5 | FK104: Y1 | FL104: low tabular | FN104: =FL99 -> 4.5 | FR104: Y1 | FS104: low tabular | FU104: =FS99 -> 4.5 | FY104: Y1 | FZ104: low tabular | GB104: =FZ99 -> 2.5 | GF104: Y1 | GG104: low tabular | GI104: =GG99 -> 2.5
AU105: Y2 | AV105: high tabular | AX105: =AX99 -> 4.5 | BB105: Y2 | BC105: high tabular | BE105: =BE99 -> 4.5 | BI105: Y2 | BJ105: high tabular | BL105: =BL99 -> 2.5 | BP105: Y2 | BQ105: high tabular | BS105: =BS99 -> 2.5 | BY105: Y2 | BZ105: high tabular | CB105: =CB99 -> 4.5 | CF105: Y2 | CG105: high tabular | CI105: =CI99 -> 4.5 | CM105: Y2 | CN105: high tabular | CP105: =CP99 -> 2.5 | CT105: Y2 | CU105: high tabular | CW105: =CW99 -> 2.5 | DC105: Y2 | DD105: high tabular | DF105: =DF99 -> 4.5 | DJ105: Y2 | DK105: high tabular | DM105: =DM99 -> 4.5 | DQ105: Y2 | DR105: high tabular | DT105: =DT99 -> 2.5 | DX105: Y2 | DY105: high tabular | EA105: =EA99 -> 2.5 | EG105: Y2 | EH105: high tabular | EJ105: =EJ99 -> 4.5 | EN105: Y2 | EO105: high tabular | EQ105: =EQ99 -> 4.5 | EU105: Y2 | EV105: high tabular | EX105: =EX99 -> 2.5 | FB105: Y2 | FC105: high tabular | FE105: =FE99 -> 2.5 | FK105: Y2 | FL105: high tabular | FN105: =FN99 -> 4.5 | FR105: Y2 | FS105: high tabular | FU105: =FU99 -> 4.5 | FY105: Y2 | FZ105: high tabular | GB105: =GB99 -> 2.5 | GF105: Y2 | GG105: high tabular | GI105: =GI99 -> 2.5
AU106: Y | AV106: TABULAR VALUE | AX106: =AX104+(AX103-AX101)*(AX105-AX104)/(AX102-AX101) -> 4.5 | BB106: Y | BC106: TABULAR VALUE | BE106: =BE104+(BE103-BE101)*(BE105-BE104)/(BE102-BE101) -> 4.5 | BI106: Y | BJ106: TABULAR VALUE | BL106: =BL104+(BL103-BL101)*(BL105-BL104)/(BL102-BL101) -> 2.5 | BP106: Y | BQ106: TABULAR VALUE | BS106: =BS104+(BS103-BS101)*(BS105-BS104)/(BS102-BS101) -> 2.5 | BY106: Y | BZ106: TABULAR VALUE | CB106: =CB104+(CB103-CB101)*(CB105-CB104)/(CB102-CB101) -> 4.5 | CF106: Y | CG106: TABULAR VALUE | CI106: =CI104+(CI103-CI101)*(CI105-CI104)/(CI102-CI101) -> 4.5 | CM106: Y | CN106: TABULAR VALUE | CP106: =CP104+(CP103-CP101)*(CP105-CP104)/(CP102-CP101) -> 2.5 | CT106: Y | CU106: TABULAR VALUE | CW106: =CW104+(CW103-CW101)*(CW105-CW104)/(CW102-CW101) -> 2.5 | DC106: Y | DD106: TABULAR VALUE | DF106: =DF104+(DF103-DF101)*(DF105-DF104)/(DF102-DF101) -> 4.5 | DJ106: Y | DK106: TABULAR VALUE | DM106: =DM104+(DM103-DM101)*(DM105-DM104)/(DM102-DM101) -> 4.5 | DQ106: Y | DR106: TABULAR VALUE | DT106: =DT104+(DT103-DT101)*(DT105-DT104)/(DT102-DT101) -> 2.5 | DX106: Y | DY106: TABULAR VALUE | EA106: =EA104+(EA103-EA101)*(EA105-EA104)/(EA102-EA101) -> 2.5 | EG106: Y | EH106: TABULAR VALUE | EJ106: =EJ104+(EJ103-EJ101)*(EJ105-EJ104)/(EJ102-EJ101) -> 4.5 | EN106: Y | EO106: TABULAR VALUE | EQ106: =EQ104+(EQ103-EQ101)*(EQ105-EQ104)/(EQ102-EQ101) -> 4.5 | EU106: Y | EV106: TABULAR VALUE | EX106: =EX104+(EX103-EX101)*(EX105-EX104)/(EX102-EX101) -> 2.5 | FB106: Y | FC106: TABULAR VALUE | FE106: =FE104+(FE103-FE101)*(FE105-FE104)/(FE102-FE101) -> 2.5 | FK106: Y | FL106: TABULAR VALUE | FN106: =FN104+(FN103-FN101)*(FN105-FN104)/(FN102-FN101) -> 4.5 | FR106: Y | FS106: TABULAR VALUE | FU106: =FU104+(FU103-FU101)*(FU105-FU104)/(FU102-FU101) -> 4.5 | FY106: Y | FZ106: TABULAR VALUE | GB106: =GB104+(GB103-GB101)*(GB105-GB104)/(GB102-GB101) -> 2.5 | GF106: Y | GG106: TABULAR VALUE | GI106: =GI104+(GI103-GI101)*(GI105-GI104)/(GI102-GI101) -> 2.5
AU107: COLUMN 1 | AX107: 101 | BB107: COLUMN 1 | BE107: 201 | BI107: COLUMN 1 | BL107: 301 | BP107: COLUMN 1 | BS107: 401 | BY107: =BY93 -> COLUMN 2 | CB107: 101 | CF107: =BY107 -> COLUMN 2 | CI107: 201 | CM107: =CF107 -> COLUMN 2 | CP107: 301 | CT107: =CM107 -> COLUMN 2 | CW107: 401 | DC107: =DC93 -> COLUMN 3 | DF107: 101 | DJ107: =DC107 -> COLUMN 3 | DM107: 201 | DQ107: =DJ107 -> COLUMN 3 | DT107: 301 | DX107: =DQ107 -> COLUMN 3 | EA107: 401 | EG107: =EG93 -> COLUMN 4 | EJ107: 101 | EN107: =EG107 -> COLUMN 4 | EQ107: 201 | EU107: =EN107 -> COLUMN 4 | EX107: 301 | FB107: =EU107 -> COLUMN 4 | FE107: 401 | FK107: =FK93 -> COLUMN 5 | FN107: 101 | FR107: =FK107 -> COLUMN 5 | FU107: 201 | FY107: =FR107 -> COLUMN 5 | GB107: 301 | GF107: =FY107 -> COLUMN 5 | GI107: 401
AU108: INTERPOLATED TABULAR VALUE | AX108: =$AT$111*$AT$112*AX107 -> 20200 | BB108: INTERPOLATED TABULAR VALUE | BE108: =$AT$111*$AT$112*BE107 -> 40200 | BI108: INTERPOLATED TABULAR VALUE | BL108: =$AT$111*$AT$112*BL107 -> 60200 | BP108: INTERPOLATED TABULAR VALUE | BS108: =$AT$111*$AT$112*BS107 -> 80200 | BY108: INTERPOLATED TABULAR VALUE | CB108: =$AT$111*$AT$112*CB107 -> 20200 | CF108: INTERPOLATED TABULAR VALUE | CI108: =$AT$111*$AT$112*CI107 -> 40200 | CM108: INTERPOLATED TABULAR VALUE | CP108: =$AT$111*$AT$112*CP107 -> 60200 | CT108: INTERPOLATED TABULAR VALUE | CW108: =$AT$111*$AT$112*CW107 -> 80200 | DC108: INTERPOLATED TABULAR VALUE | DF108: =$AT$111*$AT$112*DF107 -> 20200 | DJ108: INTERPOLATED TABULAR VALUE | DM108: =$AT$111*$AT$112*DM107 -> 40200 | DQ108: INTERPOLATED TABULAR VALUE | DT108: =$AT$111*$AT$112*DT107 -> 60200 | DX108: INTERPOLATED TABULAR VALUE | EA108: =$AT$111*$AT$112*EA107 -> 80200 | EG108: INTERPOLATED TABULAR VALUE | EJ108: =$AT$111*$AT$112*EJ107 -> 20200 | EN108: INTERPOLATED TABULAR VALUE | EQ108: =$AT$111*$AT$112*EQ107 -> 40200 | EU108: INTERPOLATED TABULAR VALUE | EX108: =$AT$111*$AT$112*EX107 -> 60200 | FB108: INTERPOLATED TABULAR VALUE | FE108: =$AT$111*$AT$112*FE107 -> 80200 | FK108: INTERPOLATED TABULAR VALUE | FN108: =$AT$111*$AT$112*FN107 -> 20200 | FR108: INTERPOLATED TABULAR VALUE | FU108: =$AT$111*$AT$112*FU107 -> 40200 | FY108: INTERPOLATED TABULAR VALUE | GB108: =$AT$111*$AT$112*GB107 -> 60200 | GF108: INTERPOLATED TABULAR VALUE | GI108: =$AT$111*$AT$112*GI107 -> 80200
AU109: Y = Y1 + (X-X1) * (Y2-Y1)/(X2-X1) | BB109: Y = Y1 + (X-X1) * (Y2-Y1)/(X2-X1) | BI109: Y = Y1 + (X-X1) * (Y2-Y1)/(X2-X1) | BP109: Y = Y1 + (X-X1) * (Y2-Y1)/(X2-X1) | BY109: Y = Y1 + (X-X1) * (Y2-Y1)/(X2-X1) | CF109: Y = Y1 + (X-X1) * (Y2-Y1)/(X2-X1) | CM109: Y = Y1 + (X-X1) * (Y2-Y1)/(X2-X1) | CT109: Y = Y1 + (X-X1) * (Y2-Y1)/(X2-X1) | DC109: Y = Y1 + (X-X1) * (Y2-Y1)/(X2-X1) | DJ109: Y = Y1 + (X-X1) * (Y2-Y1)/(X2-X1) | DQ109: Y = Y1 + (X-X1) * (Y2-Y1)/(X2-X1) | DX109: Y = Y1 + (X-X1) * (Y2-Y1)/(X2-X1) | EG109: Y = Y1 + (X-X1) * (Y2-Y1)/(X2-X1) | EN109: Y = Y1 + (X-X1) * (Y2-Y1)/(X2-X1) | EU109: Y = Y1 + (X-X1) * (Y2-Y1)/(X2-X1) | FB109: Y = Y1 + (X-X1) * (Y2-Y1)/(X2-X1) | FK109: Y = Y1 + (X-X1) * (Y2-Y1)/(X2-X1) | FR109: Y = Y1 + (X-X1) * (Y2-Y1)/(X2-X1) | FY109: Y = Y1 + (X-X1) * (Y2-Y1)/(X2-X1) | GF109: Y = Y1 + (X-X1) * (Y2-Y1)/(X2-X1)
AT111: 100 | AU111: Avg spacing | AW111: =AW97 -> 10 | BB111: Avg spacing | BD111: =AW111 -> 10 | BI111: Avg spacing | BK111: =BD111 -> 10 | BP111: Avg spacing | BR111: =BK111 -> 10 | BX111: 100 | BY111: Avg spacing | CA111: =CA97 -> 10 | CF111: Avg spacing | CH111: =CA111 -> 10 | CM111: Avg spacing | CO111: =CH111 -> 10 | CT111: Avg spacing | CV111: =CO111 -> 10 | DB111: 100 | DC111: Avg spacing | DE111: =DE97 -> 10 | DJ111: Avg spacing | DL111: =DE111 -> 10 | DQ111: Avg spacing | DS111: =DL111 -> 10 | DX111: Avg spacing | DZ111: =DS111 -> 10 | EF111: 100 | EG111: Avg spacing | EI111: =EI97 -> 10 | EN111: Avg spacing | EP111: =EI111 -> 10 | EU111: Avg spacing | EW111: =EP111 -> 10 | FB111: Avg spacing | FD111: =EW111 -> 10 | FJ111: 100 | FK111: Avg spacing | FM111: =FM97 -> 10 | FR111: Avg spacing | FT111: =FM111 -> 10 | FY111: Avg spacing | GA111: =FT111 -> 10 | GF111: Avg spacing | GH111: =GA111 -> 10
AT112: 2 | AU112: X Range | AV112: =FLOOR(AW111,10) -> 10 | AX112: =CEILING(AW111,10) -> 10 | BB112: X Range | BC112: =FLOOR(BD111,10) -> 10 | BE112: =CEILING(BD111,10) -> 10 | BI112: X Range | BJ112: =FLOOR(BK111,10) -> 10 | BL112: =CEILING(BK111,10) -> 10 | BP112: X Range | BQ112: =FLOOR(BR111,10) -> 10 | BS112: =CEILING(BR111,10) -> 10 | BX112: 2 | BY112: X Range | BZ112: =FLOOR(CA111,10) -> 10 | CB112: =CEILING(CA111,10) -> 10 | CF112: X Range | CG112: =FLOOR(CH111,10) -> 10 | CI112: =CEILING(CH111,10) -> 10 | CM112: X Range | CN112: =FLOOR(CO111,10) -> 10 | CP112: =CEILING(CO111,10) -> 10 | CT112: X Range | CU112: =FLOOR(CV111,10) -> 10 | CW112: =CEILING(CV111,10) -> 10 | DB112: 2 | DC112: X Range | DD112: =FLOOR(DE111,10) -> 10 | DF112: =CEILING(DE111,10) -> 10 | DJ112: X Range | DK112: =FLOOR(DL111,10) -> 10 | DM112: =CEILING(DL111,10) -> 10 | DQ112: X Range | DR112: =FLOOR(DS111,10) -> 10 | DT112: =CEILING(DS111,10) -> 10 | DX112: X Range | DY112: =FLOOR(DZ111,10) -> 10 | EA112: =CEILING(DZ111,10) -> 10 | EF112: 2 | EG112: X Range | EH112: =FLOOR(EI111,10) -> 10 | EJ112: =CEILING(EI111,10) -> 10 | EN112: X Range | EO112: =FLOOR(EP111,10) -> 10 | EQ112: =CEILING(EP111,10) -> 10 | EU112: X Range | EV112: =FLOOR(EW111,10) -> 10 | EX112: =CEILING(EW111,10) -> 10 | FB112: X Range | FC112: =FLOOR(FD111,10) -> 10 | FE112: =CEILING(FD111,10) -> 10 | FJ112: 2 | FK112: X Range | FL112: =FLOOR(FM111,10) -> 10 | FN112: =CEILING(FM111,10) -> 10 | FR112: X Range | FS112: =FLOOR(FT111,10) -> 10 | FU112: =CEILING(FT111,10) -> 10 | FY112: X Range | FZ112: =FLOOR(GA111,10) -> 10 | GB112: =CEILING(GA111,10) -> 10 | GF112: X Range | GG112: =FLOOR(GH111,10) -> 10 | GI112: =CEILING(GH111,10) -> 10
AU113: Y Range | AV113: =VLOOKUP(AV112,$AT$307:$AX$312,2,1) -> 8.5 | AW113: =AX120 -> 8.5 | AX113: =VLOOKUP(AX112,$AT$307:$AX$312,2,1) -> 8.5 | BB113: Y Range | BC113: =VLOOKUP(BC112,$AT$307:$AX$312,3,1) -> 8.5 | BD113: =BE120 -> 8.5 | BE113: =VLOOKUP(BE112,$AT$307:$AX$312,3,1) -> 8.5 | BI113: Y Range | BJ113: =VLOOKUP(BJ112,$AT$307:$AX$312,4,1) -> 5 | BK113: =BL120 -> 5 | BL113: =VLOOKUP(BL112,$AT$307:$AX$312,4,1) -> 5 | BP113: Y Range | BQ113: =VLOOKUP(BQ112,$AT$307:$AX$312,5,1) -> 4.5 | BR113: =BS120 -> 4.5 | BS113: =VLOOKUP(BS112,$AT$307:$AX$312,5,1) -> 4.5 | BY113: Y Range | BZ113: =VLOOKUP(BZ112,$AT$307:$AX$312,2,1) -> 8.5 | CA113: =CB120 -> 8.5 | CB113: =VLOOKUP(CB112,$AT$307:$AX$312,2,1) -> 8.5 | CF113: Y Range | CG113: =VLOOKUP(CG112,$AT$307:$AX$312,3,1) -> 8.5 | CH113: =CI120 -> 8.5 | CI113: =VLOOKUP(CI112,$AT$307:$AX$312,3,1) -> 8.5 | CM113: Y Range | CN113: =VLOOKUP(CN112,$AT$307:$AX$312,4,1) -> 5 | CO113: =CP120 -> 5 | CP113: =VLOOKUP(CP112,$AT$307:$AX$312,4,1) -> 5 | CT113: Y Range | CU113: =VLOOKUP(CU112,$AT$307:$AX$312,5,1) -> 4.5 | CV113: =CW120 -> 4.5 | CW113: =VLOOKUP(CW112,$AT$307:$AX$312,5,1) -> 4.5 | DC113: Y Range | DD113: =VLOOKUP(DD112,$AT$307:$AX$312,2,1) -> 8.5 | DE113: =DF120 -> 8.5 | DF113: =VLOOKUP(DF112,$AT$307:$AX$312,2,1) -> 8.5 | DJ113: Y Range | DK113: =VLOOKUP(DK112,$AT$307:$AX$312,3,1) -> 8.5 | DL113: =DM120 -> 8.5 | DM113: =VLOOKUP(DM112,$AT$307:$AX$312,3,1) -> 8.5 | DQ113: Y Range | DR113: =VLOOKUP(DR112,$AT$307:$AX$312,4,1) -> 5 | DS113: =DT120 -> 5 | DT113: =VLOOKUP(DT112,$AT$307:$AX$312,4,1) -> 5 | DX113: Y Range | DY113: =VLOOKUP(DY112,$AT$307:$AX$312,5,1) -> 4.5 | DZ113: =EA120 -> 4.5 | EA113: =VLOOKUP(EA112,$AT$307:$AX$312,5,1) -> 4.5 | EG113: Y Range | EH113: =VLOOKUP(EH112,$AT$307:$AX$312,2,1) -> 8.5 | EI113: =EJ120 -> 8.5 | EJ113: =VLOOKUP(EJ112,$AT$307:$AX$312,2,1) -> 8.5 | EN113: Y Range | EO113: =VLOOKUP(EO112,$AT$307:$AX$312,3,1) -> 8.5 | EP113: =EQ120 -> 8.5 | EQ113: =VLOOKUP(EQ112,$AT$307:$AX$312,3,1) -> 8.5 | EU113: Y Range | EV113: =VLOOKUP(EV112,$AT$307:$AX$312,4,1) -> 5 | EW113: =EX120 -> 5 | EX113: =VLOOKUP(EX112,$AT$307:$AX$312,4,1) -> 5 | FB113: Y Range | FC113: =VLOOKUP(FC112,$AT$307:$AX$312,5,1) -> 4.5 | FD113: =FE120 -> 4.5 | FE113: =VLOOKUP(FE112,$AT$307:$AX$312,5,1) -> 4.5 | FK113: Y Range | FL113: =VLOOKUP(FL112,$AT$307:$AX$312,2,1) -> 8.5 | FM113: =FN120 -> 8.5 | FN113: =VLOOKUP(FN112,$AT$307:$AX$312,2,1) -> 8.5 | FR113: Y Range | FS113: =VLOOKUP(FS112,$AT$307:$AX$312,3,1) -> 8.5 | FT113: =FU120 -> 8.5 | FU113: =VLOOKUP(FU112,$AT$307:$AX$312,3,1) -> 8.5 | FY113: Y Range | FZ113: =VLOOKUP(FZ112,$AT$307:$AX$312,4,1) -> 5 | GA113: =GB120 -> 5 | GB113: =VLOOKUP(GB112,$AT$307:$AX$312,4,1) -> 5 | GF113: Y Range | GG113: =VLOOKUP(GG112,$AT$307:$AX$312,5,1) -> 4.5 | GH113: =GI120 -> 4.5 | GI113: =VLOOKUP(GI112,$AT$307:$AX$312,5,1) -> 4.5
AU115: X1 | AV115: low spacing | AX115: =AV112+0.00001 -> 10.00001 | BB115: X1 | BC115: low spacing | BE115: =BC112+0.00001 -> 10.00001 | BI115: X1 | BJ115: low spacing | BL115: =BJ112+0.00001 -> 10.00001 | BP115: X1 | BQ115: low spacing | BS115: =BQ112+0.00001 -> 10.00001 | BY115: X1 | BZ115: low spacing | CB115: =BZ112+0.00001 -> 10.00001 | CF115: X1 | CG115: low spacing | CI115: =CG112+0.00001 -> 10.00001 | CM115: X1 | CN115: low spacing | CP115: =CN112+0.00001 -> 10.00001 | CT115: X1 | CU115: low spacing | CW115: =CU112+0.00001 -> 10.00001 | DC115: X1 | DD115: low spacing | DF115: =DD112+0.00001 -> 10.00001 | DJ115: X1 | DK115: low spacing | DM115: =DK112+0.00001 -> 10.00001 | DQ115: X1 | DR115: low spacing | DT115: =DR112+0.00001 -> 10.00001 | DX115: X1 | DY115: low spacing | EA115: =DY112+0.00001 -> 10.00001 | EG115: X1 | EH115: low spacing | EJ115: =EH112+0.00001 -> 10.00001 | EN115: X1 | EO115: low spacing | EQ115: =EO112+0.00001 -> 10.00001 | EU115: X1 | EV115: low spacing | EX115: =EV112+0.00001 -> 10.00001 | FB115: X1 | FC115: low spacing | FE115: =FC112+0.00001 -> 10.00001 | FK115: X1 | FL115: low spacing | FN115: =FL112+0.00001 -> 10.00001 | FR115: X1 | FS115: low spacing | FU115: =FS112+0.00001 -> 10.00001 | FY115: X1 | FZ115: low spacing | GB115: =FZ112+0.00001 -> 10.00001 | GF115: X1 | GG115: low spacing | GI115: =GG112+0.00001 -> 10.00001
AU116: X2 | AV116: high spacing | AX116: =AX112 -> 10 | BB116: X2 | BC116: high spacing | BE116: =BE112 -> 10 | BI116: X2 | BJ116: high spacing | BL116: =BL112 -> 10 | BP116: X2 | BQ116: high spacing | BS116: =BS112 -> 10 | BY116: X2 | BZ116: high spacing | CB116: =CB112 -> 10 | CF116: X2 | CG116: high spacing | CI116: =CI112 -> 10 | CM116: X2 | CN116: high spacing | CP116: =CP112 -> 10 | CT116: X2 | CU116: high spacing | CW116: =CW112 -> 10 | DC116: X2 | DD116: high spacing | DF116: =DF112 -> 10 | DJ116: X2 | DK116: high spacing | DM116: =DM112 -> 10 | DQ116: X2 | DR116: high spacing | DT116: =DT112 -> 10 | DX116: X2 | DY116: high spacing | EA116: =EA112 -> 10 | EG116: X2 | EH116: high spacing | EJ116: =EJ112 -> 10 | EN116: X2 | EO116: high spacing | EQ116: =EQ112 -> 10 | EU116: X2 | EV116: high spacing | EX116: =EX112 -> 10 | FB116: X2 | FC116: high spacing | FE116: =FE112 -> 10 | FK116: X2 | FL116: high spacing | FN116: =FN112 -> 10 | FR116: X2 | FS116: high spacing | FU116: =FU112 -> 10 | FY116: X2 | FZ116: high spacing | GB116: =GB112 -> 10 | GF116: X2 | GG116: high spacing | GI116: =GI112 -> 10
AU117: X | AV117: actual spacing | AX117: =AW111 -> 10 | BB117: X | BC117: actual spacing | BE117: =BD111 -> 10 | BI117: X | BJ117: actual spacing | BL117: =BK111 -> 10 | BP117: X | BQ117: actual spacing | BS117: =BR111 -> 10 | BY117: X | BZ117: actual spacing | CB117: =CA111 -> 10 | CF117: X | CG117: actual spacing | CI117: =CH111 -> 10 | CM117: X | CN117: actual spacing | CP117: =CO111 -> 10 | CT117: X | CU117: actual spacing | CW117: =CV111 -> 10 | DC117: X | DD117: actual spacing | DF117: =DE111 -> 10 | DJ117: X | DK117: actual spacing | DM117: =DL111 -> 10 | DQ117: X | DR117: actual spacing | DT117: =DS111 -> 10 | DX117: X | DY117: actual spacing | EA117: =DZ111 -> 10 | EG117: X | EH117: actual spacing | EJ117: =EI111 -> 10 | EN117: X | EO117: actual spacing | EQ117: =EP111 -> 10 | EU117: X | EV117: actual spacing | EX117: =EW111 -> 10 | FB117: X | FC117: actual spacing | FE117: =FD111 -> 10 | FK117: X | FL117: actual spacing | FN117: =FM111 -> 10 | FR117: X | FS117: actual spacing | FU117: =FT111 -> 10 | FY117: X | FZ117: actual spacing | GB117: =GA111 -> 10 | GF117: X | GG117: actual spacing | GI117: =GH111 -> 10
AU118: Y1 | AV118: low tabular | AX118: =AV113 -> 8.5 | BB118: Y1 | BC118: low tabular | BE118: =BC113 -> 8.5 | BI118: Y1 | BJ118: low tabular | BL118: =BJ113 -> 5 | BP118: Y1 | BQ118: low tabular | BS118: =BQ113 -> 4.5 | BY118: Y1 | BZ118: low tabular | CB118: =BZ113 -> 8.5 | CF118: Y1 | CG118: low tabular | CI118: =CG113 -> 8.5 | CM118: Y1 | CN118: low tabular | CP118: =CN113 -> 5 | CT118: Y1 | CU118: low tabular | CW118: =CU113 -> 4.5 | DC118: Y1 | DD118: low tabular | DF118: =DD113 -> 8.5 | DJ118: Y1 | DK118: low tabular | DM118: =DK113 -> 8.5 | DQ118: Y1 | DR118: low tabular | DT118: =DR113 -> 5 | DX118: Y1 | DY118: low tabular | EA118: =DY113 -> 4.5 | EG118: Y1 | EH118: low tabular | EJ118: =EH113 -> 8.5 | EN118: Y1 | EO118: low tabular | EQ118: =EO113 -> 8.5 | EU118: Y1 | EV118: low tabular | EX118: =EV113 -> 5 | FB118: Y1 | FC118: low tabular | FE118: =FC113 -> 4.5 | FK118: Y1 | FL118: low tabular | FN118: =FL113 -> 8.5 | FR118: Y1 | FS118: low tabular | FU118: =FS113 -> 8.5 | FY118: Y1 | FZ118: low tabular | GB118: =FZ113 -> 5 | GF118: Y1 | GG118: low tabular | GI118: =GG113 -> 4.5
AU119: Y2 | AV119: high tabular | AX119: =AX113 -> 8.5 | BB119: Y2 | BC119: high tabular | BE119: =BE113 -> 8.5 | BI119: Y2 | BJ119: high tabular | BL119: =BL113 -> 5 | BP119: Y2 | BQ119: high tabular | BS119: =BS113 -> 4.5 | BY119: Y2 | BZ119: high tabular | CB119: =CB113 -> 8.5 | CF119: Y2 | CG119: high tabular | CI119: =CI113 -> 8.5 | CM119: Y2 | CN119: high tabular | CP119: =CP113 -> 5 | CT119: Y2 | CU119: high tabular | CW119: =CW113 -> 4.5 | DC119: Y2 | DD119: high tabular | DF119: =DF113 -> 8.5 | DJ119: Y2 | DK119: high tabular | DM119: =DM113 -> 8.5 | DQ119: Y2 | DR119: high tabular | DT119: =DT113 -> 5 | DX119: Y2 | DY119: high tabular | EA119: =EA113 -> 4.5 | EG119: Y2 | EH119: high tabular | EJ119: =EJ113 -> 8.5 | EN119: Y2 | EO119: high tabular | EQ119: =EQ113 -> 8.5 | EU119: Y2 | EV119: high tabular | EX119: =EX113 -> 5 | FB119: Y2 | FC119: high tabular | FE119: =FE113 -> 4.5 | FK119: Y2 | FL119: high tabular | FN119: =FN113 -> 8.5 | FR119: Y2 | FS119: high tabular | FU119: =FU113 -> 8.5 | FY119: Y2 | FZ119: high tabular | GB119: =GB113 -> 5 | GF119: Y2 | GG119: high tabular | GI119: =GI113 -> 4.5
AU120: Y | AV120: TABULAR VALUE | AX120: =AX118+(AX117-AX115)*(AX119-AX118)/(AX116-AX115) -> 8.5 | BB120: Y | BC120: TABULAR VALUE | BE120: =BE118+(BE117-BE115)*(BE119-BE118)/(BE116-BE115) -> 8.5 | BI120: Y | BJ120: TABULAR VALUE | BL120: =BL118+(BL117-BL115)*(BL119-BL118)/(BL116-BL115) -> 5 | BP120: Y | BQ120: TABULAR VALUE | BS120: =BS118+(BS117-BS115)*(BS119-BS118)/(BS116-BS115) -> 4.5 | BY120: Y | BZ120: TABULAR VALUE | CB120: =CB118+(CB117-CB115)*(CB119-CB118)/(CB116-CB115) -> 8.5 | CF120: Y | CG120: TABULAR VALUE | CI120: =CI118+(CI117-CI115)*(CI119-CI118)/(CI116-CI115) -> 8.5 | CM120: Y | CN120: TABULAR VALUE | CP120: =CP118+(CP117-CP115)*(CP119-CP118)/(CP116-CP115) -> 5 | CT120: Y | CU120: TABULAR VALUE | CW120: =CW118+(CW117-CW115)*(CW119-CW118)/(CW116-CW115) -> 4.5 | DC120: Y | DD120: TABULAR VALUE | DF120: =DF118+(DF117-DF115)*(DF119-DF118)/(DF116-DF115) -> 8.5 | DJ120: Y | DK120: TABULAR VALUE | DM120: =DM118+(DM117-DM115)*(DM119-DM118)/(DM116-DM115) -> 8.5 | DQ120: Y | DR120: TABULAR VALUE | DT120: =DT118+(DT117-DT115)*(DT119-DT118)/(DT116-DT115) -> 5 | DX120: Y | DY120: TABULAR VALUE | EA120: =EA118+(EA117-EA115)*(EA119-EA118)/(EA116-EA115) -> 4.5 | EG120: Y | EH120: TABULAR VALUE | EJ120: =EJ118+(EJ117-EJ115)*(EJ119-EJ118)/(EJ116-EJ115) -> 8.5 | EN120: Y | EO120: TABULAR VALUE | EQ120: =EQ118+(EQ117-EQ115)*(EQ119-EQ118)/(EQ116-EQ115) -> 8.5 | EU120: Y | EV120: TABULAR VALUE | EX120: =EX118+(EX117-EX115)*(EX119-EX118)/(EX116-EX115) -> 5 | FB120: Y | FC120: TABULAR VALUE | FE120: =FE118+(FE117-FE115)*(FE119-FE118)/(FE116-FE115) -> 4.5 | FK120: Y | FL120: TABULAR VALUE | FN120: =FN118+(FN117-FN115)*(FN119-FN118)/(FN116-FN115) -> 8.5 | FR120: Y | FS120: TABULAR VALUE | FU120: =FU118+(FU117-FU115)*(FU119-FU118)/(FU116-FU115) -> 8.5 | FY120: Y | FZ120: TABULAR VALUE | GB120: =GB118+(GB117-GB115)*(GB119-GB118)/(GB116-GB115) -> 5 | GF120: Y | GG120: TABULAR VALUE | GI120: =GI118+(GI117-GI115)*(GI119-GI118)/(GI116-GI115) -> 4.5
AU121: COLUMN 1 | AX121: 101 | BB121: COLUMN 1 | BE121: 201 | BI121: COLUMN 1 | BL121: 301 | BP121: COLUMN 1 | BS121: 401 | BY121: =BY107 -> COLUMN 2 | CB121: 101 | CF121: =BY121 -> COLUMN 2 | CI121: 201 | CM121: =CF121 -> COLUMN 2 | CP121: 301 | CT121: =CM121 -> COLUMN 2 | CW121: 401 | DC121: =DC107 -> COLUMN 3 | DF121: 101 | DJ121: =DC121 -> COLUMN 3 | DM121: 201 | DQ121: =DJ121 -> COLUMN 3 | DT121: 301 | DX121: =DQ121 -> COLUMN 3 | EA121: 401 | EG121: =EG107 -> COLUMN 4 | EJ121: 101 | EN121: =EG121 -> COLUMN 4 | EQ121: 201 | EU121: =EN121 -> COLUMN 4 | EX121: 301 | FB121: =EU121 -> COLUMN 4 | FE121: 401 | FK121: =FK107 -> COLUMN 5 | FN121: 101 | FR121: =FK121 -> COLUMN 5 | FU121: 201 | FY121: =FR121 -> COLUMN 5 | GB121: 301 | GF121: =FY121 -> COLUMN 5 | GI121: 401
AU122: INTERPOLATED TABULAR VALUE | AX122: =$AT$125*$AT$126*AX121 -> 30300 | BB122: INTERPOLATED TABULAR VALUE | BE122: =$AT$125*$AT$126*BE121 -> 60300 | BI122: INTERPOLATED TABULAR VALUE | BL122: =$AT$125*$AT$126*BL121 -> 90300 | BP122: INTERPOLATED TABULAR VALUE | BS122: =$AT$125*$AT$126*BS121 -> 120300 | BY122: INTERPOLATED TABULAR VALUE | CB122: =$AT$125*$AT$126*CB121 -> 30300 | CF122: INTERPOLATED TABULAR VALUE | CI122: =$AT$125*$AT$126*CI121 -> 60300 | CM122: INTERPOLATED TABULAR VALUE | CP122: =$AT$125*$AT$126*CP121 -> 90300 | CT122: INTERPOLATED TABULAR VALUE | CW122: =$AT$125*$AT$126*CW121 -> 120300 | DC122: INTERPOLATED TABULAR VALUE | DF122: =$AT$125*$AT$126*DF121 -> 30300 | DJ122: INTERPOLATED TABULAR VALUE | DM122: =$AT$125*$AT$126*DM121 -> 60300 | DQ122: INTERPOLATED TABULAR VALUE | DT122: =$AT$125*$AT$126*DT121 -> 90300 | DX122: INTERPOLATED TABULAR VALUE | EA122: =$AT$125*$AT$126*EA121 -> 120300 | EG122: INTERPOLATED TABULAR VALUE | EJ122: =$AT$125*$AT$126*EJ121 -> 30300 | EN122: INTERPOLATED TABULAR VALUE | EQ122: =$AT$125*$AT$126*EQ121 -> 60300 | EU122: INTERPOLATED TABULAR VALUE | EX122: =$AT$125*$AT$126*EX121 -> 90300 | FB122: INTERPOLATED TABULAR VALUE | FE122: =$AT$125*$AT$126*FE121 -> 120300 | FK122: INTERPOLATED TABULAR VALUE | FN122: =$AT$125*$AT$126*FN121 -> 30300 | FR122: INTERPOLATED TABULAR VALUE | FU122: =$AT$125*$AT$126*FU121 -> 60300 | FY122: INTERPOLATED TABULAR VALUE | GB122: =$AT$125*$AT$126*GB121 -> 90300 | GF122: INTERPOLATED TABULAR VALUE | GI122: =$AT$125*$AT$126*GI121 -> 120300
AU123: Y = Y1 + (X-X1) * (Y2-Y1)/(X2-X1) | BB123: Y = Y1 + (X-X1) * (Y2-Y1)/(X2-X1) | BI123: Y = Y1 + (X-X1) * (Y2-Y1)/(X2-X1) | BP123: Y = Y1 + (X-X1) * (Y2-Y1)/(X2-X1) | BY123: Y = Y1 + (X-X1) * (Y2-Y1)/(X2-X1) | CF123: Y = Y1 + (X-X1) * (Y2-Y1)/(X2-X1) | CM123: Y = Y1 + (X-X1) * (Y2-Y1)/(X2-X1) | CT123: Y = Y1 + (X-X1) * (Y2-Y1)/(X2-X1) | DC123: Y = Y1 + (X-X1) * (Y2-Y1)/(X2-X1) | DJ123: Y = Y1 + (X-X1) * (Y2-Y1)/(X2-X1) | DQ123: Y = Y1 + (X-X1) * (Y2-Y1)/(X2-X1) | DX123: Y = Y1 + (X-X1) * (Y2-Y1)/(X2-X1) | EG123: Y = Y1 + (X-X1) * (Y2-Y1)/(X2-X1) | EN123: Y = Y1 + (X-X1) * (Y2-Y1)/(X2-X1) | EU123: Y = Y1 + (X-X1) * (Y2-Y1)/(X2-X1) | FB123: Y = Y1 + (X-X1) * (Y2-Y1)/(X2-X1) | FK123: Y = Y1 + (X-X1) * (Y2-Y1)/(X2-X1) | FR123: Y = Y1 + (X-X1) * (Y2-Y1)/(X2-X1) | FY123: Y = Y1 + (X-X1) * (Y2-Y1)/(X2-X1) | GF123: Y = Y1 + (X-X1) * (Y2-Y1)/(X2-X1)
AT125: 100 | AU125: Avg spacing | AW125: =AW111 -> 10 | BB125: Avg spacing | BD125: =AW125 -> 10 | BI125: Avg spacing | BK125: =BD125 -> 10 | BP125: Avg spacing | BR125: =BK125 -> 10 | BX125: 100 | BY125: Avg spacing | CA125: =CA111 -> 10 | CF125: Avg spacing | CH125: =CA125 -> 10 | CM125: Avg spacing | CO125: =CH125 -> 10 | CT125: Avg spacing | CV125: =CO125 -> 10 | DB125: 100 | DC125: Avg spacing | DE125: =DE111 -> 10 | DJ125: Avg spacing | DL125: =DE125 -> 10 | DQ125: Avg spacing | DS125: =DL125 -> 10 | DX125: Avg spacing | DZ125: =DS125 -> 10 | EF125: 100 | EG125: Avg spacing | EI125: =EI111 -> 10 | EN125: Avg spacing | EP125: =EI125 -> 10 | EU125: Avg spacing | EW125: =EP125 -> 10 | FB125: Avg spacing | FD125: =EW125 -> 10 | FJ125: 100 | FK125: Avg spacing | FM125: =FM111 -> 10 | FR125: Avg spacing | FT125: =FM125 -> 10 | FY125: Avg spacing | GA125: =FT125 -> 10 | GF125: Avg spacing | GH125: =GA125 -> 10
AT126: 3 | AU126: X Range | AV126: =FLOOR(AW125,10) -> 10 | AX126: =CEILING(AW125,10) -> 10 | BB126: X Range | BC126: =FLOOR(BD125,10) -> 10 | BE126: =CEILING(BD125,10) -> 10 | BI126: X Range | BJ126: =FLOOR(BK125,10) -> 10 | BL126: =CEILING(BK125,10) -> 10 | BP126: X Range | BQ126: =FLOOR(BR125,10) -> 10 | BS126: =CEILING(BR125,10) -> 10 | BX126: 3 | BY126: X Range | BZ126: =FLOOR(CA125,10) -> 10 | CB126: =CEILING(CA125,10) -> 10 | CF126: X Range | CG126: =FLOOR(CH125,10) -> 10 | CI126: =CEILING(CH125,10) -> 10 | CM126: X Range | CN126: =FLOOR(CO125,10) -> 10 | CP126: =CEILING(CO125,10) -> 10 | CT126: X Range | CU126: =FLOOR(CV125,10) -> 10 | CW126: =CEILING(CV125,10) -> 10 | DB126: 3 | DC126: X Range | DD126: =FLOOR(DE125,10) -> 10 | DF126: =CEILING(DE125,10) -> 10 | DJ126: X Range | DK126: =FLOOR(DL125,10) -> 10 | DM126: =CEILING(DL125,10) -> 10 | DQ126: X Range | DR126: =FLOOR(DS125,10) -> 10 | DT126: =CEILING(DS125,10) -> 10 | DX126: X Range | DY126: =FLOOR(DZ125,10) -> 10 | EA126: =CEILING(DZ125,10) -> 10 | EF126: 3 | EG126: X Range | EH126: =FLOOR(EI125,10) -> 10 | EJ126: =CEILING(EI125,10) -> 10 | EN126: X Range | EO126: =FLOOR(EP125,10) -> 10 | EQ126: =CEILING(EP125,10) -> 10 | EU126: X Range | EV126: =FLOOR(EW125,10) -> 10 | EX126: =CEILING(EW125,10) -> 10 | FB126: X Range | FC126: =FLOOR(FD125,10) -> 10 | FE126: =CEILING(FD125,10) -> 10 | FJ126: 3 | FK126: X Range | FL126: =FLOOR(FM125,10) -> 10 | FN126: =CEILING(FM125,10) -> 10 | FR126: X Range | FS126: =FLOOR(FT125,10) -> 10 | FU126: =CEILING(FT125,10) -> 10 | FY126: X Range | FZ126: =FLOOR(GA125,10) -> 10 | GB126: =CEILING(GA125,10) -> 10 | GF126: X Range | GG126: =FLOOR(GH125,10) -> 10 | GI126: =CEILING(GH125,10) -> 10
AU127: Y Range | AV127: =VLOOKUP(AV126,$AT$313:$AX$318,2,1) -> 0 | AW127: =AX134 -> NA | AX127: =VLOOKUP(AX126,$AT$313:$AX$318,2,1) -> 0 | BB127: Y Range | BC127: =VLOOKUP(BC126,$AT$313:$AX$318,3,1) -> 12.5 | BD127: =BE134 -> 12.5 | BE127: =VLOOKUP(BE126,$AT$313:$AX$318,3,1) -> 12.5 | BI127: Y Range | BJ127: =VLOOKUP(BJ126,$AT$313:$AX$318,4,1) -> 7.5 | BK127: =BL134 -> 7.5 | BL127: =VLOOKUP(BL126,$AT$313:$AX$318,4,1) -> 7.5 | BP127: Y Range | BQ127: =VLOOKUP(BQ126,$AT$313:$AX$318,5,1) -> 6 | BR127: =BS134 -> 6 | BS127: =VLOOKUP(BS126,$AT$313:$AX$318,5,1) -> 6 | BY127: Y Range | BZ127: =VLOOKUP(BZ126,$AT$313:$AX$318,2,1) -> 0 | CA127: =CB134 -> NA | CB127: =VLOOKUP(CB126,$AT$313:$AX$318,2,1) -> 0 | CF127: Y Range | CG127: =VLOOKUP(CG126,$AT$313:$AX$318,3,1) -> 12.5 | CH127: =CI134 -> 12.5 | CI127: =VLOOKUP(CI126,$AT$313:$AX$318,3,1) -> 12.5 | CM127: Y Range | CN127: =VLOOKUP(CN126,$AT$313:$AX$318,4,1) -> 7.5 | CO127: =CP134 -> 7.5 | CP127: =VLOOKUP(CP126,$AT$313:$AX$318,4,1) -> 7.5 | CT127: Y Range | CU127: =VLOOKUP(CU126,$AT$313:$AX$318,5,1) -> 6 | CV127: =CW134 -> 6 | CW127: =VLOOKUP(CW126,$AT$313:$AX$318,5,1) -> 6 | DC127: Y Range | DD127: =VLOOKUP(DD126,$AT$313:$AX$318,2,1) -> 0 | DE127: =DF134 -> NA | DF127: =VLOOKUP(DF126,$AT$313:$AX$318,2,1) -> 0 | DJ127: Y Range | DK127: =VLOOKUP(DK126,$AT$313:$AX$318,3,1) -> 12.5 | DL127: =DM134 -> 12.5 | DM127: =VLOOKUP(DM126,$AT$313:$AX$318,3,1) -> 12.5 | DQ127: Y Range | DR127: =VLOOKUP(DR126,$AT$313:$AX$318,4,1) -> 7.5 | DS127: =DT134 -> 7.5 | DT127: =VLOOKUP(DT126,$AT$313:$AX$318,4,1) -> 7.5 | DX127: Y Range | DY127: =VLOOKUP(DY126,$AT$313:$AX$318,5,1) -> 6 | DZ127: =EA134 -> 6 | EA127: =VLOOKUP(EA126,$AT$313:$AX$318,5,1) -> 6 | EG127: Y Range | EH127: =VLOOKUP(EH126,$AT$313:$AX$318,2,1) -> 0 | EI127: =EJ134 -> NA | EJ127: =VLOOKUP(EJ126,$AT$313:$AX$318,2,1) -> 0 | EN127: Y Range | EO127: =VLOOKUP(EO126,$AT$313:$AX$318,3,1) -> 12.5 | EP127: =EQ134 -> 12.5 | EQ127: =VLOOKUP(EQ126,$AT$313:$AX$318,3,1) -> 12.5 | EU127: Y Range | EV127: =VLOOKUP(EV126,$AT$313:$AX$318,4,1) -> 7.5 | EW127: =EX134 -> 7.5 | EX127: =VLOOKUP(EX126,$AT$313:$AX$318,4,1) -> 7.5 | FB127: Y Range | FC127: =VLOOKUP(FC126,$AT$313:$AX$318,5,1) -> 6 | FD127: =FE134 -> 6 | FE127: =VLOOKUP(FE126,$AT$313:$AX$318,5,1) -> 6 | FK127: Y Range | FL127: =VLOOKUP(FL126,$AT$313:$AX$318,2,1) -> 0 | FM127: =FN134 -> NA | FN127: =VLOOKUP(FN126,$AT$313:$AX$318,2,1) -> 0 | FR127: Y Range | FS127: =VLOOKUP(FS126,$AT$313:$AX$318,3,1) -> 12.5 | FT127: =FU134 -> 12.5 | FU127: =VLOOKUP(FU126,$AT$313:$AX$318,3,1) -> 12.5 | FY127: Y Range | FZ127: =VLOOKUP(FZ126,$AT$313:$AX$318,4,1) -> 7.5 | GA127: =GB134 -> 7.5 | GB127: =VLOOKUP(GB126,$AT$313:$AX$318,4,1) -> 7.5 | GF127: Y Range | GG127: =VLOOKUP(GG126,$AT$313:$AX$318,5,1) -> 6 | GH127: =GI134 -> 6 | GI127: =VLOOKUP(GI126,$AT$313:$AX$318,5,1) -> 6
AU129: X1 | AV129: low spacing | AX129: =AV126+0.00001 -> 10.00001 | BB129: X1 | BC129: low spacing | BE129: =BC126+0.00001 -> 10.00001 | BI129: X1 | BJ129: low spacing | BL129: =BJ126+0.00001 -> 10.00001 | BP129: X1 | BQ129: low spacing | BS129: =BQ126+0.00001 -> 10.00001 | BY129: X1 | BZ129: low spacing | CB129: =BZ126+0.00001 -> 10.00001 | CF129: X1 | CG129: low spacing | CI129: =CG126+0.00001 -> 10.00001 | CM129: X1 | CN129: low spacing | CP129: =CN126+0.00001 -> 10.00001 | CT129: X1 | CU129: low spacing | CW129: =CU126+0.00001 -> 10.00001 | DC129: X1 | DD129: low spacing | DF129: =DD126+0.00001 -> 10.00001 | DJ129: X1 | DK129: low spacing | DM129: =DK126+0.00001 -> 10.00001 | DQ129: X1 | DR129: low spacing | DT129: =DR126+0.00001 -> 10.00001 | DX129: X1 | DY129: low spacing | EA129: =DY126+0.00001 -> 10.00001 | EG129: X1 | EH129: low spacing | EJ129: =EH126+0.00001 -> 10.00001 | EN129: X1 | EO129: low spacing | EQ129: =EO126+0.00001 -> 10.00001 | EU129: X1 | EV129: low spacing | EX129: =EV126+0.00001 -> 10.00001 | FB129: X1 | FC129: low spacing | FE129: =FC126+0.00001 -> 10.00001 | FK129: X1 | FL129: low spacing | FN129: =FL126+0.00001 -> 10.00001 | FR129: X1 | FS129: low spacing | FU129: =FS126+0.00001 -> 10.00001 | FY129: X1 | FZ129: low spacing | GB129: =FZ126+0.00001 -> 10.00001 | GF129: X1 | GG129: low spacing | GI129: =GG126+0.00001 -> 10.00001
AU130: X2 | AV130: high spacing | AX130: =AX126 -> 10 | BB130: X2 | BC130: high spacing | BE130: =BE126 -> 10 | BI130: X2 | BJ130: high spacing | BL130: =BL126 -> 10 | BP130: X2 | BQ130: high spacing | BS130: =BS126 -> 10 | BY130: X2 | BZ130: high spacing | CB130: =CB126 -> 10 | CF130: X2 | CG130: high spacing | CI130: =CI126 -> 10 | CM130: X2 | CN130: high spacing | CP130: =CP126 -> 10 | CT130: X2 | CU130: high spacing | CW130: =CW126 -> 10 | DC130: X2 | DD130: high spacing | DF130: =DF126 -> 10 | DJ130: X2 | DK130: high spacing | DM130: =DM126 -> 10 | DQ130: X2 | DR130: high spacing | DT130: =DT126 -> 10 | DX130: X2 | DY130: high spacing | EA130: =EA126 -> 10 | EG130: X2 | EH130: high spacing | EJ130: =EJ126 -> 10 | EN130: X2 | EO130: high spacing | EQ130: =EQ126 -> 10 | EU130: X2 | EV130: high spacing | EX130: =EX126 -> 10 | FB130: X2 | FC130: high spacing | FE130: =FE126 -> 10 | FK130: X2 | FL130: high spacing | FN130: =FN126 -> 10 | FR130: X2 | FS130: high spacing | FU130: =FU126 -> 10 | FY130: X2 | FZ130: high spacing | GB130: =GB126 -> 10 | GF130: X2 | GG130: high spacing | GI130: =GI126 -> 10
AU131: X | AV131: actual spacing | AX131: =AW125 -> 10 | BB131: X | BC131: actual spacing | BE131: =BD125 -> 10 | BI131: X | BJ131: actual spacing | BL131: =BK125 -> 10 | BP131: X | BQ131: actual spacing | BS131: =BR125 -> 10 | BY131: X | BZ131: actual spacing | CB131: =CA125 -> 10 | CF131: X | CG131: actual spacing | CI131: =CH125 -> 10 | CM131: X | CN131: actual spacing | CP131: =CO125 -> 10 | CT131: X | CU131: actual spacing | CW131: =CV125 -> 10 | DC131: X | DD131: actual spacing | DF131: =DE125 -> 10 | DJ131: X | DK131: actual spacing | DM131: =DL125 -> 10 | DQ131: X | DR131: actual spacing | DT131: =DS125 -> 10 | DX131: X | DY131: actual spacing | EA131: =DZ125 -> 10 | EG131: X | EH131: actual spacing | EJ131: =EI125 -> 10 | EN131: X | EO131: actual spacing | EQ131: =EP125 -> 10 | EU131: X | EV131: actual spacing | EX131: =EW125 -> 10 | FB131: X | FC131: actual spacing | FE131: =FD125 -> 10 | FK131: X | FL131: actual spacing | FN131: =FM125 -> 10 | FR131: X | FS131: actual spacing | FU131: =FT125 -> 10 | FY131: X | FZ131: actual spacing | GB131: =GA125 -> 10 | GF131: X | GG131: actual spacing | GI131: =GH125 -> 10
AU132: Y1 | AV132: low tabular | AX132: =AV127 -> 0 | BB132: Y1 | BC132: low tabular | BE132: =BC127 -> 12.5 | BI132: Y1 | BJ132: low tabular | BL132: =BJ127 -> 7.5 | BP132: Y1 | BQ132: low tabular | BS132: =BQ127 -> 6 | BY132: Y1 | BZ132: low tabular | CB132: =BZ127 -> 0 | CF132: Y1 | CG132: low tabular | CI132: =CG127 -> 12.5 | CM132: Y1 | CN132: low tabular | CP132: =CN127 -> 7.5 | CT132: Y1 | CU132: low tabular | CW132: =CU127 -> 6 | DC132: Y1 | DD132: low tabular | DF132: =DD127 -> 0 | DJ132: Y1 | DK132: low tabular | DM132: =DK127 -> 12.5 | DQ132: Y1 | DR132: low tabular | DT132: =DR127 -> 7.5 | DX132: Y1 | DY132: low tabular | EA132: =DY127 -> 6 | EG132: Y1 | EH132: low tabular | EJ132: =EH127 -> 0 | EN132: Y1 | EO132: low tabular | EQ132: =EO127 -> 12.5 | EU132: Y1 | EV132: low tabular | EX132: =EV127 -> 7.5 | FB132: Y1 | FC132: low tabular | FE132: =FC127 -> 6 | FK132: Y1 | FL132: low tabular | FN132: =FL127 -> 0 | FR132: Y1 | FS132: low tabular | FU132: =FS127 -> 12.5 | FY132: Y1 | FZ132: low tabular | GB132: =FZ127 -> 7.5 | GF132: Y1 | GG132: low tabular | GI132: =GG127 -> 6
AU133: Y2 | AV133: high tabular | AX133: =AX127 -> 0 | BB133: Y2 | BC133: high tabular | BE133: =BE127 -> 12.5 | BI133: Y2 | BJ133: high tabular | BL133: =BL127 -> 7.5 | BP133: Y2 | BQ133: high tabular | BS133: =BS127 -> 6 | BY133: Y2 | BZ133: high tabular | CB133: =CB127 -> 0 | CF133: Y2 | CG133: high tabular | CI133: =CI127 -> 12.5 | CM133: Y2 | CN133: high tabular | CP133: =CP127 -> 7.5 | CT133: Y2 | CU133: high tabular | CW133: =CW127 -> 6 | DC133: Y2 | DD133: high tabular | DF133: =DF127 -> 0 | DJ133: Y2 | DK133: high tabular | DM133: =DM127 -> 12.5 | DQ133: Y2 | DR133: high tabular | DT133: =DT127 -> 7.5 | DX133: Y2 | DY133: high tabular | EA133: =EA127 -> 6 | EG133: Y2 | EH133: high tabular | EJ133: =EJ127 -> 0 | EN133: Y2 | EO133: high tabular | EQ133: =EQ127 -> 12.5 | EU133: Y2 | EV133: high tabular | EX133: =EX127 -> 7.5 | FB133: Y2 | FC133: high tabular | FE133: =FE127 -> 6 | FK133: Y2 | FL133: high tabular | FN133: =FN127 -> 0 | FR133: Y2 | FS133: high tabular | FU133: =FU127 -> 12.5 | FY133: Y2 | FZ133: high tabular | GB133: =GB127 -> 7.5 | GF133: Y2 | GG133: high tabular | GI133: =GI127 -> 6
AU134: Y | AV134: TABULAR VALUE | AX134: NA | BB134: Y | BC134: TABULAR VALUE | BE134: =BE132+(BE131-BE129)*(BE133-BE132)/(BE130-BE129) -> 12.5 | BI134: Y | BJ134: TABULAR VALUE | BL134: =BL132+(BL131-BL129)*(BL133-BL132)/(BL130-BL129) -> 7.5 | BP134: Y | BQ134: TABULAR VALUE | BS134: =BS132+(BS131-BS129)*(BS133-BS132)/(BS130-BS129) -> 6 | BY134: Y | BZ134: TABULAR VALUE | CB134: NA | CF134: Y | CG134: TABULAR VALUE | CI134: =CI132+(CI131-CI129)*(CI133-CI132)/(CI130-CI129) -> 12.5 | CM134: Y | CN134: TABULAR VALUE | CP134: =CP132+(CP131-CP129)*(CP133-CP132)/(CP130-CP129) -> 7.5 | CT134: Y | CU134: TABULAR VALUE | CW134: =CW132+(CW131-CW129)*(CW133-CW132)/(CW130-CW129) -> 6 | DC134: Y | DD134: TABULAR VALUE | DF134: NA | DJ134: Y | DK134: TABULAR VALUE | DM134: =DM132+(DM131-DM129)*(DM133-DM132)/(DM130-DM129) -> 12.5 | DQ134: Y | DR134: TABULAR VALUE | DT134: =DT132+(DT131-DT129)*(DT133-DT132)/(DT130-DT129) -> 7.5 | DX134: Y | DY134: TABULAR VALUE | EA134: =EA132+(EA131-EA129)*(EA133-EA132)/(EA130-EA129) -> 6 | EG134: Y | EH134: TABULAR VALUE | EJ134: NA | EN134: Y | EO134: TABULAR VALUE | EQ134: =EQ132+(EQ131-EQ129)*(EQ133-EQ132)/(EQ130-EQ129) -> 12.5 | EU134: Y | EV134: TABULAR VALUE | EX134: =EX132+(EX131-EX129)*(EX133-EX132)/(EX130-EX129) -> 7.5 | FB134: Y | FC134: TABULAR VALUE | FE134: =FE132+(FE131-FE129)*(FE133-FE132)/(FE130-FE129) -> 6 | FK134: Y | FL134: TABULAR VALUE | FN134: NA | FR134: Y | FS134: TABULAR VALUE | FU134: =FU132+(FU131-FU129)*(FU133-FU132)/(FU130-FU129) -> 12.5 | FY134: Y | FZ134: TABULAR VALUE | GB134: =GB132+(GB131-GB129)*(GB133-GB132)/(GB130-GB129) -> 7.5 | GF134: Y | GG134: TABULAR VALUE | GI134: =GI132+(GI131-GI129)*(GI133-GI132)/(GI130-GI129) -> 6
AU136: COLUMN 1 | AX136: 101 | BB136: COLUMN 1 | BE136: 201 | BI136: COLUMN 1 | BL136: 301 | BP136: COLUMN 1 | BS136: 401 | BY136: =BY121 -> COLUMN 2 | CB136: 101 | CF136: =BY136 -> COLUMN 2 | CI136: 201 | CM136: =CF136 -> COLUMN 2 | CP136: 301 | CT136: =CM136 -> COLUMN 2 | CW136: 401 | DC136: =DC121 -> COLUMN 3 | DF136: 101 | DJ136: =DC136 -> COLUMN 3 | DM136: 201 | DQ136: =DJ136 -> COLUMN 3 | DT136: 301 | DX136: =DQ136 -> COLUMN 3 | EA136: 401 | EG136: =EG121 -> COLUMN 4 | EJ136: 101 | EN136: =EG136 -> COLUMN 4 | EQ136: 201 | EU136: =EN136 -> COLUMN 4 | EX136: 301 | FB136: =EU136 -> COLUMN 4 | FE136: 401 | FK136: =FK121 -> COLUMN 5 | FN136: 101 | FR136: =FK136 -> COLUMN 5 | FU136: 201 | FY136: =FR136 -> COLUMN 5 | GB136: 301 | GF136: =FY136 -> COLUMN 5 | GI136: 401
AU137: INTERPOLATED TABULAR VALUE | AX137: =$AT$140*$AT$141*AX136 -> 11009 | BB137: INTERPOLATED TABULAR VALUE | BE137: =$AT$140*$AT$141*BE136 -> 21909 | BI137: INTERPOLATED TABULAR VALUE | BL137: =$AT$140*$AT$141*BL136 -> 32809 | BP137: INTERPOLATED TABULAR VALUE | BS137: =$AT$140*$AT$141*BS136 -> 43709 | BY137: INTERPOLATED TABULAR VALUE | CB137: =$AT$140*$AT$141*CB136 -> 11009 | CF137: INTERPOLATED TABULAR VALUE | CI137: =$AT$140*$AT$141*CI136 -> 21909 | CM137: INTERPOLATED TABULAR VALUE | CP137: =$AT$140*$AT$141*CP136 -> 32809 | CT137: INTERPOLATED TABULAR VALUE | CW137: =$AT$140*$AT$141*CW136 -> 43709 | DC137: INTERPOLATED TABULAR VALUE | DF137: =$AT$140*$AT$141*DF136 -> 11009 | DJ137: INTERPOLATED TABULAR VALUE | DM137: =$AT$140*$AT$141*DM136 -> 21909 | DQ137: INTERPOLATED TABULAR VALUE | DT137: =$AT$140*$AT$141*DT136 -> 32809 | DX137: INTERPOLATED TABULAR VALUE | EA137: =$AT$140*$AT$141*EA136 -> 43709 | EG137: INTERPOLATED TABULAR VALUE | EJ137: =$AT$140*$AT$141*EJ136 -> 11009 | EN137: INTERPOLATED TABULAR VALUE | EQ137: =$AT$140*$AT$141*EQ136 -> 21909 | EU137: INTERPOLATED TABULAR VALUE | EX137: =$AT$140*$AT$141*EX136 -> 32809 | FB137: INTERPOLATED TABULAR VALUE | FE137: =$AT$140*$AT$141*FE136 -> 43709 | FK137: INTERPOLATED TABULAR VALUE | FN137: =$AT$140*$AT$141*FN136 -> 11009 | FR137: INTERPOLATED TABULAR VALUE | FU137: =$AT$140*$AT$141*FU136 -> 21909 | FY137: INTERPOLATED TABULAR VALUE | GB137: =$AT$140*$AT$141*GB136 -> 32809 | GF137: INTERPOLATED TABULAR VALUE | GI137: =$AT$140*$AT$141*GI136 -> 43709
AU138: Y = Y1 + (X-X1) * (Y2-Y1)/(X2-X1) | BB138: Y = Y1 + (X-X1) * (Y2-Y1)/(X2-X1) | BI138: Y = Y1 + (X-X1) * (Y2-Y1)/(X2-X1) | BP138: Y = Y1 + (X-X1) * (Y2-Y1)/(X2-X1) | BY138: Y = Y1 + (X-X1) * (Y2-Y1)/(X2-X1) | CF138: Y = Y1 + (X-X1) * (Y2-Y1)/(X2-X1) | CM138: Y = Y1 + (X-X1) * (Y2-Y1)/(X2-X1) | CT138: Y = Y1 + (X-X1) * (Y2-Y1)/(X2-X1) | DC138: Y = Y1 + (X-X1) * (Y2-Y1)/(X2-X1) | DJ138: Y = Y1 + (X-X1) * (Y2-Y1)/(X2-X1) | DQ138: Y = Y1 + (X-X1) * (Y2-Y1)/(X2-X1) | DX138: Y = Y1 + (X-X1) * (Y2-Y1)/(X2-X1) | EG138: Y = Y1 + (X-X1) * (Y2-Y1)/(X2-X1) | EN138: Y = Y1 + (X-X1) * (Y2-Y1)/(X2-X1) | EU138: Y = Y1 + (X-X1) * (Y2-Y1)/(X2-X1) | FB138: Y = Y1 + (X-X1) * (Y2-Y1)/(X2-X1) | FK138: Y = Y1 + (X-X1) * (Y2-Y1)/(X2-X1) | FR138: Y = Y1 + (X-X1) * (Y2-Y1)/(X2-X1) | FY138: Y = Y1 + (X-X1) * (Y2-Y1)/(X2-X1) | GF138: Y = Y1 + (X-X1) * (Y2-Y1)/(X2-X1)
AT140: 109 | AU140: Avg spacing | AW140: =AW97 -> 10 | BB140: Avg spacing | BD140: =AW140 -> 10 | BI140: Avg spacing | BK140: =BD140 -> 10 | BP140: Avg spacing | BR140: =BK140 -> 10 | BX140: 109 | BY140: Avg spacing | CA140: =CA125 -> 10 | CF140: Avg spacing | CH140: =CA140 -> 10 | CM140: Avg spacing | CO140: =CH140 -> 10 | CT140: Avg spacing | CV140: =CO140 -> 10 | DB140: 109 | DC140: Avg spacing | DE140: =DE125 -> 10 | DJ140: Avg spacing | DL140: =DE140 -> 10 | DQ140: Avg spacing | DS140: =DL140 -> 10 | DX140: Avg spacing | DZ140: =DS140 -> 10 | EF140: 109 | EG140: Avg spacing | EI140: =EI125 -> 10 | EN140: Avg spacing | EP140: =EI140 -> 10 | EU140: Avg spacing | EW140: =EP140 -> 10 | FB140: Avg spacing | FD140: =EW140 -> 10 | FJ140: 109 | FK140: Avg spacing | FM140: =FM125 -> 10 | FR140: Avg spacing | FT140: =FM140 -> 10 | FY140: Avg spacing | GA140: =FT140 -> 10 | GF140: Avg spacing | GH140: =GA140 -> 10
AT141: 1 | AU141: X Range | AV141: =FLOOR(AW140,10) -> 10 | AX141: =CEILING(AW140,10) -> 10 | BB141: X Range | BC141: =FLOOR(BD140,10) -> 10 | BE141: =CEILING(BD140,10) -> 10 | BI141: X Range | BJ141: =FLOOR(BK140,10) -> 10 | BL141: =CEILING(BK140,10) -> 10 | BP141: X Range | BQ141: =FLOOR(BR140,10) -> 10 | BS141: =CEILING(BR140,10) -> 10 | BX141: 1 | BY141: X Range | BZ141: =FLOOR(CA140,10) -> 10 | CB141: =CEILING(CA140,10) -> 10 | CF141: X Range | CG141: =FLOOR(CH140,10) -> 10 | CI141: =CEILING(CH140,10) -> 10 | CM141: X Range | CN141: =FLOOR(CO140,10) -> 10 | CP141: =CEILING(CO140,10) -> 10 | CT141: X Range | CU141: =FLOOR(CV140,10) -> 10 | CW141: =CEILING(CV140,10) -> 10 | DB141: 1 | DC141: X Range | DD141: =FLOOR(DE140,10) -> 10 | DF141: =CEILING(DE140,10) -> 10 | DJ141: X Range | DK141: =FLOOR(DL140,10) -> 10 | DM141: =CEILING(DL140,10) -> 10 | DQ141: X Range | DR141: =FLOOR(DS140,10) -> 10 | DT141: =CEILING(DS140,10) -> 10 | DX141: X Range | DY141: =FLOOR(DZ140,10) -> 10 | EA141: =CEILING(DZ140,10) -> 10 | EF141: 1 | EG141: X Range | EH141: =FLOOR(EI140,10) -> 10 | EJ141: =CEILING(EI140,10) -> 10 | EN141: X Range | EO141: =FLOOR(EP140,10) -> 10 | EQ141: =CEILING(EP140,10) -> 10 | EU141: X Range | EV141: =FLOOR(EW140,10) -> 10 | EX141: =CEILING(EW140,10) -> 10 | FB141: X Range | FC141: =FLOOR(FD140,10) -> 10 | FE141: =CEILING(FD140,10) -> 10 | FJ141: 1 | FK141: X Range | FL141: =FLOOR(FM140,10) -> 10 | FN141: =CEILING(FM140,10) -> 10 | FR141: X Range | FS141: =FLOOR(FT140,10) -> 10 | FU141: =CEILING(FT140,10) -> 10 | FY141: X Range | FZ141: =FLOOR(GA140,10) -> 10 | GB141: =CEILING(GA140,10) -> 10 | GF141: X Range | GG141: =FLOOR(GH140,10) -> 10 | GI141: =CEILING(GH140,10) -> 10
AU142: Y Range | AV142: =VLOOKUP(AV141,$AT$319:$AX$324,2,1) -> 5.5 | AW142: =AX149 -> 5.5 | AX142: =VLOOKUP(AX141,$AT$319:$AX$324,2,1) -> 5.5 | BB142: Y Range | BC142: =VLOOKUP(BC141,$AT$319:$AX$324,3,1) -> 3.5 | BD142: =BE149 -> 3.5 | BE142: =VLOOKUP(BE141,$AT$319:$AX$324,3,1) -> 3.5 | BI142: Y Range | BJ142: =VLOOKUP(BJ141,$AT$319:$AX$324,4,1) -> 3 | BK142: =BL149 -> 3 | BL142: =VLOOKUP(BL141,$AT$319:$AX$324,4,1) -> 3 | BP142: Y Range | BQ142: =VLOOKUP(BQ141,$AT$319:$AX$324,5,1) -> 3 | BR142: =BS149 -> 3 | BS142: =VLOOKUP(BS141,$AT$319:$AX$324,5,1) -> 3 | BY142: Y Range | BZ142: =VLOOKUP(BZ141,$AT$319:$AX$324,2,1) -> 5.5 | CA142: =CB149 -> 5.5 | CB142: =VLOOKUP(CB141,$AT$319:$AX$324,2,1) -> 5.5 | CF142: Y Range | CG142: =VLOOKUP(CG141,$AT$319:$AX$324,3,1) -> 3.5 | CH142: =CI149 -> 3.5 | CI142: =VLOOKUP(CI141,$AT$319:$AX$324,3,1) -> 3.5 | CM142: Y Range | CN142: =VLOOKUP(CN141,$AT$319:$AX$324,4,1) -> 3 | CO142: =CP149 -> 3 | CP142: =VLOOKUP(CP141,$AT$319:$AX$324,4,1) -> 3 | CT142: Y Range | CU142: =VLOOKUP(CU141,$AT$319:$AX$324,5,1) -> 3 | CV142: =CW149 -> 3 | CW142: =VLOOKUP(CW141,$AT$319:$AX$324,5,1) -> 3 | DC142: Y Range | DD142: =VLOOKUP(DD141,$AT$319:$AX$324,2,1) -> 5.5 | DE142: =DF149 -> 5.5 | DF142: =VLOOKUP(DF141,$AT$319:$AX$324,2,1) -> 5.5 | DJ142: Y Range | DK142: =VLOOKUP(DK141,$AT$319:$AX$324,3,1) -> 3.5 | DL142: =DM149 -> 3.5 | DM142: =VLOOKUP(DM141,$AT$319:$AX$324,3,1) -> 3.5 | DQ142: Y Range | DR142: =VLOOKUP(DR141,$AT$319:$AX$324,4,1) -> 3 | DS142: =DT149 -> 3 | DT142: =VLOOKUP(DT141,$AT$319:$AX$324,4,1) -> 3 | DX142: Y Range | DY142: =VLOOKUP(DY141,$AT$319:$AX$324,5,1) -> 3 | DZ142: =EA149 -> 3 | EA142: =VLOOKUP(EA141,$AT$319:$AX$324,5,1) -> 3 | EG142: Y Range | EH142: =VLOOKUP(EH141,$AT$319:$AX$324,2,1) -> 5.5 | EI142: =EJ149 -> 5.5 | EJ142: =VLOOKUP(EJ141,$AT$319:$AX$324,2,1) -> 5.5 | EN142: Y Range | EO142: =VLOOKUP(EO141,$AT$319:$AX$324,3,1) -> 3.5 | EP142: =EQ149 -> 3.5 | EQ142: =VLOOKUP(EQ141,$AT$319:$AX$324,3,1) -> 3.5 | EU142: Y Range | EV142: =VLOOKUP(EV141,$AT$319:$AX$324,4,1) -> 3 | EW142: =EX149 -> 3 | EX142: =VLOOKUP(EX141,$AT$319:$AX$324,4,1) -> 3 | FB142: Y Range | FC142: =VLOOKUP(FC141,$AT$319:$AX$324,5,1) -> 3 | FD142: =FE149 -> 3 | FE142: =VLOOKUP(FE141,$AT$319:$AX$324,5,1) -> 3 | FK142: Y Range | FL142: =VLOOKUP(FL141,$AT$319:$AX$324,2,1) -> 5.5 | FM142: =FN149 -> 5.5 | FN142: =VLOOKUP(FN141,$AT$319:$AX$324,2,1) -> 5.5 | FR142: Y Range | FS142: =VLOOKUP(FS141,$AT$319:$AX$324,3,1) -> 3.5 | FT142: =FU149 -> 3.5 | FU142: =VLOOKUP(FU141,$AT$319:$AX$324,3,1) -> 3.5 | FY142: Y Range | FZ142: =VLOOKUP(FZ141,$AT$319:$AX$324,4,1) -> 3 | GA142: =GB149 -> 3 | GB142: =VLOOKUP(GB141,$AT$319:$AX$324,4,1) -> 3 | GF142: Y Range | GG142: =VLOOKUP(GG141,$AT$319:$AX$324,5,1) -> 3 | GH142: =GI149 -> 3 | GI142: =VLOOKUP(GI141,$AT$319:$AX$324,5,1) -> 3
AU144: X1 | AV144: low spacing | AX144: =AV141+0.00001 -> 10.00001 | BB144: X1 | BC144: low spacing | BE144: =BC141+0.00001 -> 10.00001 | BI144: X1 | BJ144: low spacing | BL144: =BJ141+0.00001 -> 10.00001 | BP144: X1 | BQ144: low spacing | BS144: =BQ141+0.00001 -> 10.00001 | BY144: X1 | BZ144: low spacing | CB144: =BZ141+0.00001 -> 10.00001 | CF144: X1 | CG144: low spacing | CI144: =CG141+0.00001 -> 10.00001 | CM144: X1 | CN144: low spacing | CP144: =CN141+0.00001 -> 10.00001 | CT144: X1 | CU144: low spacing | CW144: =CU141+0.00001 -> 10.00001 | DC144: X1 | DD144: low spacing | DF144: =DD141+0.00001 -> 10.00001 | DJ144: X1 | DK144: low spacing | DM144: =DK141+0.00001 -> 10.00001 | DQ144: X1 | DR144: low spacing | DT144: =DR141+0.00001 -> 10.00001 | DX144: X1 | DY144: low spacing | EA144: =DY141+0.00001 -> 10.00001 | EG144: X1 | EH144: low spacing | EJ144: =EH141+0.00001 -> 10.00001 | EN144: X1 | EO144: low spacing | EQ144: =EO141+0.00001 -> 10.00001 | EU144: X1 | EV144: low spacing | EX144: =EV141+0.00001 -> 10.00001 | FB144: X1 | FC144: low spacing | FE144: =FC141+0.00001 -> 10.00001 | FK144: X1 | FL144: low spacing | FN144: =FL141+0.00001 -> 10.00001 | FR144: X1 | FS144: low spacing | FU144: =FS141+0.00001 -> 10.00001 | FY144: X1 | FZ144: low spacing | GB144: =FZ141+0.00001 -> 10.00001 | GF144: X1 | GG144: low spacing | GI144: =GG141+0.00001 -> 10.00001
AU145: X2 | AV145: high spacing | AX145: =AX141 -> 10 | BB145: X2 | BC145: high spacing | BE145: =BE141 -> 10 | BI145: X2 | BJ145: high spacing | BL145: =BL141 -> 10 | BP145: X2 | BQ145: high spacing | BS145: =BS141 -> 10 | BY145: X2 | BZ145: high spacing | CB145: =CB141 -> 10 | CF145: X2 | CG145: high spacing | CI145: =CI141 -> 10 | CM145: X2 | CN145: high spacing | CP145: =CP141 -> 10 | CT145: X2 | CU145: high spacing | CW145: =CW141 -> 10 | DC145: X2 | DD145: high spacing | DF145: =DF141 -> 10 | DJ145: X2 | DK145: high spacing | DM145: =DM141 -> 10 | DQ145: X2 | DR145: high spacing | DT145: =DT141 -> 10 | DX145: X2 | DY145: high spacing | EA145: =EA141 -> 10 | EG145: X2 | EH145: high spacing | EJ145: =EJ141 -> 10 | EN145: X2 | EO145: high spacing | EQ145: =EQ141 -> 10 | EU145: X2 | EV145: high spacing | EX145: =EX141 -> 10 | FB145: X2 | FC145: high spacing | FE145: =FE141 -> 10 | FK145: X2 | FL145: high spacing | FN145: =FN141 -> 10 | FR145: X2 | FS145: high spacing | FU145: =FU141 -> 10 | FY145: X2 | FZ145: high spacing | GB145: =GB141 -> 10 | GF145: X2 | GG145: high spacing | GI145: =GI141 -> 10
AU146: X | AV146: actual spacing | AX146: =AW140 -> 10 | BB146: X | BC146: actual spacing | BE146: =BD140 -> 10 | BI146: X | BJ146: actual spacing | BL146: =BK140 -> 10 | BP146: X | BQ146: actual spacing | BS146: =BR140 -> 10 | BY146: X | BZ146: actual spacing | CB146: =CA140 -> 10 | CF146: X | CG146: actual spacing | CI146: =CH140 -> 10 | CM146: X | CN146: actual spacing | CP146: =CO140 -> 10 | CT146: X | CU146: actual spacing | CW146: =CV140 -> 10 | DC146: X | DD146: actual spacing | DF146: =DE140 -> 10 | DJ146: X | DK146: actual spacing | DM146: =DL140 -> 10 | DQ146: X | DR146: actual spacing | DT146: =DS140 -> 10 | DX146: X | DY146: actual spacing | EA146: =DZ140 -> 10 | EG146: X | EH146: actual spacing | EJ146: =EI140 -> 10 | EN146: X | EO146: actual spacing | EQ146: =EP140 -> 10 | EU146: X | EV146: actual spacing | EX146: =EW140 -> 10 | FB146: X | FC146: actual spacing | FE146: =FD140 -> 10 | FK146: X | FL146: actual spacing | FN146: =FM140 -> 10 | FR146: X | FS146: actual spacing | FU146: =FT140 -> 10 | FY146: X | FZ146: actual spacing | GB146: =GA140 -> 10 | GF146: X | GG146: actual spacing | GI146: =GH140 -> 10
AU147: Y1 | AV147: low tabular | AX147: =AV142 -> 5.5 | BB147: Y1 | BC147: low tabular | BE147: =BC142 -> 3.5 | BI147: Y1 | BJ147: low tabular | BL147: =BJ142 -> 3 | BP147: Y1 | BQ147: low tabular | BS147: =BQ142 -> 3 | BY147: Y1 | BZ147: low tabular | CB147: =BZ142 -> 5.5 | CF147: Y1 | CG147: low tabular | CI147: =CG142 -> 3.5 | CM147: Y1 | CN147: low tabular | CP147: =CN142 -> 3 | CT147: Y1 | CU147: low tabular | CW147: =CU142 -> 3 | DC147: Y1 | DD147: low tabular | DF147: =DD142 -> 5.5 | DJ147: Y1 | DK147: low tabular | DM147: =DK142 -> 3.5 | DQ147: Y1 | DR147: low tabular | DT147: =DR142 -> 3 | DX147: Y1 | DY147: low tabular | EA147: =DY142 -> 3 | EG147: Y1 | EH147: low tabular | EJ147: =EH142 -> 5.5 | EN147: Y1 | EO147: low tabular | EQ147: =EO142 -> 3.5 | EU147: Y1 | EV147: low tabular | EX147: =EV142 -> 3 | FB147: Y1 | FC147: low tabular | FE147: =FC142 -> 3 | FK147: Y1 | FL147: low tabular | FN147: =FL142 -> 5.5 | FR147: Y1 | FS147: low tabular | FU147: =FS142 -> 3.5 | FY147: Y1 | FZ147: low tabular | GB147: =FZ142 -> 3 | GF147: Y1 | GG147: low tabular | GI147: =GG142 -> 3
AU148: Y2 | AV148: high tabular | AX148: =AX142 -> 5.5 | BB148: Y2 | BC148: high tabular | BE148: =BE142 -> 3.5 | BI148: Y2 | BJ148: high tabular | BL148: =BL142 -> 3 | BP148: Y2 | BQ148: high tabular | BS148: =BS142 -> 3 | BY148: Y2 | BZ148: high tabular | CB148: =CB142 -> 5.5 | CF148: Y2 | CG148: high tabular | CI148: =CI142 -> 3.5 | CM148: Y2 | CN148: high tabular | CP148: =CP142 -> 3 | CT148: Y2 | CU148: high tabular | CW148: =CW142 -> 3 | DC148: Y2 | DD148: high tabular | DF148: =DF142 -> 5.5 | DJ148: Y2 | DK148: high tabular | DM148: =DM142 -> 3.5 | DQ148: Y2 | DR148: high tabular | DT148: =DT142 -> 3 | DX148: Y2 | DY148: high tabular | EA148: =EA142 -> 3 | EG148: Y2 | EH148: high tabular | EJ148: =EJ142 -> 5.5 | EN148: Y2 | EO148: high tabular | EQ148: =EQ142 -> 3.5 | EU148: Y2 | EV148: high tabular | EX148: =EX142 -> 3 | FB148: Y2 | FC148: high tabular | FE148: =FE142 -> 3 | FK148: Y2 | FL148: high tabular | FN148: =FN142 -> 5.5 | FR148: Y2 | FS148: high tabular | FU148: =FU142 -> 3.5 | FY148: Y2 | FZ148: high tabular | GB148: =GB142 -> 3 | GF148: Y2 | GG148: high tabular | GI148: =GI142 -> 3
AU149: Y | AV149: TABULAR VALUE | AX149: =AX147+(AX146-AX144)*(AX148-AX147)/(AX145-AX144) -> 5.5 | BB149: Y | BC149: TABULAR VALUE | BE149: =BE147+(BE146-BE144)*(BE148-BE147)/(BE145-BE144) -> 3.5 | BI149: Y | BJ149: TABULAR VALUE | BL149: =BL147+(BL146-BL144)*(BL148-BL147)/(BL145-BL144) -> 3 | BP149: Y | BQ149: TABULAR VALUE | BS149: =BS147+(BS146-BS144)*(BS148-BS147)/(BS145-BS144) -> 3 | BY149: Y | BZ149: TABULAR VALUE | CB149: =CB147+(CB146-CB144)*(CB148-CB147)/(CB145-CB144) -> 5.5 | CF149: Y | CG149: TABULAR VALUE | CI149: =CI147+(CI146-CI144)*(CI148-CI147)/(CI145-CI144) -> 3.5 | CM149: Y | CN149: TABULAR VALUE | CP149: =CP147+(CP146-CP144)*(CP148-CP147)/(CP145-CP144) -> 3 | CT149: Y | CU149: TABULAR VALUE | CW149: =CW147+(CW146-CW144)*(CW148-CW147)/(CW145-CW144) -> 3 | DC149: Y | DD149: TABULAR VALUE | DF149: =DF147+(DF146-DF144)*(DF148-DF147)/(DF145-DF144) -> 5.5 | DJ149: Y | DK149: TABULAR VALUE | DM149: =DM147+(DM146-DM144)*(DM148-DM147)/(DM145-DM144) -> 3.5 | DQ149: Y | DR149: TABULAR VALUE | DT149: =DT147+(DT146-DT144)*(DT148-DT147)/(DT145-DT144) -> 3 | DX149: Y | DY149: TABULAR VALUE | EA149: =EA147+(EA146-EA144)*(EA148-EA147)/(EA145-EA144) -> 3 | EG149: Y | EH149: TABULAR VALUE | EJ149: =EJ147+(EJ146-EJ144)*(EJ148-EJ147)/(EJ145-EJ144) -> 5.5 | EN149: Y | EO149: TABULAR VALUE | EQ149: =EQ147+(EQ146-EQ144)*(EQ148-EQ147)/(EQ145-EQ144) -> 3.5 | EU149: Y | EV149: TABULAR VALUE | EX149: =EX147+(EX146-EX144)*(EX148-EX147)/(EX145-EX144) -> 3 | FB149: Y | FC149: TABULAR VALUE | FE149: =FE147+(FE146-FE144)*(FE148-FE147)/(FE145-FE144) -> 3 | FK149: Y | FL149: TABULAR VALUE | FN149: =FN147+(FN146-FN144)*(FN148-FN147)/(FN145-FN144) -> 5.5 | FR149: Y | FS149: TABULAR VALUE | FU149: =FU147+(FU146-FU144)*(FU148-FU147)/(FU145-FU144) -> 3.5 | FY149: Y | FZ149: TABULAR VALUE | GB149: =GB147+(GB146-GB144)*(GB148-GB147)/(GB145-GB144) -> 3 | GF149: Y | GG149: TABULAR VALUE | GI149: =GI147+(GI146-GI144)*(GI148-GI147)/(GI145-GI144) -> 3
AU150: COLUMN 1 | AX150: 101 | BB150: COLUMN 1 | BE150: 201 | BI150: COLUMN 1 | BL150: 301 | BP150: COLUMN 1 | BS150: 401 | BY150: =BY136 -> COLUMN 2 | CB150: 101 | CF150: =BY150 -> COLUMN 2 | CI150: 201 | CM150: =CF150 -> COLUMN 2 | CP150: 301 | CT150: =CM150 -> COLUMN 2 | CW150: 401 | DC150: =DC136 -> COLUMN 3 | DF150: 101 | DJ150: =DC150 -> COLUMN 3 | DM150: 201 | DQ150: =DJ150 -> COLUMN 3 | DT150: 301 | DX150: =DQ150 -> COLUMN 3 | EA150: 401 | EG150: =EG136 -> COLUMN 4 | EJ150: 101 | EN150: =EG150 -> COLUMN 4 | EQ150: 201 | EU150: =EN150 -> COLUMN 4 | EX150: 301 | FB150: =EU150 -> COLUMN 4 | FE150: 401 | FK150: =FK136 -> COLUMN 5 | FN150: 101 | FR150: =FK150 -> COLUMN 5 | FU150: 201 | FY150: =FR150 -> COLUMN 5 | GB150: 301 | GF150: =FY150 -> COLUMN 5 | GI150: 401
AU151: INTERPOLATED TABULAR VALUE | AX151: =$AT$154*$AT$155*AX150 -> 22018 | BB151: INTERPOLATED TABULAR VALUE | BE151: =$AT$154*$AT$155*BE150 -> 43818 | BI151: INTERPOLATED TABULAR VALUE | BL151: =$AT$154*$AT$155*BL150 -> 65618 | BP151: INTERPOLATED TABULAR VALUE | BS151: =$AT$154*$AT$155*BS150 -> 87418 | BY151: INTERPOLATED TABULAR VALUE | CB151: =$AT$154*$AT$155*CB150 -> 22018 | CF151: INTERPOLATED TABULAR VALUE | CI151: =$AT$154*$AT$155*CI150 -> 43818 | CM151: INTERPOLATED TABULAR VALUE | CP151: =$AT$154*$AT$155*CP150 -> 65618 | CT151: INTERPOLATED TABULAR VALUE | CW151: =$AT$154*$AT$155*CW150 -> 87418 | DC151: INTERPOLATED TABULAR VALUE | DF151: =$AT$154*$AT$155*DF150 -> 22018 | DJ151: INTERPOLATED TABULAR VALUE | DM151: =$AT$154*$AT$155*DM150 -> 43818 | DQ151: INTERPOLATED TABULAR VALUE | DT151: =$AT$154*$AT$155*DT150 -> 65618 | DX151: INTERPOLATED TABULAR VALUE | EA151: =$AT$154*$AT$155*EA150 -> 87418 | EG151: INTERPOLATED TABULAR VALUE | EJ151: =$AT$154*$AT$155*EJ150 -> 22018 | EN151: INTERPOLATED TABULAR VALUE | EQ151: =$AT$154*$AT$155*EQ150 -> 43818 | EU151: INTERPOLATED TABULAR VALUE | EX151: =$AT$154*$AT$155*EX150 -> 65618 | FB151: INTERPOLATED TABULAR VALUE | FE151: =$AT$154*$AT$155*FE150 -> 87418 | FK151: INTERPOLATED TABULAR VALUE | FN151: =$AT$154*$AT$155*FN150 -> 22018 | FR151: INTERPOLATED TABULAR VALUE | FU151: =$AT$154*$AT$155*FU150 -> 43818 | FY151: INTERPOLATED TABULAR VALUE | GB151: =$AT$154*$AT$155*GB150 -> 65618 | GF151: INTERPOLATED TABULAR VALUE | GI151: =$AT$154*$AT$155*GI150 -> 87418
AU152: Y = Y1 + (X-X1) * (Y2-Y1)/(X2-X1) | BB152: Y = Y1 + (X-X1) * (Y2-Y1)/(X2-X1) | BI152: Y = Y1 + (X-X1) * (Y2-Y1)/(X2-X1) | BP152: Y = Y1 + (X-X1) * (Y2-Y1)/(X2-X1) | BY152: Y = Y1 + (X-X1) * (Y2-Y1)/(X2-X1) | CF152: Y = Y1 + (X-X1) * (Y2-Y1)/(X2-X1) | CM152: Y = Y1 + (X-X1) * (Y2-Y1)/(X2-X1) | CT152: Y = Y1 + (X-X1) * (Y2-Y1)/(X2-X1) | DC152: Y = Y1 + (X-X1) * (Y2-Y1)/(X2-X1) | DJ152: Y = Y1 + (X-X1) * (Y2-Y1)/(X2-X1) | DQ152: Y = Y1 + (X-X1) * (Y2-Y1)/(X2-X1) | DX152: Y = Y1 + (X-X1) * (Y2-Y1)/(X2-X1) | EG152: Y = Y1 + (X-X1) * (Y2-Y1)/(X2-X1) | EN152: Y = Y1 + (X-X1) * (Y2-Y1)/(X2-X1) | EU152: Y = Y1 + (X-X1) * (Y2-Y1)/(X2-X1) | FB152: Y = Y1 + (X-X1) * (Y2-Y1)/(X2-X1) | FK152: Y = Y1 + (X-X1) * (Y2-Y1)/(X2-X1) | FR152: Y = Y1 + (X-X1) * (Y2-Y1)/(X2-X1) | FY152: Y = Y1 + (X-X1) * (Y2-Y1)/(X2-X1) | GF152: Y = Y1 + (X-X1) * (Y2-Y1)/(X2-X1)
AT154: 109 | AU154: Avg spacing | AW154: =AW140 -> 10 | BB154: Avg spacing | BD154: =AW154 -> 10 | BI154: Avg spacing | BK154: =BD154 -> 10 | BP154: Avg spacing | BR154: =BK154 -> 10 | BX154: 109 | BY154: Avg spacing | CA154: =CA140 -> 10 | CF154: Avg spacing | CH154: =CA154 -> 10 | CM154: Avg spacing | CO154: =CH154 -> 10 | CT154: Avg spacing | CV154: =CO154 -> 10 | DB154: 109 | DC154: Avg spacing | DE154: =DE140 -> 10 | DJ154: Avg spacing | DL154: =DE154 -> 10 | DQ154: Avg spacing | DS154: =DL154 -> 10 | DX154: Avg spacing | DZ154: =DS154 -> 10 | EF154: 109 | EG154: Avg spacing | EI154: =EI140 -> 10 | EN154: Avg spacing | EP154: =EI154 -> 10 | EU154: Avg spacing | EW154: =EP154 -> 10 | FB154: Avg spacing | FD154: =EW154 -> 10 | FJ154: 109 | FK154: Avg spacing | FM154: =FM140 -> 10 | FR154: Avg spacing | FT154: =FM154 -> 10 | FY154: Avg spacing | GA154: =FT154 -> 10 | GF154: Avg spacing | GH154: =GA154 -> 10
AT155: 2 | AU155: X Range | AV155: =FLOOR(AW154,10) -> 10 | AX155: =CEILING(AW154,10) -> 10 | BB155: X Range | BC155: =FLOOR(BD154,10) -> 10 | BE155: =CEILING(BD154,10) -> 10 | BI155: X Range | BJ155: =FLOOR(BK154,10) -> 10 | BL155: =CEILING(BK154,10) -> 10 | BP155: X Range | BQ155: =FLOOR(BR154,10) -> 10 | BS155: =CEILING(BR154,10) -> 10 | BX155: 2 | BY155: X Range | BZ155: =FLOOR(CA154,10) -> 10 | CB155: =CEILING(CA154,10) -> 10 | CF155: X Range | CG155: =FLOOR(CH154,10) -> 10 | CI155: =CEILING(CH154,10) -> 10 | CM155: X Range | CN155: =FLOOR(CO154,10) -> 10 | CP155: =CEILING(CO154,10) -> 10 | CT155: X Range | CU155: =FLOOR(CV154,10) -> 10 | CW155: =CEILING(CV154,10) -> 10 | DB155: 2 | DC155: X Range | DD155: =FLOOR(DE154,10) -> 10 | DF155: =CEILING(DE154,10) -> 10 | DJ155: X Range | DK155: =FLOOR(DL154,10) -> 10 | DM155: =CEILING(DL154,10) -> 10 | DQ155: X Range | DR155: =FLOOR(DS154,10) -> 10 | DT155: =CEILING(DS154,10) -> 10 | DX155: X Range | DY155: =FLOOR(DZ154,10) -> 10 | EA155: =CEILING(DZ154,10) -> 10 | EF155: 2 | EG155: X Range | EH155: =FLOOR(EI154,10) -> 10 | EJ155: =CEILING(EI154,10) -> 10 | EN155: X Range | EO155: =FLOOR(EP154,10) -> 10 | EQ155: =CEILING(EP154,10) -> 10 | EU155: X Range | EV155: =FLOOR(EW154,10) -> 10 | EX155: =CEILING(EW154,10) -> 10 | FB155: X Range | FC155: =FLOOR(FD154,10) -> 10 | FE155: =CEILING(FD154,10) -> 10 | FJ155: 2 | FK155: X Range | FL155: =FLOOR(FM154,10) -> 10 | FN155: =CEILING(FM154,10) -> 10 | FR155: X Range | FS155: =FLOOR(FT154,10) -> 10 | FU155: =CEILING(FT154,10) -> 10 | FY155: X Range | FZ155: =FLOOR(GA154,10) -> 10 | GB155: =CEILING(GA154,10) -> 10 | GF155: X Range | GG155: =FLOOR(GH154,10) -> 10 | GI155: =CEILING(GH154,10) -> 10
AU156: Y Range | AV156: =VLOOKUP(AV155,$AT$325:$AX$330,2,1) -> 10.5 | AW156: =AX163 -> 10.5 | AX156: =VLOOKUP(AX155,$AT$325:$AX$330,2,1) -> 10.5 | BB156: Y Range | BC156: =VLOOKUP(BC155,$AT$325:$AX$330,3,1) -> 10.5 | BD156: =BE163 -> 10.5 | BE156: =VLOOKUP(BE155,$AT$325:$AX$330,3,1) -> 10.5 | BI156: Y Range | BJ156: =VLOOKUP(BJ155,$AT$325:$AX$330,4,1) -> 6 | BK156: =BL163 -> 6 | BL156: =VLOOKUP(BL155,$AT$325:$AX$330,4,1) -> 6 | BP156: Y Range | BQ156: =VLOOKUP(BQ155,$AT$325:$AX$330,5,1) -> 5 | BR156: =BS163 -> 5 | BS156: =VLOOKUP(BS155,$AT$325:$AX$330,5,1) -> 5 | BY156: Y Range | BZ156: =VLOOKUP(BZ155,$AT$325:$AX$330,2,1) -> 10.5 | CA156: =CB163 -> 10.5 | CB156: =VLOOKUP(CB155,$AT$325:$AX$330,2,1) -> 10.5 | CF156: Y Range | CG156: =VLOOKUP(CG155,$AT$325:$AX$330,3,1) -> 10.5 | CH156: =CI163 -> 10.5 | CI156: =VLOOKUP(CI155,$AT$325:$AX$330,3,1) -> 10.5 | CM156: Y Range | CN156: =VLOOKUP(CN155,$AT$325:$AX$330,4,1) -> 6 | CO156: =CP163 -> 6 | CP156: =VLOOKUP(CP155,$AT$325:$AX$330,4,1) -> 6 | CT156: Y Range | CU156: =VLOOKUP(CU155,$AT$325:$AX$330,5,1) -> 5 | CV156: =CW163 -> 5 | CW156: =VLOOKUP(CW155,$AT$325:$AX$330,5,1) -> 5 | DC156: Y Range | DD156: =VLOOKUP(DD155,$AT$325:$AX$330,2,1) -> 10.5 | DE156: =DF163 -> 10.5 | DF156: =VLOOKUP(DF155,$AT$325:$AX$330,2,1) -> 10.5 | DJ156: Y Range | DK156: =VLOOKUP(DK155,$AT$325:$AX$330,3,1) -> 10.5 | DL156: =DM163 -> 10.5 | DM156: =VLOOKUP(DM155,$AT$325:$AX$330,3,1) -> 10.5 | DQ156: Y Range | DR156: =VLOOKUP(DR155,$AT$325:$AX$330,4,1) -> 6 | DS156: =DT163 -> 6 | DT156: =VLOOKUP(DT155,$AT$325:$AX$330,4,1) -> 6 | DX156: Y Range | DY156: =VLOOKUP(DY155,$AT$325:$AX$330,5,1) -> 5 | DZ156: =EA163 -> 5 | EA156: =VLOOKUP(EA155,$AT$325:$AX$330,5,1) -> 5 | EG156: Y Range | EH156: =VLOOKUP(EH155,$AT$325:$AX$330,2,1) -> 10.5 | EI156: =EJ163 -> 10.5 | EJ156: =VLOOKUP(EJ155,$AT$325:$AX$330,2,1) -> 10.5 | EN156: Y Range | EO156: =VLOOKUP(EO155,$AT$325:$AX$330,3,1) -> 10.5 | EP156: =EQ163 -> 10.5 | EQ156: =VLOOKUP(EQ155,$AT$325:$AX$330,3,1) -> 10.5 | EU156: Y Range | EV156: =VLOOKUP(EV155,$AT$325:$AX$330,4,1) -> 6 | EW156: =EX163 -> 6 | EX156: =VLOOKUP(EX155,$AT$325:$AX$330,4,1) -> 6 | FB156: Y Range | FC156: =VLOOKUP(FC155,$AT$325:$AX$330,5,1) -> 5 | FD156: =FE163 -> 5 | FE156: =VLOOKUP(FE155,$AT$325:$AX$330,5,1) -> 5 | FK156: Y Range | FL156: =VLOOKUP(FL155,$AT$325:$AX$330,2,1) -> 10.5 | FM156: =FN163 -> 10.5 | FN156: =VLOOKUP(FN155,$AT$325:$AX$330,2,1) -> 10.5 | FR156: Y Range | FS156: =VLOOKUP(FS155,$AT$325:$AX$330,3,1) -> 10.5 | FT156: =FU163 -> 10.5 | FU156: =VLOOKUP(FU155,$AT$325:$AX$330,3,1) -> 10.5 | FY156: Y Range | FZ156: =VLOOKUP(FZ155,$AT$325:$AX$330,4,1) -> 6 | GA156: =GB163 -> 6 | GB156: =VLOOKUP(GB155,$AT$325:$AX$330,4,1) -> 6 | GF156: Y Range | GG156: =VLOOKUP(GG155,$AT$325:$AX$330,5,1) -> 5 | GH156: =GI163 -> 5 | GI156: =VLOOKUP(GI155,$AT$325:$AX$330,5,1) -> 5
AU158: X1 | AV158: low spacing | AX158: =AV155+0.00001 -> 10.00001 | BB158: X1 | BC158: low spacing | BE158: =BC155+0.00001 -> 10.00001 | BI158: X1 | BJ158: low spacing | BL158: =BJ155+0.00001 -> 10.00001 | BP158: X1 | BQ158: low spacing | BS158: =BQ155+0.00001 -> 10.00001 | BY158: X1 | BZ158: low spacing | CB158: =BZ155+0.00001 -> 10.00001 | CF158: X1 | CG158: low spacing | CI158: =CG155+0.00001 -> 10.00001 | CM158: X1 | CN158: low spacing | CP158: =CN155+0.00001 -> 10.00001 | CT158: X1 | CU158: low spacing | CW158: =CU155+0.00001 -> 10.00001 | DC158: X1 | DD158: low spacing | DF158: =DD155+0.00001 -> 10.00001 | DJ158: X1 | DK158: low spacing | DM158: =DK155+0.00001 -> 10.00001 | DQ158: X1 | DR158: low spacing | DT158: =DR155+0.00001 -> 10.00001 | DX158: X1 | DY158: low spacing | EA158: =DY155+0.00001 -> 10.00001 | EG158: X1 | EH158: low spacing | EJ158: =EH155+0.00001 -> 10.00001 | EN158: X1 | EO158: low spacing | EQ158: =EO155+0.00001 -> 10.00001 | EU158: X1 | EV158: low spacing | EX158: =EV155+0.00001 -> 10.00001 | FB158: X1 | FC158: low spacing | FE158: =FC155+0.00001 -> 10.00001 | FK158: X1 | FL158: low spacing | FN158: =FL155+0.00001 -> 10.00001 | FR158: X1 | FS158: low spacing | FU158: =FS155+0.00001 -> 10.00001 | FY158: X1 | FZ158: low spacing | GB158: =FZ155+0.00001 -> 10.00001 | GF158: X1 | GG158: low spacing | GI158: =GG155+0.00001 -> 10.00001
AU159: X2 | AV159: high spacing | AX159: =AX155 -> 10 | BB159: X2 | BC159: high spacing | BE159: =BE155 -> 10 | BI159: X2 | BJ159: high spacing | BL159: =BL155 -> 10 | BP159: X2 | BQ159: high spacing | BS159: =BS155 -> 10 | BY159: X2 | BZ159: high spacing | CB159: =CB155 -> 10 | CF159: X2 | CG159: high spacing | CI159: =CI155 -> 10 | CM159: X2 | CN159: high spacing | CP159: =CP155 -> 10 | CT159: X2 | CU159: high spacing | CW159: =CW155 -> 10 | DC159: X2 | DD159: high spacing | DF159: =DF155 -> 10 | DJ159: X2 | DK159: high spacing | DM159: =DM155 -> 10 | DQ159: X2 | DR159: high spacing | DT159: =DT155 -> 10 | DX159: X2 | DY159: high spacing | EA159: =EA155 -> 10 | EG159: X2 | EH159: high spacing | EJ159: =EJ155 -> 10 | EN159: X2 | EO159: high spacing | EQ159: =EQ155 -> 10 | EU159: X2 | EV159: high spacing | EX159: =EX155 -> 10 | FB159: X2 | FC159: high spacing | FE159: =FE155 -> 10 | FK159: X2 | FL159: high spacing | FN159: =FN155 -> 10 | FR159: X2 | FS159: high spacing | FU159: =FU155 -> 10 | FY159: X2 | FZ159: high spacing | GB159: =GB155 -> 10 | GF159: X2 | GG159: high spacing | GI159: =GI155 -> 10
AU160: X | AV160: actual spacing | AX160: =AW154 -> 10 | BB160: X | BC160: actual spacing | BE160: =BD154 -> 10 | BI160: X | BJ160: actual spacing | BL160: =BK154 -> 10 | BP160: X | BQ160: actual spacing | BS160: =BR154 -> 10 | BY160: X | BZ160: actual spacing | CB160: =CA154 -> 10 | CF160: X | CG160: actual spacing | CI160: =CH154 -> 10 | CM160: X | CN160: actual spacing | CP160: =CO154 -> 10 | CT160: X | CU160: actual spacing | CW160: =CV154 -> 10 | DC160: X | DD160: actual spacing | DF160: =DE154 -> 10 | DJ160: X | DK160: actual spacing | DM160: =DL154 -> 10 | DQ160: X | DR160: actual spacing | DT160: =DS154 -> 10 | DX160: X | DY160: actual spacing | EA160: =DZ154 -> 10 | EG160: X | EH160: actual spacing | EJ160: =EI154 -> 10 | EN160: X | EO160: actual spacing | EQ160: =EP154 -> 10 | EU160: X | EV160: actual spacing | EX160: =EW154 -> 10 | FB160: X | FC160: actual spacing | FE160: =FD154 -> 10 | FK160: X | FL160: actual spacing | FN160: =FM154 -> 10 | FR160: X | FS160: actual spacing | FU160: =FT154 -> 10 | FY160: X | FZ160: actual spacing | GB160: =GA154 -> 10 | GF160: X | GG160: actual spacing | GI160: =GH154 -> 10
AU161: Y1 | AV161: low tabular | AX161: =AV156 -> 10.5 | BB161: Y1 | BC161: low tabular | BE161: =BC156 -> 10.5 | BI161: Y1 | BJ161: low tabular | BL161: =BJ156 -> 6 | BP161: Y1 | BQ161: low tabular | BS161: =BQ156 -> 5 | BY161: Y1 | BZ161: low tabular | CB161: =BZ156 -> 10.5 | CF161: Y1 | CG161: low tabular | CI161: =CG156 -> 10.5 | CM161: Y1 | CN161: low tabular | CP161: =CN156 -> 6 | CT161: Y1 | CU161: low tabular | CW161: =CU156 -> 5 | DC161: Y1 | DD161: low tabular | DF161: =DD156 -> 10.5 | DJ161: Y1 | DK161: low tabular | DM161: =DK156 -> 10.5 | DQ161: Y1 | DR161: low tabular | DT161: =DR156 -> 6 | DX161: Y1 | DY161: low tabular | EA161: =DY156 -> 5 | EG161: Y1 | EH161: low tabular | EJ161: =EH156 -> 10.5 | EN161: Y1 | EO161: low tabular | EQ161: =EO156 -> 10.5 | EU161: Y1 | EV161: low tabular | EX161: =EV156 -> 6 | FB161: Y1 | FC161: low tabular | FE161: =FC156 -> 5 | FK161: Y1 | FL161: low tabular | FN161: =FL156 -> 10.5 | FR161: Y1 | FS161: low tabular | FU161: =FS156 -> 10.5 | FY161: Y1 | FZ161: low tabular | GB161: =FZ156 -> 6 | GF161: Y1 | GG161: low tabular | GI161: =GG156 -> 5
AU162: Y2 | AV162: high tabular | AX162: =AX156 -> 10.5 | BB162: Y2 | BC162: high tabular | BE162: =BE156 -> 10.5 | BI162: Y2 | BJ162: high tabular | BL162: =BL156 -> 6 | BP162: Y2 | BQ162: high tabular | BS162: =BS156 -> 5 | BY162: Y2 | BZ162: high tabular | CB162: =CB156 -> 10.5 | CF162: Y2 | CG162: high tabular | CI162: =CI156 -> 10.5 | CM162: Y2 | CN162: high tabular | CP162: =CP156 -> 6 | CT162: Y2 | CU162: high tabular | CW162: =CW156 -> 5 | DC162: Y2 | DD162: high tabular | DF162: =DF156 -> 10.5 | DJ162: Y2 | DK162: high tabular | DM162: =DM156 -> 10.5 | DQ162: Y2 | DR162: high tabular | DT162: =DT156 -> 6 | DX162: Y2 | DY162: high tabular | EA162: =EA156 -> 5 | EG162: Y2 | EH162: high tabular | EJ162: =EJ156 -> 10.5 | EN162: Y2 | EO162: high tabular | EQ162: =EQ156 -> 10.5 | EU162: Y2 | EV162: high tabular | EX162: =EX156 -> 6 | FB162: Y2 | FC162: high tabular | FE162: =FE156 -> 5 | FK162: Y2 | FL162: high tabular | FN162: =FN156 -> 10.5 | FR162: Y2 | FS162: high tabular | FU162: =FU156 -> 10.5 | FY162: Y2 | FZ162: high tabular | GB162: =GB156 -> 6 | GF162: Y2 | GG162: high tabular | GI162: =GI156 -> 5
AU163: Y | AV163: TABULAR VALUE | AX163: =AX161+(AX160-AX158)*(AX162-AX161)/(AX159-AX158) -> 10.5 | BB163: Y | BC163: TABULAR VALUE | BE163: =BE161+(BE160-BE158)*(BE162-BE161)/(BE159-BE158) -> 10.5 | BI163: Y | BJ163: TABULAR VALUE | BL163: =BL161+(BL160-BL158)*(BL162-BL161)/(BL159-BL158) -> 6 | BP163: Y | BQ163: TABULAR VALUE | BS163: =BS161+(BS160-BS158)*(BS162-BS161)/(BS159-BS158) -> 5 | BY163: Y | BZ163: TABULAR VALUE | CB163: =CB161+(CB160-CB158)*(CB162-CB161)/(CB159-CB158) -> 10.5 | CF163: Y | CG163: TABULAR VALUE | CI163: =CI161+(CI160-CI158)*(CI162-CI161)/(CI159-CI158) -> 10.5 | CM163: Y | CN163: TABULAR VALUE | CP163: =CP161+(CP160-CP158)*(CP162-CP161)/(CP159-CP158) -> 6 | CT163: Y | CU163: TABULAR VALUE | CW163: =CW161+(CW160-CW158)*(CW162-CW161)/(CW159-CW158) -> 5 | DC163: Y | DD163: TABULAR VALUE | DF163: =DF161+(DF160-DF158)*(DF162-DF161)/(DF159-DF158) -> 10.5 | DJ163: Y | DK163: TABULAR VALUE | DM163: =DM161+(DM160-DM158)*(DM162-DM161)/(DM159-DM158) -> 10.5 | DQ163: Y | DR163: TABULAR VALUE | DT163: =DT161+(DT160-DT158)*(DT162-DT161)/(DT159-DT158) -> 6 | DX163: Y | DY163: TABULAR VALUE | EA163: =EA161+(EA160-EA158)*(EA162-EA161)/(EA159-EA158) -> 5 | EG163: Y | EH163: TABULAR VALUE | EJ163: =EJ161+(EJ160-EJ158)*(EJ162-EJ161)/(EJ159-EJ158) -> 10.5 | EN163: Y | EO163: TABULAR VALUE | EQ163: =EQ161+(EQ160-EQ158)*(EQ162-EQ161)/(EQ159-EQ158) -> 10.5 | EU163: Y | EV163: TABULAR VALUE | EX163: =EX161+(EX160-EX158)*(EX162-EX161)/(EX159-EX158) -> 6 | FB163: Y | FC163: TABULAR VALUE | FE163: =FE161+(FE160-FE158)*(FE162-FE161)/(FE159-FE158) -> 5 | FK163: Y | FL163: TABULAR VALUE | FN163: =FN161+(FN160-FN158)*(FN162-FN161)/(FN159-FN158) -> 10.5 | FR163: Y | FS163: TABULAR VALUE | FU163: =FU161+(FU160-FU158)*(FU162-FU161)/(FU159-FU158) -> 10.5 | FY163: Y | FZ163: TABULAR VALUE | GB163: =GB161+(GB160-GB158)*(GB162-GB161)/(GB159-GB158) -> 6 | GF163: Y | GG163: TABULAR VALUE | GI163: =GI161+(GI160-GI158)*(GI162-GI161)/(GI159-GI158) -> 5
AU164: COLUMN 1 | AX164: 101 | BB164: COLUMN 1 | BE164: 201 | BI164: COLUMN 1 | BL164: 301 | BP164: COLUMN 1 | BS164: 401 | BY164: =BY150 -> COLUMN 2 | CB164: 101 | CF164: =BY164 -> COLUMN 2 | CI164: 201 | CM164: =CF164 -> COLUMN 2 | CP164: 301 | CT164: =CM164 -> COLUMN 2 | CW164: 401 | DC164: =DC150 -> COLUMN 3 | DF164: 101 | DJ164: =DC164 -> COLUMN 3 | DM164: 201 | DQ164: =DJ164 -> COLUMN 3 | DT164: 301 | DX164: =DQ164 -> COLUMN 3 | EA164: 401 | EG164: =EG150 -> COLUMN 4 | EJ164: 101 | EN164: =EG164 -> COLUMN 4 | EQ164: 201 | EU164: =EN164 -> COLUMN 4 | EX164: 301 | FB164: =EU164 -> COLUMN 4 | FE164: 401 | FK164: =FK150 -> COLUMN 5 | FN164: 101 | FR164: =FK164 -> COLUMN 5 | FU164: 201 | FY164: =FR164 -> COLUMN 5 | GB164: 301 | GF164: =FY164 -> COLUMN 5 | GI164: 401
AU165: INTERPOLATED TABULAR VALUE | AX165: =$AT$168*$AT$169*AX164 -> 33027 | BB165: INTERPOLATED TABULAR VALUE | BE165: =$AT$168*$AT$169*BE164 -> 65727 | BI165: INTERPOLATED TABULAR VALUE | BL165: =$AT$168*$AT$169*BL164 -> 98427 | BP165: INTERPOLATED TABULAR VALUE | BS165: =$AT$168*$AT$169*BS164 -> 131127 | BY165: INTERPOLATED TABULAR VALUE | CB165: =$AT$168*$AT$169*CB164 -> 33027 | CF165: INTERPOLATED TABULAR VALUE | CI165: =$AT$168*$AT$169*CI164 -> 65727 | CM165: INTERPOLATED TABULAR VALUE | CP165: =$AT$168*$AT$169*CP164 -> 98427 | CT165: INTERPOLATED TABULAR VALUE | CW165: =$AT$168*$AT$169*CW164 -> 131127 | DC165: INTERPOLATED TABULAR VALUE | DF165: =$AT$168*$AT$169*DF164 -> 33027 | DJ165: INTERPOLATED TABULAR VALUE | DM165: =$AT$168*$AT$169*DM164 -> 65727 | DQ165: INTERPOLATED TABULAR VALUE | DT165: =$AT$168*$AT$169*DT164 -> 98427 | DX165: INTERPOLATED TABULAR VALUE | EA165: =$AT$168*$AT$169*EA164 -> 131127 | EG165: INTERPOLATED TABULAR VALUE | EJ165: =$AT$168*$AT$169*EJ164 -> 33027 | EN165: INTERPOLATED TABULAR VALUE | EQ165: =$AT$168*$AT$169*EQ164 -> 65727 | EU165: INTERPOLATED TABULAR VALUE | EX165: =$AT$168*$AT$169*EX164 -> 98427 | FB165: INTERPOLATED TABULAR VALUE | FE165: =$AT$168*$AT$169*FE164 -> 131127 | FK165: INTERPOLATED TABULAR VALUE | FN165: =$AT$168*$AT$169*FN164 -> 33027 | FR165: INTERPOLATED TABULAR VALUE | FU165: =$AT$168*$AT$169*FU164 -> 65727 | FY165: INTERPOLATED TABULAR VALUE | GB165: =$AT$168*$AT$169*GB164 -> 98427 | GF165: INTERPOLATED TABULAR VALUE | GI165: =$AT$168*$AT$169*GI164 -> 131127
AU166: Y = Y1 + (X-X1) * (Y2-Y1)/(X2-X1) | BB166: Y = Y1 + (X-X1) * (Y2-Y1)/(X2-X1) | BI166: Y = Y1 + (X-X1) * (Y2-Y1)/(X2-X1) | BP166: Y = Y1 + (X-X1) * (Y2-Y1)/(X2-X1) | BY166: Y = Y1 + (X-X1) * (Y2-Y1)/(X2-X1) | CF166: Y = Y1 + (X-X1) * (Y2-Y1)/(X2-X1) | CM166: Y = Y1 + (X-X1) * (Y2-Y1)/(X2-X1) | CT166: Y = Y1 + (X-X1) * (Y2-Y1)/(X2-X1) | DC166: Y = Y1 + (X-X1) * (Y2-Y1)/(X2-X1) | DJ166: Y = Y1 + (X-X1) * (Y2-Y1)/(X2-X1) | DQ166: Y = Y1 + (X-X1) * (Y2-Y1)/(X2-X1) | DX166: Y = Y1 + (X-X1) * (Y2-Y1)/(X2-X1) | EG166: Y = Y1 + (X-X1) * (Y2-Y1)/(X2-X1) | EN166: Y = Y1 + (X-X1) * (Y2-Y1)/(X2-X1) | EU166: Y = Y1 + (X-X1) * (Y2-Y1)/(X2-X1) | FB166: Y = Y1 + (X-X1) * (Y2-Y1)/(X2-X1) | FK166: Y = Y1 + (X-X1) * (Y2-Y1)/(X2-X1) | FR166: Y = Y1 + (X-X1) * (Y2-Y1)/(X2-X1) | FY166: Y = Y1 + (X-X1) * (Y2-Y1)/(X2-X1) | GF166: Y = Y1 + (X-X1) * (Y2-Y1)/(X2-X1)
AT168: 109 | AU168: Avg spacing | AW168: =AW154 -> 10 | BB168: Avg spacing | BD168: =AW168 -> 10 | BI168: Avg spacing | BK168: =BD168 -> 10 | BP168: Avg spacing | BR168: =BK168 -> 10 | BX168: 109 | BY168: Avg spacing | CA168: =CA154 -> 10 | CF168: Avg spacing | CH168: =CA168 -> 10 | CM168: Avg spacing | CO168: =CH168 -> 10 | CT168: Avg spacing | CV168: =CO168 -> 10 | DB168: 109 | DC168: Avg spacing | DE168: =DE154 -> 10 | DJ168: Avg spacing | DL168: =DE168 -> 10 | DQ168: Avg spacing | DS168: =DL168 -> 10 | DX168: Avg spacing | DZ168: =DS168 -> 10 | EF168: 109 | EG168: Avg spacing | EI168: =EI154 -> 10 | EN168: Avg spacing | EP168: =EI168 -> 10 | EU168: Avg spacing | EW168: =EP168 -> 10 | FB168: Avg spacing | FD168: =EW168 -> 10 | FJ168: 109 | FK168: Avg spacing | FM168: =FM154 -> 10 | FR168: Avg spacing | FT168: =FM168 -> 10 | FY168: Avg spacing | GA168: =FT168 -> 10 | GF168: Avg spacing | GH168: =GA168 -> 10
AT169: 3 | AU169: X Range | AV169: =FLOOR(AW168,10) -> 10 | AX169: =CEILING(AW168,10) -> 10 | BB169: X Range | BC169: =FLOOR(BD168,10) -> 10 | BE169: =CEILING(BD168,10) -> 10 | BI169: X Range | BJ169: =FLOOR(BK168,10) -> 10 | BL169: =CEILING(BK168,10) -> 10 | BP169: X Range | BQ169: =FLOOR(BR168,10) -> 10 | BS169: =CEILING(BR168,10) -> 10 | BX169: 3 | BY169: X Range | BZ169: =FLOOR(CA168,10) -> 10 | CB169: =CEILING(CA168,10) -> 10 | CF169: X Range | CG169: =FLOOR(CH168,10) -> 10 | CI169: =CEILING(CH168,10) -> 10 | CM169: X Range | CN169: =FLOOR(CO168,10) -> 10 | CP169: =CEILING(CO168,10) -> 10 | CT169: X Range | CU169: =FLOOR(CV168,10) -> 10 | CW169: =CEILING(CV168,10) -> 10 | DB169: 3 | DC169: X Range | DD169: =FLOOR(DE168,10) -> 10 | DF169: =CEILING(DE168,10) -> 10 | DJ169: X Range | DK169: =FLOOR(DL168,10) -> 10 | DM169: =CEILING(DL168,10) -> 10 | DQ169: X Range | DR169: =FLOOR(DS168,10) -> 10 | DT169: =CEILING(DS168,10) -> 10 | DX169: X Range | DY169: =FLOOR(DZ168,10) -> 10 | EA169: =CEILING(DZ168,10) -> 10 | EF169: 3 | EG169: X Range | EH169: =FLOOR(EI168,10) -> 10 | EJ169: =CEILING(EI168,10) -> 10 | EN169: X Range | EO169: =FLOOR(EP168,10) -> 10 | EQ169: =CEILING(EP168,10) -> 10 | EU169: X Range | EV169: =FLOOR(EW168,10) -> 10 | EX169: =CEILING(EW168,10) -> 10 | FB169: X Range | FC169: =FLOOR(FD168,10) -> 10 | FE169: =CEILING(FD168,10) -> 10 | FJ169: 3 | FK169: X Range | FL169: =FLOOR(FM168,10) -> 10 | FN169: =CEILING(FM168,10) -> 10 | FR169: X Range | FS169: =FLOOR(FT168,10) -> 10 | FU169: =CEILING(FT168,10) -> 10 | FY169: X Range | FZ169: =FLOOR(GA168,10) -> 10 | GB169: =CEILING(GA168,10) -> 10 | GF169: X Range | GG169: =FLOOR(GH168,10) -> 10 | GI169: =CEILING(GH168,10) -> 10
AU170: Y Range | AV170: =VLOOKUP(AV169,$AT$331:$AX$336,2,1) -> 0 | AW170: =AX177 -> NA | AX170: =VLOOKUP(AX169,$AT$331:$AX$336,2,1) -> 0 | BB170: Y Range | BC170: =VLOOKUP(BC169,$AT$331:$AX$336,3,1) -> 15.5 | BD170: =BE177 -> 15.5 | BE170: =VLOOKUP(BE169,$AT$331:$AX$336,3,1) -> 15.5 | BI170: Y Range | BJ170: =VLOOKUP(BJ169,$AT$331:$AX$336,4,1) -> 9 | BK170: =BL177 -> 9 | BL170: =VLOOKUP(BL169,$AT$331:$AX$336,4,1) -> 9 | BP170: Y Range | BQ170: =VLOOKUP(BQ169,$AT$331:$AX$336,5,1) -> 7.5 | BR170: =BS177 -> 7.5 | BS170: =VLOOKUP(BS169,$AT$331:$AX$336,5,1) -> 7.5 | BY170: Y Range | BZ170: =VLOOKUP(BZ169,$AT$331:$AX$336,2,1) -> 0 | CA170: =CB177 -> NA | CB170: =VLOOKUP(CB169,$AT$331:$AX$336,2,1) -> 0 | CF170: Y Range | CG170: =VLOOKUP(CG169,$AT$331:$AX$336,3,1) -> 15.5 | CH170: =CI177 -> 15.5 | CI170: =VLOOKUP(CI169,$AT$331:$AX$336,3,1) -> 15.5 | CM170: Y Range | CN170: =VLOOKUP(CN169,$AT$331:$AX$336,4,1) -> 9 | CO170: =CP177 -> 9 | CP170: =VLOOKUP(CP169,$AT$331:$AX$336,4,1) -> 9 | CT170: Y Range | CU170: =VLOOKUP(CU169,$AT$331:$AX$336,5,1) -> 7.5 | CV170: =CW177 -> 7.5 | CW170: =VLOOKUP(CW169,$AT$331:$AX$336,5,1) -> 7.5 | DC170: Y Range | DD170: =VLOOKUP(DD169,$AT$331:$AX$336,2,1) -> 0 | DE170: =DF177 -> NA | DF170: =VLOOKUP(DF169,$AT$331:$AX$336,2,1) -> 0 | DJ170: Y Range | DK170: =VLOOKUP(DK169,$AT$331:$AX$336,3,1) -> 15.5 | DL170: =DM177 -> 15.5 | DM170: =VLOOKUP(DM169,$AT$331:$AX$336,3,1) -> 15.5 | DQ170: Y Range | DR170: =VLOOKUP(DR169,$AT$331:$AX$336,4,1) -> 9 | DS170: =DT177 -> 9 | DT170: =VLOOKUP(DT169,$AT$331:$AX$336,4,1) -> 9 | DX170: Y Range | DY170: =VLOOKUP(DY169,$AT$331:$AX$336,5,1) -> 7.5 | DZ170: =EA177 -> 7.5 | EA170: =VLOOKUP(EA169,$AT$331:$AX$336,5,1) -> 7.5 | EG170: Y Range | EH170: =VLOOKUP(EH169,$AT$331:$AX$336,2,1) -> 0 | EI170: =EJ177 -> NA | EJ170: =VLOOKUP(EJ169,$AT$331:$AX$336,2,1) -> 0 | EN170: Y Range | EO170: =VLOOKUP(EO169,$AT$331:$AX$336,3,1) -> 15.5 | EP170: =EQ177 -> 15.5 | EQ170: =VLOOKUP(EQ169,$AT$331:$AX$336,3,1) -> 15.5 | EU170: Y Range | EV170: =VLOOKUP(EV169,$AT$331:$AX$336,4,1) -> 9 | EW170: =EX177 -> 9 | EX170: =VLOOKUP(EX169,$AT$331:$AX$336,4,1) -> 9 | FB170: Y Range | FC170: =VLOOKUP(FC169,$AT$331:$AX$336,5,1) -> 7.5 | FD170: =FE177 -> 7.5 | FE170: =VLOOKUP(FE169,$AT$331:$AX$336,5,1) -> 7.5 | FK170: Y Range | FL170: =VLOOKUP(FL169,$AT$331:$AX$336,2,1) -> 0 | FM170: =FN177 -> NA | FN170: =VLOOKUP(FN169,$AT$331:$AX$336,2,1) -> 0 | FR170: Y Range | FS170: =VLOOKUP(FS169,$AT$331:$AX$336,3,1) -> 15.5 | FT170: =FU177 -> 15.5 | FU170: =VLOOKUP(FU169,$AT$331:$AX$336,3,1) -> 15.5 | FY170: Y Range | FZ170: =VLOOKUP(FZ169,$AT$331:$AX$336,4,1) -> 9 | GA170: =GB177 -> 9 | GB170: =VLOOKUP(GB169,$AT$331:$AX$336,4,1) -> 9 | GF170: Y Range | GG170: =VLOOKUP(GG169,$AT$331:$AX$336,5,1) -> 7.5 | GH170: =GI177 -> 7.5 | GI170: =VLOOKUP(GI169,$AT$331:$AX$336,5,1) -> 7.5
AU172: X1 | AV172: low spacing | AX172: =AV169+0.00001 -> 10.00001 | BB172: X1 | BC172: low spacing | BE172: =BC169+0.00001 -> 10.00001 | BI172: X1 | BJ172: low spacing | BL172: =BJ169+0.00001 -> 10.00001 | BP172: X1 | BQ172: low spacing | BS172: =BQ169+0.00001 -> 10.00001 | BY172: X1 | BZ172: low spacing | CB172: =BZ169+0.00001 -> 10.00001 | CF172: X1 | CG172: low spacing | CI172: =CG169+0.00001 -> 10.00001 | CM172: X1 | CN172: low spacing | CP172: =CN169+0.00001 -> 10.00001 | CT172: X1 | CU172: low spacing | CW172: =CU169+0.00001 -> 10.00001 | DC172: X1 | DD172: low spacing | DF172: =DD169+0.00001 -> 10.00001 | DJ172: X1 | DK172: low spacing | DM172: =DK169+0.00001 -> 10.00001 | DQ172: X1 | DR172: low spacing | DT172: =DR169+0.00001 -> 10.00001 | DX172: X1 | DY172: low spacing | EA172: =DY169+0.00001 -> 10.00001 | EG172: X1 | EH172: low spacing | EJ172: =EH169+0.00001 -> 10.00001 | EN172: X1 | EO172: low spacing | EQ172: =EO169+0.00001 -> 10.00001 | EU172: X1 | EV172: low spacing | EX172: =EV169+0.00001 -> 10.00001 | FB172: X1 | FC172: low spacing | FE172: =FC169+0.00001 -> 10.00001 | FK172: X1 | FL172: low spacing | FN172: =FL169+0.00001 -> 10.00001 | FR172: X1 | FS172: low spacing | FU172: =FS169+0.00001 -> 10.00001 | FY172: X1 | FZ172: low spacing | GB172: =FZ169+0.00001 -> 10.00001 | GF172: X1 | GG172: low spacing | GI172: =GG169+0.00001 -> 10.00001
AU173: X2 | AV173: high spacing | AX173: =AX169 -> 10 | BB173: X2 | BC173: high spacing | BE173: =BE169 -> 10 | BI173: X2 | BJ173: high spacing | BL173: =BL169 -> 10 | BP173: X2 | BQ173: high spacing | BS173: =BS169 -> 10 | BY173: X2 | BZ173: high spacing | CB173: =CB169 -> 10 | CF173: X2 | CG173: high spacing | CI173: =CI169 -> 10 | CM173: X2 | CN173: high spacing | CP173: =CP169 -> 10 | CT173: X2 | CU173: high spacing | CW173: =CW169 -> 10 | DC173: X2 | DD173: high spacing | DF173: =DF169 -> 10 | DJ173: X2 | DK173: high spacing | DM173: =DM169 -> 10 | DQ173: X2 | DR173: high spacing | DT173: =DT169 -> 10 | DX173: X2 | DY173: high spacing | EA173: =EA169 -> 10 | EG173: X2 | EH173: high spacing | EJ173: =EJ169 -> 10 | EN173: X2 | EO173: high spacing | EQ173: =EQ169 -> 10 | EU173: X2 | EV173: high spacing | EX173: =EX169 -> 10 | FB173: X2 | FC173: high spacing | FE173: =FE169 -> 10 | FK173: X2 | FL173: high spacing | FN173: =FN169 -> 10 | FR173: X2 | FS173: high spacing | FU173: =FU169 -> 10 | FY173: X2 | FZ173: high spacing | GB173: =GB169 -> 10 | GF173: X2 | GG173: high spacing | GI173: =GI169 -> 10
AU174: X | AV174: actual spacing | AX174: =AW168 -> 10 | BB174: X | BC174: actual spacing | BE174: =BD168 -> 10 | BI174: X | BJ174: actual spacing | BL174: =BK168 -> 10 | BP174: X | BQ174: actual spacing | BS174: =BR168 -> 10 | BY174: X | BZ174: actual spacing | CB174: =CA168 -> 10 | CF174: X | CG174: actual spacing | CI174: =CH168 -> 10 | CM174: X | CN174: actual spacing | CP174: =CO168 -> 10 | CT174: X | CU174: actual spacing | CW174: =CV168 -> 10 | DC174: X | DD174: actual spacing | DF174: =DE168 -> 10 | DJ174: X | DK174: actual spacing | DM174: =DL168 -> 10 | DQ174: X | DR174: actual spacing | DT174: =DS168 -> 10 | DX174: X | DY174: actual spacing | EA174: =DZ168 -> 10 | EG174: X | EH174: actual spacing | EJ174: =EI168 -> 10 | EN174: X | EO174: actual spacing | EQ174: =EP168 -> 10 | EU174: X | EV174: actual spacing | EX174: =EW168 -> 10 | FB174: X | FC174: actual spacing | FE174: =FD168 -> 10 | FK174: X | FL174: actual spacing | FN174: =FM168 -> 10 | FR174: X | FS174: actual spacing | FU174: =FT168 -> 10 | FY174: X | FZ174: actual spacing | GB174: =GA168 -> 10 | GF174: X | GG174: actual spacing | GI174: =GH168 -> 10
AU175: Y1 | AV175: low tabular | AX175: =AV170 -> 0 | BB175: Y1 | BC175: low tabular | BE175: =BC170 -> 15.5 | BI175: Y1 | BJ175: low tabular | BL175: =BJ170 -> 9 | BP175: Y1 | BQ175: low tabular | BS175: =BQ170 -> 7.5 | BY175: Y1 | BZ175: low tabular | CB175: =BZ170 -> 0 | CF175: Y1 | CG175: low tabular | CI175: =CG170 -> 15.5 | CM175: Y1 | CN175: low tabular | CP175: =CN170 -> 9 | CT175: Y1 | CU175: low tabular | CW175: =CU170 -> 7.5 | DC175: Y1 | DD175: low tabular | DF175: =DD170 -> 0 | DJ175: Y1 | DK175: low tabular | DM175: =DK170 -> 15.5 | DQ175: Y1 | DR175: low tabular | DT175: =DR170 -> 9 | DX175: Y1 | DY175: low tabular | EA175: =DY170 -> 7.5 | EG175: Y1 | EH175: low tabular | EJ175: =EH170 -> 0 | EN175: Y1 | EO175: low tabular | EQ175: =EO170 -> 15.5 | EU175: Y1 | EV175: low tabular | EX175: =EV170 -> 9 | FB175: Y1 | FC175: low tabular | FE175: =FC170 -> 7.5 | FK175: Y1 | FL175: low tabular | FN175: =FL170 -> 0 | FR175: Y1 | FS175: low tabular | FU175: =FS170 -> 15.5 | FY175: Y1 | FZ175: low tabular | GB175: =FZ170 -> 9 | GF175: Y1 | GG175: low tabular | GI175: =GG170 -> 7.5
AU176: Y2 | AV176: high tabular | AX176: =AX170 -> 0 | BB176: Y2 | BC176: high tabular | BE176: =BE170 -> 15.5 | BI176: Y2 | BJ176: high tabular | BL176: =BL170 -> 9 | BP176: Y2 | BQ176: high tabular | BS176: =BS170 -> 7.5 | BY176: Y2 | BZ176: high tabular | CB176: =CB170 -> 0 | CF176: Y2 | CG176: high tabular | CI176: =CI170 -> 15.5 | CM176: Y2 | CN176: high tabular | CP176: =CP170 -> 9 | CT176: Y2 | CU176: high tabular | CW176: =CW170 -> 7.5 | DC176: Y2 | DD176: high tabular | DF176: =DF170 -> 0 | DJ176: Y2 | DK176: high tabular | DM176: =DM170 -> 15.5 | DQ176: Y2 | DR176: high tabular | DT176: =DT170 -> 9 | DX176: Y2 | DY176: high tabular | EA176: =EA170 -> 7.5 | EG176: Y2 | EH176: high tabular | EJ176: =EJ170 -> 0 | EN176: Y2 | EO176: high tabular | EQ176: =EQ170 -> 15.5 | EU176: Y2 | EV176: high tabular | EX176: =EX170 -> 9 | FB176: Y2 | FC176: high tabular | FE176: =FE170 -> 7.5 | FK176: Y2 | FL176: high tabular | FN176: =FN170 -> 0 | FR176: Y2 | FS176: high tabular | FU176: =FU170 -> 15.5 | FY176: Y2 | FZ176: high tabular | GB176: =GB170 -> 9 | GF176: Y2 | GG176: high tabular | GI176: =GI170 -> 7.5
AU177: Y | AV177: TABULAR VALUE | AX177: NA | BB177: Y | BC177: TABULAR VALUE | BE177: =BE175+(BE174-BE172)*(BE176-BE175)/(BE173-BE172) -> 15.5 | BI177: Y | BJ177: TABULAR VALUE | BL177: =BL175+(BL174-BL172)*(BL176-BL175)/(BL173-BL172) -> 9 | BP177: Y | BQ177: TABULAR VALUE | BS177: =BS175+(BS174-BS172)*(BS176-BS175)/(BS173-BS172) -> 7.5 | BY177: Y | BZ177: TABULAR VALUE | CB177: NA | CF177: Y | CG177: TABULAR VALUE | CI177: =CI175+(CI174-CI172)*(CI176-CI175)/(CI173-CI172) -> 15.5 | CM177: Y | CN177: TABULAR VALUE | CP177: =CP175+(CP174-CP172)*(CP176-CP175)/(CP173-CP172) -> 9 | CT177: Y | CU177: TABULAR VALUE | CW177: =CW175+(CW174-CW172)*(CW176-CW175)/(CW173-CW172) -> 7.5 | DC177: Y | DD177: TABULAR VALUE | DF177: NA | DJ177: Y | DK177: TABULAR VALUE | DM177: =DM175+(DM174-DM172)*(DM176-DM175)/(DM173-DM172) -> 15.5 | DQ177: Y | DR177: TABULAR VALUE | DT177: =DT175+(DT174-DT172)*(DT176-DT175)/(DT173-DT172) -> 9 | DX177: Y | DY177: TABULAR VALUE | EA177: =EA175+(EA174-EA172)*(EA176-EA175)/(EA173-EA172) -> 7.5 | EG177: Y | EH177: TABULAR VALUE | EJ177: NA | EN177: Y | EO177: TABULAR VALUE | EQ177: =EQ175+(EQ174-EQ172)*(EQ176-EQ175)/(EQ173-EQ172) -> 15.5 | EU177: Y | EV177: TABULAR VALUE | EX177: =EX175+(EX174-EX172)*(EX176-EX175)/(EX173-EX172) -> 9 | FB177: Y | FC177: TABULAR VALUE | FE177: =FE175+(FE174-FE172)*(FE176-FE175)/(FE173-FE172) -> 7.5 | FK177: Y | FL177: TABULAR VALUE | FN177: NA | FR177: Y | FS177: TABULAR VALUE | FU177: =FU175+(FU174-FU172)*(FU176-FU175)/(FU173-FU172) -> 15.5 | FY177: Y | FZ177: TABULAR VALUE | GB177: =GB175+(GB174-GB172)*(GB176-GB175)/(GB173-GB172) -> 9 | GF177: Y | GG177: TABULAR VALUE | GI177: =GI175+(GI174-GI172)*(GI176-GI175)/(GI173-GI172) -> 7.5
BB181: 1 | BC181: =$AX$8 -> 8585 | BD181: =$AW$13 -> 3.5 | CF181: 1 | CG181: =$AX$8 -> 8585 | CH181: =$CA$13 -> 3.5 | DJ181: 1 | DK181: =$AX$8 -> 8585 | DL181: =$DE$13 -> 3.5 | EN181: 1 | EO181: =$AX$8 -> 8585 | EP181: =$EI$13 -> 3.5 | FR181: 1 | FS181: =$AX$8 -> 8585 | FT181: =$FM$13 -> 3.5
AU182: eave ridge adjustment | BB182: 13 | BC182: =$AX$51 -> 9090 | BD182: =$AW$56 -> 3.5 | BY182: eave ridge adjustment | CF182: 13 | CG182: =$AX$51 -> 9090 | CH182: =$CA$56 -> 3.5 | DC182: eave ridge adjustment | DJ182: 13 | DK182: =$AX$51 -> 9090 | DL182: =$DE$56 -> 3.5 | EG182: eave ridge adjustment | EN182: 13 | EO182: =$AX$51 -> 9090 | EP182: =$EI$56 -> 3.5 | FK182: eave ridge adjustment | FR182: 13 | FS182: =$AX$51 -> 9090 | FT182: =$FM$56 -> 3.5
AU183: POSITION | AV183: 1 | BB183: 25 | BC183: =$AX$94 -> 10100 | BD183: =$AW$99 -> 4.5 | BY183: POSITION | BZ183: 1 | CF183: 25 | CG183: =$AX$94 -> 10100 | CH183: =$CA$99 -> 4.5 | DC183: POSITION | DD183: 1 | DJ183: 25 | DK183: =$AX$94 -> 10100 | DL183: =$DE$99 -> 4.5 | EG183: POSITION | EH183: 1 | EN183: 25 | EO183: =$AX$94 -> 10100 | EP183: =$EI$99 -> 4.5 | FK183: POSITION | FL183: 1 | FR183: 25 | FS183: =$AX$94 -> 10100 | FT183: =$FM$99 -> 4.5
AU184: Y = Y1 + (X-X1) * (Y2-Y1)/(X2-X1) | BB184: 37 | BC184: =$AX$137 -> 11009 | BD184: =$AW$142 -> 5.5 | BY184: Y = Y1 + (X-X1) * (Y2-Y1)/(X2-X1) | CF184: 37 | CG184: =$AX$137 -> 11009 | CH184: =$CA$142 -> 5.5 | DC184: Y = Y1 + (X-X1) * (Y2-Y1)/(X2-X1) | DJ184: 37 | DK184: =$AX$137 -> 11009 | DL184: =$DE$142 -> 5.5 | EG184: Y = Y1 + (X-X1) * (Y2-Y1)/(X2-X1) | EN184: 37 | EO184: =$AX$137 -> 11009 | EP184: =$EI$142 -> 5.5 | FK184: Y = Y1 + (X-X1) * (Y2-Y1)/(X2-X1) | FR184: 37 | FS184: =$AX$137 -> 11009 | FT184: =$FM$142 -> 5.5
BB185: 2 | BC185: =$BE$8 -> 17085 | BD185: =$BD$13 -> 3.5 | CF185: 2 | CG185: =$BE$8 -> 17085 | CH185: =$CH$13 -> 3.5 | DJ185: 2 | DK185: =$BE$8 -> 17085 | DL185: =$DL$13 -> 3.5 | EN185: 2 | EO185: =$BE$8 -> 17085 | EP185: =$EP$13 -> 3.5 | FR185: 2 | FS185: =$BE$8 -> 17085 | FT185: =$FT$13 -> 3.5
AU186: actual | AW186: =$E$20 -> 0 | BB186: 5 | BC186: =$AX$22 -> 17170 | BD186: =$AW$27 -> 6.5 | BY186: actual | CA186: =L20 -> 0 | CF186: 5 | CG186: =$AX$22 -> 17170 | CH186: =$CA$27 -> 6.5 | DC186: actual | DE186: =S20 -> 0 | DJ186: 5 | DK186: =$AX$22 -> 17170 | DL186: =$DE$27 -> 6.5 | EG186: actual | EI186: =Z20 -> 0 | EN186: 5 | EO186: =$AX$22 -> 17170 | EP186: =$EI$27 -> 6.5 | FK186: actual | FM186: =AG20 -> 0 | FR186: 5 | FS186: =$AX$22 -> 17170 | FT186: =$FM$27 -> 6.5
BB187: 14 | BC187: =$BE$51 -> 18090 | BD187: =$BD$56 -> 3.5 | CF187: 14 | CG187: =$BE$51 -> 18090 | CH187: =$CH$56 -> 3.5 | DJ187: 14 | DK187: =$BE$51 -> 18090 | DL187: =$DL$56 -> 3.5 | EN187: 14 | EO187: =$BE$51 -> 18090 | EP187: =$EP$56 -> 3.5 | FR187: 14 | FS187: =$BE$51 -> 18090 | FT187: =$FT$56 -> 3.5
AU188: X Range | AV188: =FLOOR(AW186,5)+1 -> 1 | AX188: =CEILING(AW186,5) -> 0 | BB188: 17 | BC188: =$AX$65 -> 18180 | BD188: =$AW$70 -> 7 | BY188: X Range | BZ188: =FLOOR(CA186,5)+1 -> 1 | CB188: =CEILING(CA186,5) -> 0 | CF188: 17 | CG188: =$AX$65 -> 18180 | CH188: =$CA$70 -> 7 | DC188: X Range | DD188: =FLOOR(DE186,5)+1 -> 1 | DF188: =CEILING(DE186,5) -> 0 | DJ188: 17 | DK188: =$AX$65 -> 18180 | DL188: =$DE$70 -> 7 | EG188: X Range | EH188: =FLOOR(EI186,5)+1 -> 1 | EJ188: =CEILING(EI186,5) -> 0 | EN188: 17 | EO188: =$AX$65 -> 18180 | EP188: =$EI$70 -> 7 | FK188: X Range | FL188: =FLOOR(FM186,5)+1 -> 1 | FN188: =CEILING(FM186,5) -> 0 | FR188: 17 | FS188: =$AX$65 -> 18180 | FT188: =$FM$70 -> 7
AU189: Y Range | AV189: =VLOOKUP(AV188,AV238:AW245,2,1) -> 0.7 | AW189: =AX199 ->  | AX189: =VLOOKUP(AX188,AV238:AW245,2,1) ->  | BB189: 26 | BC189: =$BE$94 -> 20100 | BD189: =$BD$99 -> 4.5 | BY189: Y Range | BZ189: =VLOOKUP(BZ188,BZ238:CA245,2,1) -> 0.7 | CA189: =CB199 ->  | CB189: =VLOOKUP(CB188,BZ238:CA245,2,1) ->  | CF189: 26 | CG189: =$BE$94 -> 20100 | CH189: =$CH$99 -> 4.5 | DC189: Y Range | DD189: =VLOOKUP(DD188,DD238:DE245,2,1) -> 0.7 | DE189: =DF199 ->  | DF189: =VLOOKUP(DF188,DD238:DE245,2,1) ->  | DJ189: 26 | DK189: =$BE$94 -> 20100 | DL189: =$DL$99 -> 4.5 | EG189: Y Range | EH189: =VLOOKUP(EH188,EH238:EI245,2,1) -> 0.7 | EI189: =EJ199 ->  | EJ189: =VLOOKUP(EJ188,EH238:EI245,2,1) ->  | EN189: 26 | EO189: =$BE$94 -> 20100 | EP189: =$EP$99 -> 4.5 | FK189: Y Range | FL189: =VLOOKUP(FL188,FL238:FM245,2,1) -> 0.7 | FM189: =FN199 ->  | FN189: =VLOOKUP(FN188,FL238:FM245,2,1) ->  | FR189: 26 | FS189: =$BE$94 -> 20100 | FT189: =$FT$99 -> 4.5
BB190: 29 | BC190: =$AX$108 -> 20200 | BD190: =$AW$113 -> 8.5 | CF190: 29 | CG190: =$AX$108 -> 20200 | CH190: =$CA$113 -> 8.5 | DJ190: 29 | DK190: =$AX$108 -> 20200 | DL190: =$DE$113 -> 8.5 | EN190: 29 | EO190: =$AX$108 -> 20200 | EP190: =$EI$113 -> 8.5 | FR190: 29 | FS190: =$AX$108 -> 20200 | FT190: =$FM$113 -> 8.5
BB191: 38 | BC191: =$BE$137 -> 21909 | BD191: =$BD$142 -> 3.5 | CF191: 38 | CG191: =$BE$137 -> 21909 | CH191: =$CH$142 -> 3.5 | DJ191: 38 | DK191: =$BE$137 -> 21909 | DL191: =$DL$142 -> 3.5 | EN191: 38 | EO191: =$BE$137 -> 21909 | EP191: =$EP$142 -> 3.5 | FR191: 38 | FS191: =$BE$137 -> 21909 | FT191: =$FT$142 -> 3.5
BB192: 41 | BC192: =$AX$151 -> 22018 | BD192: =$AW$156 -> 10.5 | CF192: 41 | CG192: =$AX$151 -> 22018 | CH192: =$CA$156 -> 10.5 | DJ192: 41 | DK192: =$AX$151 -> 22018 | DL192: =$DE$156 -> 10.5 | EN192: 41 | EO192: =$AX$151 -> 22018 | EP192: =$EI$156 -> 10.5 | FR192: 41 | FS192: =$AX$151 -> 22018 | FT192: =$FM$156 -> 10.5
BB193: 3 | BC193: =$BL$8 -> 25585 | BD193: =$BK$13 -> 2 | CF193: 3 | CG193: =$BL$8 -> 25585 | CH193: =$CO$13 -> 2 | DJ193: 3 | DK193: =$BL$8 -> 25585 | DL193: =$DS$13 -> 2 | EN193: 3 | EO193: =$BL$8 -> 25585 | EP193: =$EW$13 -> 2 | FR193: 3 | FS193: =$BL$8 -> 25585 | FT193: =$GA$13 -> 2
AU194: X1 | AV194: low height | AX194: =AV188+0.00001 -> 1.00001 | BB194: 9 | BC194: =$AX$36 -> 25755 | BD194: =$AW$41 -> NA | BY194: X1 | BZ194: low height | CB194: =BZ188+0.00001 -> 1.00001 | CF194: 9 | CG194: =$AX$36 -> 25755 | CH194: =$CA$41 -> NA | DC194: X1 | DD194: low height | DF194: =DD188+0.00001 -> 1.00001 | DJ194: 9 | DK194: =$AX$36 -> 25755 | DL194: =$DE$41 -> NA | EG194: X1 | EH194: low height | EJ194: =EH188+0.00001 -> 1.00001 | EN194: 9 | EO194: =$AX$36 -> 25755 | EP194: =$EI$41 -> NA | FK194: X1 | FL194: low height | FN194: =FL188+0.00001 -> 1.00001 | FR194: 9 | FS194: =$AX$36 -> 25755 | FT194: =$FM$41 -> NA
AU195: X2 | AV195: high height | AX195: =AX188 -> 0 | BB195: 15 | BC195: =$BL$51 -> 27090 | BD195: =$BK$56 -> 2 | BY195: X2 | BZ195: high height | CB195: =CB188 -> 0 | CF195: 15 | CG195: =$BL$51 -> 27090 | CH195: =$CO$56 -> 2 | DC195: X2 | DD195: high height | DF195: =DF188 -> 0 | DJ195: 15 | DK195: =$BL$51 -> 27090 | DL195: =$DS$56 -> 2 | EG195: X2 | EH195: high height | EJ195: =EJ188 -> 0 | EN195: 15 | EO195: =$BL$51 -> 27090 | EP195: =$EW$56 -> 2 | FK195: X2 | FL195: high height | FN195: =FN188 -> 0 | FR195: 15 | FS195: =$BL$51 -> 27090 | FT195: =$GA$56 -> 2
AU196: X | AV196: actual height | AX196: =AW186 -> 0 | BB196: 21 | BC196: =$AX$79 -> 27270 | BD196: =$AW$84 -> NA | BY196: X | BZ196: actual height | CB196: =CA186 -> 0 | CF196: 21 | CG196: =$AX$79 -> 27270 | CH196: =$CA$84 -> NA | DC196: X | DD196: actual height | DF196: =DE186 -> 0 | DJ196: 21 | DK196: =$AX$79 -> 27270 | DL196: =$DE$84 -> NA | EG196: X | EH196: actual height | EJ196: =EI186 -> 0 | EN196: 21 | EO196: =$AX$79 -> 27270 | EP196: =$EI$84 -> NA | FK196: X | FL196: actual height | FN196: =FM186 -> 0 | FR196: 21 | FS196: =$AX$79 -> 27270 | FT196: =$FM$84 -> NA
AU197: Y1 | AV197: low tabular | AX197: =AV189 -> 0.7 | BB197: 27 | BC197: =$BL$94 -> 30100 | BD197: =$BK$99 -> 2.5 | BY197: Y1 | BZ197: low tabular | CB197: =BZ189 -> 0.7 | CF197: 27 | CG197: =$BL$94 -> 30100 | CH197: =$CO$99 -> 2.5 | DC197: Y1 | DD197: low tabular | DF197: =DD189 -> 0.7 | DJ197: 27 | DK197: =$BL$94 -> 30100 | DL197: =$DS$99 -> 2.5 | EG197: Y1 | EH197: low tabular | EJ197: =EH189 -> 0.7 | EN197: 27 | EO197: =$BL$94 -> 30100 | EP197: =$EW$99 -> 2.5 | FK197: Y1 | FL197: low tabular | FN197: =FL189 -> 0.7 | FR197: 27 | FS197: =$BL$94 -> 30100 | FT197: =$GA$99 -> 2.5
AU198: Y2 | AV198: high tabular | AX198: =AX189 ->  | BB198: 33 | BC198: =$AX$122 -> 30300 | BD198: =$AW$127 -> NA | BY198: Y2 | BZ198: high tabular | CB198: =CB189 ->  | CF198: 33 | CG198: =$AX$122 -> 30300 | CH198: =$CA$127 -> NA | DC198: Y2 | DD198: high tabular | DF198: =DF189 ->  | DJ198: 33 | DK198: =$AX$122 -> 30300 | DL198: =$DE$127 -> NA | EG198: Y2 | EH198: high tabular | EJ198: =EJ189 ->  | EN198: 33 | EO198: =$AX$122 -> 30300 | EP198: =$EI$127 -> NA | FK198: Y2 | FL198: high tabular | FN198: =FN189 ->  | FR198: 33 | FS198: =$AX$122 -> 30300 | FT198: =$FM$127 -> NA
AU199: Y | AV199: adjustment factor | AX199: =AX197+(AX196-AX194)*(AX198-AX197)/(AX195-AX194) ->  | BB199: 39 | BC199: =$BL$137 -> 32809 | BD199: =$BK$142 -> 3 | BY199: Y | BZ199: adjustment factor | CB199: =CB197+(CB196-CB194)*(CB198-CB197)/(CB195-CB194) ->  | CF199: 39 | CG199: =$BL$137 -> 32809 | CH199: =$CO$142 -> 3 | DC199: Y | DD199: adjustment factor | DF199: =DF197+(DF196-DF194)*(DF198-DF197)/(DF195-DF194) ->  | DJ199: 39 | DK199: =$BL$137 -> 32809 | DL199: =$DS$142 -> 3 | EG199: Y | EH199: adjustment factor | EJ199: =EJ197+(EJ196-EJ194)*(EJ198-EJ197)/(EJ195-EJ194) ->  | EN199: 39 | EO199: =$BL$137 -> 32809 | EP199: =$EW$142 -> 3 | FK199: Y | FL199: adjustment factor | FN199: =FN197+(FN196-FN194)*(FN198-FN197)/(FN195-FN194) ->  | FR199: 39 | FS199: =$BL$137 -> 32809 | FT199: =$GA$142 -> 3
AU200: eave ridge adjustment | BB200: 45 | BC200: =$AX$165 -> 33027 | BD200: =$AW$170 -> NA | BY200: eave ridge adjustment | CF200: 45 | CG200: =$AX$165 -> 33027 | CH200: =$CA$170 -> NA | DC200: eave ridge adjustment | DJ200: 45 | DK200: =$AX$165 -> 33027 | DL200: =$DE$170 -> NA | EG200: eave ridge adjustment | EN200: 45 | EO200: =$AX$165 -> 33027 | EP200: =$EI$170 -> NA | FK200: eave ridge adjustment | FR200: 45 | FS200: =$AX$165 -> 33027 | FT200: =$FM$170 -> NA
AU201: POSITION | AV201: 2 | BB201: 4 | BC201: =$BS$8 -> 34085 | BD201: =$BR$13 -> 1.5 | BY201: POSITION | BZ201: 2 | CF201: 4 | CG201: =$BS$8 -> 34085 | CH201: =$CV$13 -> 1.5 | DC201: POSITION | DD201: 2 | DJ201: 4 | DK201: =$BS$8 -> 34085 | DL201: =$DZ$13 -> 1.5 | EG201: POSITION | EH201: 2 | EN201: 4 | EO201: =$BS$8 -> 34085 | EP201: =$FD$13 -> 1.5 | FK201: POSITION | FL201: 2 | FR201: 4 | FS201: =$BS$8 -> 34085 | FT201: =$GH$13 -> 1.5
AU202: Y = Y1 + (X-X1) * (Y2-Y1)/(X2-X1) | BB202: 6 | BC202: =$BE$22 -> 34170 | BD202: =$BD$27 -> 6.5 | BY202: Y = Y1 + (X-X1) * (Y2-Y1)/(X2-X1) | CF202: 6 | CG202: =$BE$22 -> 34170 | CH202: =$CH$27 -> 6.5 | DC202: Y = Y1 + (X-X1) * (Y2-Y1)/(X2-X1) | DJ202: 6 | DK202: =$BE$22 -> 34170 | DL202: =$DL$27 -> 6.5 | EG202: Y = Y1 + (X-X1) * (Y2-Y1)/(X2-X1) | EN202: 6 | EO202: =$BE$22 -> 34170 | EP202: =$EP$27 -> 6.5 | FK202: Y = Y1 + (X-X1) * (Y2-Y1)/(X2-X1) | FR202: 6 | FS202: =$BE$22 -> 34170 | FT202: =$FT$27 -> 6.5
BB203: 16 | BC203: =$BS$51 -> 36090 | BD203: =$BR$56 -> 2 | CF203: 16 | CG203: =$BS$51 -> 36090 | CH203: =$CV$56 -> 2 | DJ203: 16 | DK203: =$BS$51 -> 36090 | DL203: =$DZ$56 -> 2 | EN203: 16 | EO203: =$BS$51 -> 36090 | EP203: =$FD$56 -> 2 | FR203: 16 | FS203: =$BS$51 -> 36090 | FT203: =$GH$56 -> 2
AU204: actual | AW204: =AW186 -> 0 | BB204: 18 | BC204: =$BE$65 -> 36180 | BD204: =$BD$70 -> 7 | BY204: actual | CA204: =CA186 -> 0 | CF204: 18 | CG204: =$BE$65 -> 36180 | CH204: =$CH$70 -> 7 | DC204: actual | DE204: =DE186 -> 0 | DJ204: 18 | DK204: =$BE$65 -> 36180 | DL204: =$DL$70 -> 7 | EG204: actual | EI204: =EI186 -> 0 | EN204: 18 | EO204: =$BE$65 -> 36180 | EP204: =$EP$70 -> 7 | FK204: actual | FM204: =FM186 -> 0 | FR204: 18 | FS204: =$BE$65 -> 36180 | FT204: =$FT$70 -> 7
BB205: 28 | BC205: =$BS$94 -> 40100 | BD205: =$BR$99 -> 2.5 | CF205: 28 | CG205: =$BS$94 -> 40100 | CH205: =$CV$99 -> 2.5 | DJ205: 28 | DK205: =$BS$94 -> 40100 | DL205: =$DZ$99 -> 2.5 | EN205: 28 | EO205: =$BS$94 -> 40100 | EP205: =$FD$99 -> 2.5 | FR205: 28 | FS205: =$BS$94 -> 40100 | FT205: =$GH$99 -> 2.5
AU206: X Range | AV206: =FLOOR(AW204,5)+1 -> 1 | AX206: =CEILING(AW204,5) -> 0 | BB206: 30 | BC206: =$BE$108 -> 40200 | BD206: =$BD$113 -> 8.5 | BY206: X Range | BZ206: =FLOOR(CA204,5)+1 -> 1 | CB206: =CEILING(CA204,5) -> 0 | CF206: 30 | CG206: =$BE$108 -> 40200 | CH206: =$CH$113 -> 8.5 | DC206: X Range | DD206: =FLOOR(DE204,5)+1 -> 1 | DF206: =CEILING(DE204,5) -> 0 | DJ206: 30 | DK206: =$BE$108 -> 40200 | DL206: =$DL$113 -> 8.5 | EG206: X Range | EH206: =FLOOR(EI204,5)+1 -> 1 | EJ206: =CEILING(EI204,5) -> 0 | EN206: 30 | EO206: =$BE$108 -> 40200 | EP206: =$EP$113 -> 8.5 | FK206: X Range | FL206: =FLOOR(FM204,5)+1 -> 1 | FN206: =CEILING(FM204,5) -> 0 | FR206: 30 | FS206: =$BE$108 -> 40200 | FT206: =$FT$113 -> 8.5
AU207: Y Range | AV207: =VLOOKUP(AV206,AV246:AW253,2,1) -> 0.85 | AW207: =AX217 ->  | AX207: =VLOOKUP(AX206,$AV$250:$AW$253,2,1) ->  | BB207: 40 | BC207: =$BS$137 -> 43709 | BD207: =$BR$142 -> 3 | BY207: Y Range | BZ207: =VLOOKUP(BZ206,BZ246:CA253,2,1) -> 0.85 | CA207: =CB217 ->  | CB207: =VLOOKUP(CB206,$AV$250:$AW$253,2,1) ->  | CF207: 40 | CG207: =$BS$137 -> 43709 | CH207: =$CV$142 -> 3 | DC207: Y Range | DD207: =VLOOKUP(DD206,DD246:DE253,2,1) -> 0.85 | DE207: =DF217 ->  | DF207: =VLOOKUP(DF206,$AV$250:$AW$253,2,1) ->  | DJ207: 40 | DK207: =$BS$137 -> 43709 | DL207: =$DZ$142 -> 3 | EG207: Y Range | EH207: =VLOOKUP(EH206,EH246:EI253,2,1) -> 0.85 | EI207: =EJ217 ->  | EJ207: =VLOOKUP(EJ206,$AV$250:$AW$253,2,1) ->  | EN207: 40 | EO207: =$BS$137 -> 43709 | EP207: =$FD$142 -> 3 | FK207: Y Range | FL207: =VLOOKUP(FL206,FL246:FM253,2,1) -> 0.85 | FM207: =FN217 ->  | FN207: =VLOOKUP(FN206,$AV$250:$AW$253,2,1) ->  | FR207: 40 | FS207: =$BS$137 -> 43709 | FT207: =$GH$142 -> 3
BB208: 42 | BC208: =$BE$151 -> 43818 | BD208: =$BD$156 -> 10.5 | CF208: 42 | CG208: =$BE$151 -> 43818 | CH208: =$CH$156 -> 10.5 | DJ208: 42 | DK208: =$BE$151 -> 43818 | DL208: =$DL$156 -> 10.5 | EN208: 42 | EO208: =$BE$151 -> 43818 | EP208: =$EP$156 -> 10.5 | FR208: 42 | FS208: =$BE$151 -> 43818 | FT208: =$FT$156 -> 10.5
BB209: 7 | BC209: =$BL$22 -> 51170 | BD209: =$BK$27 -> 3.5 | CF209: 7 | CG209: =$BL$22 -> 51170 | CH209: =$CO$27 -> 3.5 | DJ209: 7 | DK209: =$BL$22 -> 51170 | DL209: =$DS$27 -> 3.5 | EN209: 7 | EO209: =$BL$22 -> 51170 | EP209: =$EW$27 -> 3.5 | FR209: 7 | FS209: =$BL$22 -> 51170 | FT209: =$GA$27 -> 3.5
BB210: 10 | BC210: =$BE$36 -> 51255 | BD210: =$BD$41 -> 9 | CF210: 10 | CG210: =$BE$36 -> 51255 | CH210: =$CH$41 -> 9 | DJ210: 10 | DK210: =$BE$36 -> 51255 | DL210: =$DL$41 -> 9 | EN210: 10 | EO210: =$BE$36 -> 51255 | EP210: =$EP$41 -> 9 | FR210: 10 | FS210: =$BE$36 -> 51255 | FT210: =$FT$41 -> 9
BB211: 19 | BC211: =$BL$65 -> 54180 | BD211: =$BK$70 -> 4 | CF211: 19 | CG211: =$BL$65 -> 54180 | CH211: =$CO$70 -> 4 | DJ211: 19 | DK211: =$BL$65 -> 54180 | DL211: =$DS$70 -> 4 | EN211: 19 | EO211: =$BL$65 -> 54180 | EP211: =$EW$70 -> 4 | FR211: 19 | FS211: =$BL$65 -> 54180 | FT211: =$GA$70 -> 4
AU212: X1 | AV212: low height | AX212: =AV206+0.00001 -> 1.00001 | BB212: 22 | BC212: =$BE$79 -> 54270 | BD212: =$BD$84 -> 10.5 | BY212: X1 | BZ212: low height | CB212: =BZ206+0.00001 -> 1.00001 | CF212: 22 | CG212: =$BE$79 -> 54270 | CH212: =$CH$84 -> 10.5 | DC212: X1 | DD212: low height | DF212: =DD206+0.00001 -> 1.00001 | DJ212: 22 | DK212: =$BE$79 -> 54270 | DL212: =$DL$84 -> 10.5 | EG212: X1 | EH212: low height | EJ212: =EH206+0.00001 -> 1.00001 | EN212: 22 | EO212: =$BE$79 -> 54270 | EP212: =$EP$84 -> 10.5 | FK212: X1 | FL212: low height | FN212: =FL206+0.00001 -> 1.00001 | FR212: 22 | FS212: =$BE$79 -> 54270 | FT212: =$FT$84 -> 10.5
AU213: X2 | AV213: high height | AX213: =AX206 -> 0 | BB213: 31 | BC213: =$BL$108 -> 60200 | BD213: =$BK$113 -> 5 | BY213: X2 | BZ213: high height | CB213: =CB206 -> 0 | CF213: 31 | CG213: =$BL$108 -> 60200 | CH213: =$CO$113 -> 5 | DC213: X2 | DD213: high height | DF213: =DF206 -> 0 | DJ213: 31 | DK213: =$BL$108 -> 60200 | DL213: =$DS$113 -> 5 | EG213: X2 | EH213: high height | EJ213: =EJ206 -> 0 | EN213: 31 | EO213: =$BL$108 -> 60200 | EP213: =$EW$113 -> 5 | FK213: X2 | FL213: high height | FN213: =FN206 -> 0 | FR213: 31 | FS213: =$BL$108 -> 60200 | FT213: =$GA$113 -> 5
AU214: X | AV214: actual height | AX214: =AW204 -> 0 | BB214: 34 | BC214: =$BE$122 -> 60300 | BD214: =$BD$127 -> 12.5 | BY214: X | BZ214: actual height | CB214: =CA204 -> 0 | CF214: 34 | CG214: =$BE$122 -> 60300 | CH214: =$CH$127 -> 12.5 | DC214: X | DD214: actual height | DF214: =DE204 -> 0 | DJ214: 34 | DK214: =$BE$122 -> 60300 | DL214: =$DL$127 -> 12.5 | EG214: X | EH214: actual height | EJ214: =EI204 -> 0 | EN214: 34 | EO214: =$BE$122 -> 60300 | EP214: =$EP$127 -> 12.5 | FK214: X | FL214: actual height | FN214: =FM204 -> 0 | FR214: 34 | FS214: =$BE$122 -> 60300 | FT214: =$FT$127 -> 12.5
AU215: Y1 | AV215: low tabular | AX215: =AV207 -> 0.85 | BB215: 43 | BC215: =$BL$151 -> 65618 | BD215: =$BK$156 -> 6 | BY215: Y1 | BZ215: low tabular | CB215: =BZ207 -> 0.85 | CF215: 43 | CG215: =$BL$151 -> 65618 | CH215: =$CO$156 -> 6 | DC215: Y1 | DD215: low tabular | DF215: =DD207 -> 0.85 | DJ215: 43 | DK215: =$BL$151 -> 65618 | DL215: =$DS$156 -> 6 | EG215: Y1 | EH215: low tabular | EJ215: =EH207 -> 0.85 | EN215: 43 | EO215: =$BL$151 -> 65618 | EP215: =$EW$156 -> 6 | FK215: Y1 | FL215: low tabular | FN215: =FL207 -> 0.85 | FR215: 43 | FS215: =$BL$151 -> 65618 | FT215: =$GA$156 -> 6
AU216: Y2 | AV216: high tabular | AX216: =AX207 ->  | BB216: 46 | BC216: =$BE$165 -> 65727 | BD216: =$BD$170 -> 15.5 | BY216: Y2 | BZ216: high tabular | CB216: =CB207 ->  | CF216: 46 | CG216: =$BE$165 -> 65727 | CH216: =$CH$170 -> 15.5 | DC216: Y2 | DD216: high tabular | DF216: =DF207 ->  | DJ216: 46 | DK216: =$BE$165 -> 65727 | DL216: =$DL$170 -> 15.5 | EG216: Y2 | EH216: high tabular | EJ216: =EJ207 ->  | EN216: 46 | EO216: =$BE$165 -> 65727 | EP216: =$EP$170 -> 15.5 | FK216: Y2 | FL216: high tabular | FN216: =FN207 ->  | FR216: 46 | FS216: =$BE$165 -> 65727 | FT216: =$FT$170 -> 15.5
AU217: Y | AV217: adjustment factor | AX217: =AX215+(AX214-AX212)*(AX216-AX215)/(AX213-AX212) ->  | BB217: 8 | BC217: =$BS$22 -> 68170 | BD217: =$BR$27 -> 3 | BY217: Y | BZ217: adjustment factor | CB217: =CB215+(CB214-CB212)*(CB216-CB215)/(CB213-CB212) ->  | CF217: 8 | CG217: =$BS$22 -> 68170 | CH217: =CV56 -> 2 | DC217: Y | DD217: adjustment factor | DF217: =DF215+(DF214-DF212)*(DF216-DF215)/(DF213-DF212) ->  | DJ217: 8 | DK217: =$BS$22 -> 68170 | DL217: =$DZ$27 -> 3 | EG217: Y | EH217: adjustment factor | EJ217: =EJ215+(EJ214-EJ212)*(EJ216-EJ215)/(EJ213-EJ212) ->  | EN217: 8 | EO217: =$BS$22 -> 68170 | EP217: =$FD$27 -> 3 | FK217: Y | FL217: adjustment factor | FN217: =FN215+(FN214-FN212)*(FN216-FN215)/(FN213-FN212) ->  | FR217: 8 | FS217: =$BS$22 -> 68170 | FT217: =$GH$27 -> 3
AU218: eave ridge adjustment | BB218: 20 | BC218: =$BS$65 -> 72180 | BD218: =$BR$70 -> 3.5 | BY218: eave ridge adjustment | CF218: 20 | CG218: =$BS$65 -> 72180 | CH218: =$CV$70 -> 3.5 | DC218: eave ridge adjustment | DJ218: 20 | DK218: =$BS$65 -> 72180 | DL218: =$DZ$70 -> 3.5 | EG218: eave ridge adjustment | EN218: 20 | EO218: =$BS$65 -> 72180 | EP218: =$FD$70 -> 3.5 | FK218: eave ridge adjustment | FR218: 20 | FS218: =$BS$65 -> 72180 | FT218: =$GH$70 -> 3.5
AU219: POSITION | AV219: 3 | BB219: 11 | BC219: =$BL$36 -> 76755 | BD219: =$BK$41 -> 5.5 | BY219: POSITION | BZ219: 3 | CF219: 11 | CG219: =$BL$36 -> 76755 | CH219: =$CO$41 -> 5.5 | DC219: POSITION | DD219: 3 | DJ219: 11 | DK219: =$BL$36 -> 76755 | DL219: =$DS$41 -> 5.5 | EG219: POSITION | EH219: 3 | EN219: 11 | EO219: =$BL$36 -> 76755 | EP219: =$EW$41 -> 5.5 | FK219: POSITION | FL219: 3 | FR219: 11 | FS219: =$BL$36 -> 76755 | FT219: =$GA$41 -> 5.5
AU220: Y = Y1 + (X-X1) * (Y2-Y1)/(X2-X1) | BB220: 32 | BC220: =$BS$108 -> 80200 | BD220: =$BR$113 -> 4.5 | BY220: Y = Y1 + (X-X1) * (Y2-Y1)/(X2-X1) | CF220: 32 | CG220: =$BS$108 -> 80200 | CH220: =$CV$113 -> 4.5 | DC220: Y = Y1 + (X-X1) * (Y2-Y1)/(X2-X1) | DJ220: 32 | DK220: =$BS$108 -> 80200 | DL220: =$DZ$113 -> 4.5 | EG220: Y = Y1 + (X-X1) * (Y2-Y1)/(X2-X1) | EN220: 32 | EO220: =$BS$108 -> 80200 | EP220: =$FD$113 -> 4.5 | FK220: Y = Y1 + (X-X1) * (Y2-Y1)/(X2-X1) | FR220: 32 | FS220: =$BS$108 -> 80200 | FT220: =$GH$113 -> 4.5
BB221: 23 | BC221: =$BL$79 -> 81270 | BD221: =$BK$84 -> 6 | CF221: 23 | CG221: =$BL$79 -> 81270 | CH221: =$CO$84 -> 6 | DJ221: 23 | DK221: =$BL$79 -> 81270 | DL221: =$DS$84 -> 6 | EN221: 23 | EO221: =$BL$79 -> 81270 | EP221: =$EW$84 -> 6 | FR221: 23 | FS221: =$BL$79 -> 81270 | FT221: =$GA$84 -> 6
AU222: actual | AW222: =AW186 -> 0 | BB222: 44 | BC222: =$BS$151 -> 87418 | BD222: =$BR$156 -> 5 | BY222: actual | CA222: =CA186 -> 0 | CF222: 44 | CG222: =$BS$151 -> 87418 | CH222: =$CV$156 -> 5 | DC222: actual | DE222: =DE186 -> 0 | DJ222: 44 | DK222: =$BS$151 -> 87418 | DL222: =$DZ$156 -> 5 | EG222: actual | EI222: =EI186 -> 0 | EN222: 44 | EO222: =$BS$151 -> 87418 | EP222: =$FD$156 -> 5 | FK222: actual | FM222: =FM186 -> 0 | FR222: 44 | FS222: =$BS$151 -> 87418 | FT222: =$GH$156 -> 5
... 120 more rows

Sheet SIMPLIFIED
I1: YES
B2: 1. PREREQUISITES | L2: 2. DEFINE THE RECTANGLE | AB2: 3. SPECIFY DESIGN PARAMETERS
B3: MAX 2 STORY | BA3: count prerequisites | BJ3: =COUNTIF(I3:I20,"YES") -> 0
BA4: position | BJ4: =IF(AD9="X",1,IF(AI7="x",1,IF(AN9="x", 2, 0))) -> 0
B5: WALL HEIGHT ≤ 10' | BA5: count situations | BJ5: =COUNTA(AD7:AO10) -> 0
S6: REAR | BA6: BU LENGTH | BJ6: =IF(OR(I28="YES",I29="yes"),3,IF(BJ9=0," ",4)) ->  | BL6: Bi5
B7: EAVE TO RIDGE HEIGHT ≤ 15' | U7: FT | BA7: larger | BG7: =LARGE(BE12:BE13,1) ->  | BJ7: =IF(OR(S7=0,M12=0),0,BG7/BG8) -> 0
BA8: smaller | BG8: =SMALL(BE12:BE13,1) -> 
B9: GB ON INTERIOR SIDE OF BWPs | BA9: Count methods | BJ9: =COUNTIF(I28:J31,"YES") -> 0 | BL9: Bi8
Q10: Bus Reqd | S10: =IF(OR(ISBLANK($S$7), ISBLANK($M$12), $S$7=0, $M$12=0, $BJ$5=0, $BJ$5>1, $AJ$14=0, $AJ$14>15,)," ",$BH$29) -> 
B11: WIND ≤ 90 mph | M11: LEFT | Y11: RIGHT
O12: FT | Q12: =IF(OR(ISBLANK($S$7), ISBLANK($M$12), $S$7=0, $M$12=0, $BJ$5=0, $BJ$5>1, $AJ$14=0, $AJ$14>15,)," ",$BH$27) ->  | U12: =Q12 ->  | Y12: =IF(ISBLANK($M$12)," ",$M$12) ->  | AA12: FT | AD12: =IF(BJ5>1,"Chose only one situation"," ") ->  | BA12: front rear | BE12: =IF(ISBLANK($S$7)," ",$S$7) ->  | BH12: ceiling | BJ12: =CEILING(BE12,10) -> 
B13: EXPOSURE B | BA13: left right | BE13: =IF(ISBLANK($M$12)," ",$M$12) ->  | BH13: ceiling | BJ13: =CEILING(BE13,10) -> 
S14: =S10 ->  | AN14: FT
B15: SDC A,B,C (no C townhouses) | BA15: eave to ridge ht | BJ15: =IF(AJ14=0,0, IF(AJ14<=10,10, IF(AND(AJ14>10,AJ14<=15),15,123))) -> 0
BQ16: TIME SAVER | BX16: If you have an older version of Excel, you might have trouble with the Time Saver(s). Go to TOOLS>>MACRO>>SECURITY and turn it down to "LOW". It should work fine.
B17: CRIPPLE WALLS: ONE STORY BUILDING | S17: =IF(ISBLANK($S$7)," ",$S$7) ->  | U17: FT | BA17: YES | BQ17: CONT + SHIFT+S
BA18: NO | BQ18: WILL RESET ALL YELLOW CELLS TO BLANK (be sure your cursor is not in a yellow box)
B19: CRIPPLE WALLS TWO STORY BUILDING | I19: NA | S19: FRONT
BA20: X
B21: PREREQUISITES PASS/FAIL | I21: =IF(BJ3=8,"YES"," ") ->  | AD21: =IF(BJ15>15,"Eave to ridge height is limited to 15 ft", " ") -> 
B24: 4. SPECIFY METHOD AND MATERIAL OF ACTUAL BRACING UNITS | L24: REAR WALL | T24: FRONT WALL | AB24: LEFT WALL | AJ24: RIGHT WALL
L25: Actual length of wall segments (ft) | T25: Actual length of wall segments (ft) | X25: BUs | AB25: Actual length of wall segments (ft) | AF25: BUs | AJ25: Actual length of wall segments (ft) | AN25: BUs
BA26: FRONT REAR | BF26: =S7 -> 0
I27: YES | P27: =IF(ISBLANK(L27)," ", IF(L27<$BJ$6,0, IF(OR(L27="CS-PF",L27="CSPF",L27="CS-G",L27="CSG", ),0.5, IF(L27="PFH",1, IF(L27="PFG",0.75, IF(OR($BJ$6=3, $BJ$6=4),L27/$BJ$6, IF($BJ$9=O," ","whoops"))))))) ->  | X27: =IF(ISBLANK(T27)," ", IF(T27<$BJ$6,0, IF(OR(T27="CS-PF",T27="CSPF",T27="CS-G",T27="CSG", ),0.5, IF(T27="PFH",1, IF(T27="PFG",0.75, IF(OR($BJ$6=3, $BJ$6=4),T27/$BJ$6, IF($BJ$9=O," ","whoops"))))))) ->  | AF27: =IF(ISBLANK(AB27)," ", IF(AB27<$BJ$6,0, IF(OR(AB27="CS-PF",AB27="CSPF",AB27="CS-G",AB27="CSG", ),0.5, IF(AB27="PFH",1, IF(AB27="PFG",0.75, IF(OR($BJ$6=3, $BJ$6=4),AB27/$BJ$6, IF($BJ$9=O," ","whoops"))))))) ->  | AN27: =IF(ISBLANK(AJ27)," ", IF(AJ27<$BJ$6,0, IF(OR(AJ27="CS-PF",AJ27="CSPF",AJ27="CS-G",AJ27="CSG", ),0.5, IF(AJ27="PFH",1, IF(AJ27="PFG",0.75, IF(OR($BJ$6=3, $BJ$6=4),AJ27/$BJ$6, IF($BJ$9=O," ","whoops"))))))) ->  | BA27: horizontal lookup | BH27: =HLOOKUP($BJ$12,$BB$32:$BG$36, IF(AND($BJ$15=10,$BJ$4=1),2, IF(AND($BJ$15=10,$BJ$4=2),3, IF(AND($BJ$15=15,$BJ$4=1),4, IF(AND($BJ$15=15,$BJ$4=2),5,123456789))))) ->  | BJ27: left right
C28: CS-WSP | P28: =IF(ISBLANK(L28)," ", IF(L28<$BJ$6,0, IF(OR(L28="CS-PF",L28="CSPF",L28="CS-G",L28="CSG", ),0.5, IF(L28="PFH",1, IF(L28="PFG",0.75, IF(OR($BJ$6=3, $BJ$6=4),L28/$BJ$6, IF($BJ$9=O," ","whoops"))))))) ->  | X28: =IF(ISBLANK(T28)," ", IF(T28<$BJ$6,0, IF(OR(T28="CS-PF",T28="CSPF",T28="CS-G",T28="CSG", ),0.5, IF(T28="PFH",1, IF(T28="PFG",0.75, IF(OR($BJ$6=3, $BJ$6=4),T28/$BJ$6, IF($BJ$9=O," ","whoops"))))))) ->  | AF28: =IF(ISBLANK(AB28)," ", IF(AB28<$BJ$6,0, IF(OR(AB28="CS-PF",AB28="CSPF",AB28="CS-G",AB28="CSG", ),0.5, IF(AB28="PFH",1, IF(AB28="PFG",0.75, IF(OR($BJ$6=3, $BJ$6=4),AB28/$BJ$6, IF($BJ$9=O," ","whoops"))))))) ->  | AN28: =IF(ISBLANK(AJ28)," ", IF(AJ28<$BJ$6,0, IF(OR(AJ28="CS-PF",AJ28="CSPF",AJ28="CS-G",AJ28="CSG", ),0.5, IF(AJ28="PFH",1, IF(AJ28="PFG",0.75, IF(OR($BJ$6=3, $BJ$6=4),AJ28/$BJ$6, IF($BJ$9=O," ","whoops"))))))) ->  | BA28: LEFT RIGHT | BF28: =M12 -> 0
C29: CS=SFB | BA29: horizontal lookup | BH29: =HLOOKUP($BJ$13,$BB$32:$BG$36, IF(AND($BJ$15=10,$BJ$4=1),2, IF(AND($BJ$15=10,$BJ$4=2),3, IF(AND($BJ$15=15,$BJ$4=1),4, IF(AND($BJ$15=15,$BJ$4=2),5,123456789))))) ->  | BJ29: rear front
C30: WSP
C31: SFB | BI31: `
I32: YES | BB32: 10 | BC32: 20 | BD32: 30 | BE32: 40 | BF32: 50 | BG32: 60
C33: =IF(BJ9>1,"Select only one box"," ") ->  | BA33: 10 | BB33: 1 | BC33: 2 | BD33: 2 | BE33: 2 | BF33: 3 | BG33: 3
BB34: 2 | BC34: 3 | BD34: 3 | BE34: 4 | BF34: 5 | BG34: 6
BA35: 15 | BB35: 1 | BC35: 2 | BD35: 3 | BE35: 3 | BF35: 4 | BG35: 4
L36: TOTAL | P36: =SUM(P27:R35)+AF36+0.00001 -> 2e-05 | T36: TOTAL | X36: =SUM(X27:Z35)+0.00001 -> 1e-05 | AB36: TOTAL | AF36: =SUM(AF27:AH35)+0.00001 -> 1e-05 | AJ36: TOTAL | AN36: =SUM(AN27:AP35)+0.00001 -> 1e-05 | BB36: 2 | BC36: 3 | BD36: 4 | BE36: 5 | BF36: 6 | BG36: 7
B38: Actual B.U.s ≥ Required B.U.s | N38: =IF(P36>=$S$10,"YES", " ") ->  | V38: =IF(X36>=$S$10,"YES", " ") ->  | AD38: =IF(AF36>=$S$10,"YES", " ") ->  | AL38: =IF(AN36>=$S$10,"YES", " ") -> 
N39: YES | V39: YES | AD39: YES | AL39: YES
B40: Wall segments greater than 8' must have at least 1 B.U.
B42: B.U. within 12' of each corner of each wall segment | BB42: count yes | BF42: =IF($I$21="YES",1,0) -> 0 | BH42: =IF(N38="YES",1,0) -> 0 | BJ42: =COUNTIF(N40:P45,"yes") -> 0 | BK42: =COUNTIF(N40:P45,"NO") -> 0 | BL42: =SUM(BF42:BJ42) -> 0
BB43: count yes | BF43: =IF($I$21="YES",1,0) -> 0 | BH43: =IF(V38="YES",1,0) -> 0 | BJ43: =COUNTIF(V40:X45,"yes") -> 0 | BK43: =COUNTIF(V40:X45,"NO") -> 0 | BL43: =SUM(BF43:BJ43) -> 0
B44: B.U. within 20' edge to edge | BB44: count yes | BF44: =IF($I$21="YES",1,0) -> 0 | BH44: =IF(AD38="YES",1,0) -> 0 | BJ44: =COUNTIF(AD40:AF45,"yes") -> 0 | BK44: =COUNTIF(AD40:AF45,"NO") -> 0 | BL44: =SUM(BF44:BJ44) -> 0
BB45: count yes | BF45: =IF($I$21="YES",1,0) -> 0 | BH45: =IF(AL38="YES",1,0) -> 0 | BJ45: =COUNTIF(AL40:AN45,"yes") -> 0 | BK45: =COUNTIF(AL40:AN45,"NO") -> 0 | BL45: =SUM(BF45:BJ45) -> 0
N46: YES | V46: YES | AD46: YES | AL46: YES | BF46: PREREQUISITES | BH46: Actual >= required | BJ46: Location ok | BK46: YES AND NO | BL46: YES
B47: PASS / FAIL | L47: =IF(BJ42=0," ",IF(BK42+BL42<5," ",IF(BL42=5,"PASS","FAIL"))) ->  | T47: =IF(BJ43=0," ",IF(BK43+BL43<5," ",IF(BL43=5,"PASS","FAIL"))) ->  | AB47: =IF(BJ44=0," ", IF(BK44+BL44<5," ", IF(BL44=5,"PASS","FAIL"))) ->  | AJ47: =IF(BJ45=0," ", IF( BK45+BL45<5, " ", IF(BL45=5,"PASS","FAIL"))) -> 
C50: Note: You will notice that this spreadsheet has changed the nomenclature from "LONG SIDE" and "SHORT SIDE" in the code book to "FRONT and REAR" and "LEFT and RIGHT". This spreadsheet has factored all of this into consideration and displays the number of bracing units appropriately.

Sheet E16 (hidden)
A1: E16: Tabular Value | B1: formula | C1: =IF($AW$2=0," ", IF(E14=0,"Spacing = 0 ft", IF(E14>60,"Spacing > 60 ft", VLOOKUP(E2*$AU$5*$AU$4,BC181:BD228,2,1)))) ->  | J1: =IF(ISBLANK($F$38)," ",IF(AND(COUNTA($F$21:$J$31)>1,$F$38>16),"YES",IF(AND($F$38>0,$F$38<17,$F$32>=4),"yes",123))) ->  | K1: =IF(ISBLANK($F$38)," ",IF(AND(COUNTA($F$21:$J$31)>1,$F$38>16),"YES",IF(AND($F$38>0,$F$38<17,$F$32>=4),"yes",123))) -> 
J2: =IF(ISBLANK($F$38)," ",IF(AND(COUNTA($F$21:$J$31)>1,$F$38>16),"YES",IF(AND($F$38>0,$F$38<17,$F$32>=4),"yes",123))) ->  | K2: =IF(ISBLANK($F$38)," ",IF(AND(COUNTA($F$21:$J$31)>1,$F$38>16),"YES",IF(AND($F$38>0,$F$38<17,$F$32>=4),"yes",123))) -> 
C3: Assigns a value to a position
A4: Create a new reference cell, "Position" 1= 1st of 1, 2nd of 2, or 3rd of 3 story 2=1st of 2 , 2nd of 3 story 3=1st of 3 story | B4: AU4 | C4: AU4 is holding place: F10 = 1, H9=1, J8=1 H10=2, J9=2 J10=3
C6: Assigns a value to a method
A7: Create a new reference cell, "Method" LIB = 1 GB=2 intermittent = 3 Continuous=4 | B7: AU5 | C7: AU5 is a holding place: LIB = 1 GB=2 IWSP,SFB=3 CS=WSP,CS-PF=4
C9: Assigns a unique value to this product. This product will be used to enter the interpolated tabular value range
A10: Create a reference cell: "Check if all are present" wind speed, position, method, avg BWL spacing. If any are missing the value =0 | B10: AW2 | C10: AW 2= E2 x position x method x E14
C12: Checks to see if all of the cells filled in
A13: test if the wind speed, method, position and spacing cells are completed. If any are not completed the value would be 0 - which would then say to leave the cell blank | C13: AW2=0 | D13: TRUE, somethiing is missing | J13: "BLANK"
D15: Spacing =0
A16: tests if spacing >0 | C16: FALSE | D16: E14=0 | E16: TRUE | J16: "Spacing =0"
C18: FALSE | D18: Spacing >60
A19: tests if spacing >60' | D19: E14>60 | E19: TRUE | J19: "Spacing >60"
D21: lookup interpolated tabular value based on "Check if all present" value
A22: Find interpolated value within range | C22: FALSE | D22: Vlookup (E2*$AU$5*$AU$4,BC165:BD212) | J22: Tabular value from range

Sheet E58 (hidden)
A1: E58:59 | B1: formula | C1: =IF(ISBLANK(#REF!)," ",IF(AND(COUNTA(#REF!)>1,#REF!>16),"YES",IF(AND(#REF!>0,#REF!<=16,COUNTA(#REF!)>=2),"YES",IF(AND(#REF!<=16,#REF!>=4),"YES","NO")))) ->  | D1: =IF(ISBLANK($F$60)," ",IF(AND(COUNTA($F$40:$J$53)>1,$F$60>16),"YES",IF(AND($F$60>0,$F$60<17,$F$54>=4),"yes",123))) ->  | E1: =IF(ISBLANK($F$60)," ",IF(AND(COUNTA($F$40:$J$53)>1,$F$60>16),"YES",IF(AND($F$60>0,$F$60<17,$F$54>=4),"yes",123))) ->  | G1: =IF(ISBLANK($F$60)," ",IF(AND(COUNTA($F$40:$J$53)>1,$F$60>16),"YES",IF(AND($F$60>0,$F$60<17,$F$54>=4),"yes",123))) ->  | J1: =IF(ISBLANK($F$60)," ",IF(AND(COUNTA($F$40:$J$53)>1,$F$60>16),"YES",IF(AND($F$60>0,$F$60<17,$F$54>=4),"yes",123))) ->  | K1: =IF(ISBLANK($F$60)," ",IF(AND(COUNTA($F$40:$J$53)>1,$F$60>16),"YES",IF(AND($F$60>0,$F$60<17,$F$54>=4),"yes",123))) -> 
C2: =IF(ISBLANK($F$60)," ",IF(AND(COUNTA($F$40:$J$53)>1,$F$60>16),"YES",IF(AND($F$60>0,$F$60<17,$F$54>=4),"yes",123))) ->  | D2: =IF(ISBLANK($F$60)," ",IF(AND(COUNTA($F$40:$J$53)>1,$F$60>16),"YES",IF(AND($F$60>0,$F$60<17,$F$54>=4),"yes",123))) ->  | E2: =IF(ISBLANK($F$60)," ",IF(AND(COUNTA($F$40:$J$53)>1,$F$60>16),"YES",IF(AND($F$60>0,$F$60<17,$F$54>=4),"yes",123))) ->  | F2: =IF(ISBLANK($F$60)," ",IF(AND(COUNTA($F$40:$J$53)>1,$F$60>16),"YES",IF(AND($F$60>0,$F$60<17,$F$54>=4),"yes",123))) ->  | G2: =IF(ISBLANK($F$60)," ",IF(AND(COUNTA($F$40:$J$53)>1,$F$60>16),"YES",IF(AND($F$60>0,$F$60<17,$F$54>=4),"yes",123))) ->  | J2: =IF(ISBLANK($F$60)," ",IF(AND(COUNTA($F$40:$J$53)>1,$F$60>16),"YES",IF(AND($F$60>0,$F$60<17,$F$54>=4),"yes",123))) ->  | K2: =IF(ISBLANK($F$60)," ",IF(AND(COUNTA($F$40:$J$53)>1,$F$60>16),"YES",IF(AND($F$60>0,$F$60<17,$F$54>=4),"yes",123))) -> 
C3: tests for BLANK | J3: leave E58:59 blank
A4: test if (Z56 - BWL length) = BLANK | C4: Z56 = BLANK | D4: TRUE | J4: "BLANK"
C6: FALSE | D6: # BWP in the range | F6: total BWP length
A7: test if there are more than (2) BWPs or (1) BWP >48" | D7: COUNT (E36:49) >1 | E7: or | F7: Z50 / 4 >=2 | J7: "YES"
C9: FALSE | D9: BWL length | F9: BWL length | H9: # BWP in the range
A10: tests if (Z56 - BWL length) is <=16' and has >= (2) BWPs or if it is one long panel with total length of bracing/48 >2 | D10: Z56<=16 | E10: and | F10: Z56>0 | G10: and | H10: COUNT (E36:49) >2 | J10: "YES"
C12: FALSE | D12: BWL length | F12: total BWP length
A13: tests if (Z56 - BWL length) is <=16' and has >= (1 ) 48" BWP | D13: Z56<=16 | E13: and | F13: Z50 >=4 | J13: "YES"
D16: FALSE | J16: "NO"
